Department Family,Entity,Date,Expense Type,Expense Area,Supplier,Transaction Number, Amount ,Item Description
BEIS,UKRI - AHRC,14/01/2019,Hospitality,Communications,195 Piccadilly Ltd,98382542,170.79,Hospitality
BEIS,UKRI - AHRC,14/01/2019,Hospitality,Communications,195 Piccadilly Ltd,98382542,4487.61,Hospitality
BEIS,UKRI - AHRC,14/01/2019,Hospitality,Communications,195 Piccadilly Ltd,98382542,1094.76,Hospitality
BEIS,UKRI - AHRC,14/01/2019,Hospitality,Communications,195 Piccadilly Ltd,98382548,-1094.76,Hospitality
BEIS,UKRI - AHRC,22/01/2019,Freight Charges,HR,1st Biotech Ltd,98386248,14.95,Freight Charges
BEIS,UKRI - AHRC,22/01/2019,Freight Charges,HR,1st Biotech Ltd,98386248,2.99,Freight Charges
BEIS,UKRI - AHRC,22/01/2019,Provisions ( Food etc),HR,1st Biotech Ltd,98386248,1036.80,Provisions ( Food etc)
BEIS,UKRI - AHRC,08/01/2019,Recruitment Costs,Corporate Services,Agenda Resource Management Ltd,98377498,61.32,Recruitment Costs
BEIS,UKRI - AHRC,08/01/2019,Recruitment Costs,Corporate Services,Agenda Resource Management Ltd,98377498,157.31,Recruitment Costs
BEIS,UKRI - AHRC,08/01/2019,Recruitment Costs,HR,Agenda Resource Management Ltd,98377588,99.80,Recruitment Costs
BEIS,UKRI - AHRC,08/01/2019,Recruitment Costs,Corporate Services,Agenda Resource Management Ltd,98378098,56.11,Recruitment Costs
BEIS,UKRI - AHRC,08/01/2019,Recruitment Costs,HR,Agenda Resource Management Ltd,98378573,56.11,Recruitment Costs
BEIS,UKRI - AHRC,08/01/2019,Recruitment Costs,Corporate Services,Agenda Resource Management Ltd,98378577,28.80,Recruitment Costs
BEIS,UKRI - AHRC,08/01/2019,Recruitment Costs,Corporate Services,Agenda Resource Management Ltd,98378577,160.91,Recruitment Costs
BEIS,UKRI - AHRC,09/01/2019,Recruitment Costs,HR,Agenda Resource Management Ltd,98377970,154.97,Recruitment Costs
BEIS,UKRI - AHRC,09/01/2019,Recruitment Costs,HR,Agenda Resource Management Ltd,98378157,154.97,Recruitment Costs
BEIS,UKRI - AHRC,09/01/2019,Recruitment Costs,Corporate Services,Agenda Resource Management Ltd,98378571,155.91,Recruitment Costs
BEIS,UKRI - AHRC,21/01/2019,Recruitment Costs,Corporate Services,Agenda Resource Management Ltd,98386824,155.91,Recruitment Costs
BEIS,UKRI - AHRC,28/01/2019,Recruitment Costs,HR,Agenda Resource Management Ltd,98389384,56.11,Recruitment Costs
BEIS,UKRI - AHRC,28/01/2019,Recruitment Costs,HR,Agenda Resource Management Ltd,98389385,56.11,Recruitment Costs
BEIS,UKRI - AHRC,29/01/2019,Recruitment Costs,Corporate Services,Agenda Resource Management Ltd,98389386,155.91,Recruitment Costs
BEIS,UKRI - AHRC,29/01/2019,Recruitment Costs,HR,Agenda Resource Management Ltd,98389388,155.91,Recruitment Costs
BEIS,UKRI - AHRC,07/01/2019,Contract Staff,PSU Project Office,Alexander Mann Solutions Ltd,98357394,1194.26,Contract Staff
BEIS,UKRI - AHRC,07/01/2019,Agency Staff,IS,Alexander Mann Solutions Ltd,98364863,-14021.62,Agency Staff
BEIS,UKRI - AHRC,07/01/2019,Contract Staff,PSU Project Office,Alexander Mann Solutions Ltd,98366816,2985.66,Contract Staff
BEIS,UKRI - AHRC,07/01/2019,Contract Staff,PSU Project Office,Alexander Mann Solutions Ltd,98372364,2985.66,Contract Staff
BEIS,UKRI - AHRC,07/01/2019,Contract Staff,PSU JRS,Alexander Mann Solutions Ltd,98375446,2684.69,Contract Staff
BEIS,UKRI - AHRC,07/01/2019,Contract Staff,PSU Project Office,Alexander Mann Solutions Ltd,98375459,2985.66,Contract Staff
BEIS,UKRI - AHRC,07/01/2019,Contract Staff,PSU Project Office,Alexander Mann Solutions Ltd,98376501,2985.66,Contract Staff
BEIS,UKRI - AHRC,10/01/2019,Contract Staff,PSU JRS,Alexander Mann Solutions Ltd,98311605,987.20,Contract Staff
BEIS,UKRI - AHRC,10/01/2019,Contract Staff,PSU JRS,Alexander Mann Solutions Ltd,98311605,1697.49,Contract Staff
BEIS,UKRI - AHRC,10/01/2019,Contract Staff,PSU JRS,Alexander Mann Solutions Ltd,98315039,722.02,Contract Staff
BEIS,UKRI - AHRC,10/01/2019,Contract Staff,PSU JRS,Alexander Mann Solutions Ltd,98315039,1962.67,Contract Staff
BEIS,UKRI - AHRC,14/01/2019,Contract Staff,PSU Project Office,Alexander Mann Solutions Ltd,98331236,3766.62,Contract Staff
BEIS,UKRI - AHRC,14/01/2019,Contract Staff,PSU Project Office,Alexander Mann Solutions Ltd,98338875,3766.62,Contract Staff
BEIS,UKRI - AHRC,14/01/2019,Contract Staff,PSU Project Office,Alexander Mann Solutions Ltd,98347807,2259.97,Contract Staff
BEIS,UKRI - AHRC,14/01/2019,Contract Staff,PSU Project Office,Alexander Mann Solutions Ltd,98371505,5273.27,Contract Staff
BEIS,UKRI - AHRC,14/01/2019,Contract Staff,PSU Project Office,Alexander Mann Solutions Ltd,98375468,3766.62,Contract Staff
BEIS,UKRI - AHRC,14/01/2019,Contract Staff,PSU Project Office,Alexander Mann Solutions Ltd,98376433,3766.62,Contract Staff
BEIS,UKRI - AHRC,21/01/2019,Contract Staff,PSU Project Office,Alexander Mann Solutions Ltd,98387083,2985.66,Contract Staff
BEIS,UKRI - AHRC,21/01/2019,Contract Staff,PSU JRS,Alexander Mann Solutions Ltd,98387690,2684.69,Contract Staff
BEIS,UKRI - AHRC,23/01/2019,Contract Staff,PSU JRS,Alexander Mann Solutions Ltd,98389741,2684.69,Contract Staff
BEIS,UKRI - AHRC,23/01/2019,Contract Staff,PSU Project Office,Alexander Mann Solutions Ltd,98389746,2259.97,Contract Staff
BEIS,UKRI - AHRC,23/01/2019,Contract Staff,PSU Project Office,Alexander Mann Solutions Ltd,98389756,3582.79,Contract Staff
BEIS,UKRI - AHRC,29/01/2019,Contract Staff,PSU Project Office,Alexander Mann Solutions Ltd,98311609,2445.17,Contract Staff
BEIS,UKRI - AHRC,29/01/2019,Contract Staff,PSU Project Office,Alexander Mann Solutions Ltd,98311609,32.40,Contract Staff
BEIS,UKRI - AHRC,29/01/2019,Contract Staff,PSU Project Office,Alexander Mann Solutions Ltd,98315042,2942.11,Contract Staff
BEIS,UKRI - AHRC,29/01/2019,Contract Staff,PSU Project Office,Alexander Mann Solutions Ltd,98321476,3096.96,Contract Staff
BEIS,UKRI - AHRC,29/01/2019,Contract Staff,PSU Project Office,Alexander Mann Solutions Ltd,98337451,3096.96,Contract Staff
BEIS,UKRI - AHRC,29/01/2019,Contract Staff,PSU Project Office,Alexander Mann Solutions Ltd,98347886,3096.96,Contract Staff
BEIS,UKRI - AHRC,29/01/2019,Contract Staff,PSU Project Office,Alexander Mann Solutions Ltd,98357405,3096.96,Contract Staff
BEIS,UKRI - AHRC,29/01/2019,Contract Staff,PSU Project Office,Alexander Mann Solutions Ltd,98366808,2787.26,Contract Staff
BEIS,UKRI - AHRC,29/01/2019,Contract Staff,PSU Project Office,Alexander Mann Solutions Ltd,98371683,3096.96,Contract Staff
BEIS,UKRI - AHRC,29/01/2019,Contract Staff,PSU Project Office,Alexander Mann Solutions Ltd,98375472,3096.96,Contract Staff
BEIS,UKRI - AHRC,29/01/2019,Contract Staff,PSU Project Office,Alexander Mann Solutions Ltd,98376466,3096.96,Contract Staff
BEIS,UKRI - AHRC,29/01/2019,Contract Staff,PSU Project Office,Alexander Mann Solutions Ltd,98392781,2985.66,Contract Staff
BEIS,UKRI - AHRC,14/01/2019,Provisions ( Food etc),HR,Banner Group Ltd,98381717,20.59,Provisions ( Food etc)
BEIS,UKRI - AHRC,14/01/2019,Purchase of non capital equipment,HR,Banner Group Ltd,98381717,11.65,Purchase of non capital equipment
BEIS,UKRI - AHRC,14/01/2019,Provisions ( Food etc),HR,Banner Group Ltd,98381718,7.48,Provisions ( Food etc)
BEIS,UKRI - AHRC,14/01/2019,Provisions ( Food etc),HR,Banner Group Ltd,98381718,20.59,Provisions ( Food etc)
BEIS,UKRI - AHRC,14/01/2019,Purchase of non capital equipment,HR,Banner Group Ltd,98381718,24.00,Purchase of non capital equipment
BEIS,UKRI - AHRC,22/01/2019,Training Awards - Postgraduates,Collabrative Doctoral Grants - Block Payment,Bath Spa University,98378309,4963.75,Training Awards - Postgraduates
BEIS,UKRI - AHRC,22/01/2019,Training Awards - Postgraduates,Collabrative Doctoral Grants - Block Payment,Bath Spa University,98378460,-118.85,Training Awards - Postgraduates
BEIS,UKRI - AHRC,02/01/2019,Meetings & Catering,Creative Arts & Digital Humanities,Baxter Storey Ltd,98374947,227.16,Meetings & Catering
BEIS,UKRI - AHRC,02/01/2019,Meetings & Catering,GCRF - Programme Delivery,Baxter Storey Ltd,98374947,700.02,Meetings & Catering
BEIS,UKRI - AHRC,02/01/2019,Meetings & Catering,SMT,Baxter Storey Ltd,98374947,110.10,Meetings & Catering
BEIS,UKRI - AHRC,31/01/2019,Meetings & Catering,SMT,Baxter Storey Ltd,98394511,60.30,Meetings & Catering
BEIS,UKRI - AHRC,22/01/2019,Training Awards - Postgraduates,Collabrative Doctoral Grants - Block Payment,Birkbeck College,98378302,5463.75,Training Awards - Postgraduates
BEIS,UKRI - AHRC,22/01/2019,Training Awards - Postgraduates,Collabrative Doctoral Grants - Block Payment,Birkbeck College,98378337,5463.75,Training Awards - Postgraduates
BEIS,UKRI - AHRC,22/01/2019,Training Awards - Postgraduates,Collabrative Doctoral Grants - Block Payment,Birkbeck College,98378349,5473.00,Training Awards - Postgraduates
BEIS,UKRI - AHRC,22/01/2019,Training Awards - Postgraduates,Collabrative Doctoral Grants - Block Payment,Birkbeck College,98378369,5473.00,Training Awards - Postgraduates
BEIS,UKRI - AHRC,22/01/2019,Training Awards - Postgraduates,Collabrative Doctoral Grants - Block Payment,Birkbeck College,98378377,5473.00,Training Awards - Postgraduates
BEIS,UKRI - AHRC,22/01/2019,Training Awards - Postgraduates,Collabrative Doctoral Grants - Block Payment,Birkbeck College,98378417,5446.75,Training Awards - Postgraduates
BEIS,UKRI - AHRC,22/01/2019,Training Awards - Postgraduates,Collabrative Doctoral Grants - Block Payment,Birkbeck College,98378417,5446.75,Training Awards - Postgraduates
BEIS,UKRI - AHRC,17/01/2019,Conferences & Seminars,PSU Project Office,Calder Conference Ltd,98381573,660.00,Conferences & Seminars
BEIS,UKRI - AHRC,22/01/2019,Training Awards - Postgraduates,Collabrative Doctoral Grants - Block Payment,Cardiff University,98378296,4963.75,Training Awards - Postgraduates
BEIS,UKRI - AHRC,22/01/2019,Training Awards - Postgraduates,Collabrative Doctoral Grants - Block Payment,Cardiff University,98378383,4973.00,Training Awards - Postgraduates
BEIS,UKRI - AHRC,15/01/2019,Voluntary Deductions,Balance Sheet,Chargive,98382418,7.00,Voluntary Deductions
BEIS,UKRI - AHRC,22/01/2019,Training Awards - Postgraduates,Collabrative Doctoral Grants - Block Payment,"City, University of London",98378335,5463.75,Training Awards - Postgraduates
BEIS,UKRI - AHRC,22/01/2019,Training Awards - Postgraduates,Collabrative Doctoral Grants - Block Payment,"City, University of London",98378335,5463.75,Training Awards - Postgraduates
BEIS,UKRI - AHRC,15/01/2019,Voluntary Deductions,Balance Sheet,Civil Service Benevolent Fund,98382417,3.00,Voluntary Deductions
BEIS,UKRI - AHRC,08/01/2019,Research Grant Expenditure,Creative Arts & Digital Humanities,Clore Leadership Programme,98378236,36585.24,Research Grant Expenditure
BEIS,UKRI - AHRC,08/01/2019,Staff Training,Corporate Services,Corinium Human Resource Management Ltd,98378113,1151.28,Staff Training
BEIS,UKRI - AHRC,09/01/2019,Non-staff travel and subsistance,"Languages,Literature & International Engagement",Corporate Travel Management (North) Ltd,98379365,0.50,Non-staff travel and subsistance
BEIS,UKRI - AHRC,09/01/2019,Non-staff travel and subsistance,"Languages,Literature & International Engagement",Corporate Travel Management (North) Ltd,98379365,41.50,Non-staff travel and subsistance
BEIS,UKRI - AHRC,09/01/2019,Non-staff travel and subsistance,"Languages,Literature & International Engagement",Corporate Travel Management (North) Ltd,98379365,0.10,Non-staff travel and subsistance
BEIS,UKRI - AHRC,09/01/2019,Non-staff travel and subsistance,Newton Programme Delivery,Corporate Travel Management (North) Ltd,98379365,0.50,Non-staff travel and subsistance
BEIS,UKRI - AHRC,09/01/2019,Non-staff travel and subsistance,Newton Programme Delivery,Corporate Travel Management (North) Ltd,98379365,310.00,Non-staff travel and subsistance
BEIS,UKRI - AHRC,09/01/2019,Non-staff travel and subsistance,Newton Programme Delivery,Corporate Travel Management (North) Ltd,98379365,0.50,Non-staff travel and subsistance
BEIS,UKRI - AHRC,09/01/2019,Non-staff travel and subsistance,Newton Programme Delivery,Corporate Travel Management (North) Ltd,98379365,310.00,Non-staff travel and subsistance
BEIS,UKRI - AHRC,09/01/2019,Non-staff travel and subsistance,Newton Programme Delivery,Corporate Travel Management (North) Ltd,98379365,0.50,Non-staff travel and subsistance
BEIS,UKRI - AHRC,09/01/2019,Non-staff travel and subsistance,Newton Programme Delivery,Corporate Travel Management (North) Ltd,98379365,155.00,Non-staff travel and subsistance
BEIS,UKRI - AHRC,09/01/2019,Non-staff travel and subsistance,Newton Programme Delivery,Corporate Travel Management (North) Ltd,98379365,0.50,Non-staff travel and subsistance
BEIS,UKRI - AHRC,09/01/2019,Non-staff travel and subsistance,Newton Programme Delivery,Corporate Travel Management (North) Ltd,98379365,1.44,Non-staff travel and subsistance
BEIS,UKRI - AHRC,09/01/2019,Non-staff travel and subsistance,Newton Programme Delivery,Corporate Travel Management (North) Ltd,98379365,155.00,Non-staff travel and subsistance
BEIS,UKRI - AHRC,09/01/2019,Non-staff travel and subsistance,Newton Programme Delivery,Corporate Travel Management (North) Ltd,98379365,0.69,Non-staff travel and subsistance
BEIS,UKRI - AHRC,09/01/2019,T&S Overseas - Accommodation,HR,Corporate Travel Management (North) Ltd,98379365,0.50,T&S Overseas - Accommodation
BEIS,UKRI - AHRC,09/01/2019,T&S Overseas - Accommodation,HR,Corporate Travel Management (North) Ltd,98379365,0.10,T&S Overseas - Accommodation
BEIS,UKRI - AHRC,09/01/2019,T&S Overseas - Flights,Creative Arts & Digital Humanities,Corporate Travel Management (North) Ltd,98379365,229.74,T&S Overseas - Flights
BEIS,UKRI - AHRC,09/01/2019,T&S Overseas - Flights,Newton Programme Delivery,Corporate Travel Management (North) Ltd,98379365,264.30,T&S Overseas - Flights
BEIS,UKRI - AHRC,09/01/2019,T&S Overseas - Flights,Newton Programme Delivery,Corporate Travel Management (North) Ltd,98379365,1065.21,T&S Overseas - Flights
BEIS,UKRI - AHRC,09/01/2019,T&S Overseas - Flights,Newton Programme Delivery,Corporate Travel Management (North) Ltd,98379365,986.21,T&S Overseas - Flights
BEIS,UKRI - AHRC,09/01/2019,T&S Overseas - Flights,Newton Programme Delivery,Corporate Travel Management (North) Ltd,98379365,504.22,T&S Overseas - Flights
BEIS,UKRI - AHRC,09/01/2019,T&S UK - Accommodation,Business Process & Analysis,Corporate Travel Management (North) Ltd,98379365,0.50,T&S UK - Accommodation
BEIS,UKRI - AHRC,09/01/2019,T&S UK - Accommodation,Business Process & Analysis,Corporate Travel Management (North) Ltd,98379365,48.00,T&S UK - Accommodation
BEIS,UKRI - AHRC,09/01/2019,T&S UK - Accommodation,Business Process & Analysis,Corporate Travel Management (North) Ltd,98379365,0.50,T&S UK - Accommodation
BEIS,UKRI - AHRC,09/01/2019,T&S UK - Accommodation,Business Process & Analysis,Corporate Travel Management (North) Ltd,98379365,48.00,T&S UK - Accommodation
BEIS,UKRI - AHRC,09/01/2019,T&S UK - Accommodation,Business Process & Analysis,Corporate Travel Management (North) Ltd,98379365,0.50,T&S UK - Accommodation
BEIS,UKRI - AHRC,09/01/2019,T&S UK - Accommodation,Business Process & Analysis,Corporate Travel Management (North) Ltd,98379365,48.00,T&S UK - Accommodation
BEIS,UKRI - AHRC,09/01/2019,T&S UK - Accommodation,Business Process & Analysis,Corporate Travel Management (North) Ltd,98379365,0.30,T&S UK - Accommodation
BEIS,UKRI - AHRC,09/01/2019,T&S UK - Accommodation,Communications,Corporate Travel Management (North) Ltd,98379365,0.50,T&S UK - Accommodation
BEIS,UKRI - AHRC,09/01/2019,T&S UK - Accommodation,Communications,Corporate Travel Management (North) Ltd,98379365,51.00,T&S UK - Accommodation
BEIS,UKRI - AHRC,09/01/2019,T&S UK - Accommodation,Communications,Corporate Travel Management (North) Ltd,98379365,0.10,T&S UK - Accommodation
BEIS,UKRI - AHRC,09/01/2019,T&S UK - Accommodation,Creative Arts & Digital Humanities,Corporate Travel Management (North) Ltd,98379365,0.50,T&S UK - Accommodation
BEIS,UKRI - AHRC,09/01/2019,T&S UK - Accommodation,Creative Arts & Digital Humanities,Corporate Travel Management (North) Ltd,98379365,88.40,T&S UK - Accommodation
BEIS,UKRI - AHRC,09/01/2019,T&S UK - Accommodation,Creative Arts & Digital Humanities,Corporate Travel Management (North) Ltd,98379365,0.50,T&S UK - Accommodation
BEIS,UKRI - AHRC,09/01/2019,T&S UK - Accommodation,Creative Arts & Digital Humanities,Corporate Travel Management (North) Ltd,98379365,69.00,T&S UK - Accommodation
BEIS,UKRI - AHRC,09/01/2019,T&S UK - Accommodation,Creative Arts & Digital Humanities,Corporate Travel Management (North) Ltd,98379365,0.50,T&S UK - Accommodation
BEIS,UKRI - AHRC,09/01/2019,T&S UK - Accommodation,Creative Arts & Digital Humanities,Corporate Travel Management (North) Ltd,98379365,77.00,T&S UK - Accommodation
BEIS,UKRI - AHRC,09/01/2019,T&S UK - Accommodation,Creative Arts & Digital Humanities,Corporate Travel Management (North) Ltd,98379365,0.30,T&S UK - Accommodation
BEIS,UKRI - AHRC,09/01/2019,T&S UK - Accommodation,HR,Corporate Travel Management (North) Ltd,98379365,0.50,T&S UK - Accommodation
BEIS,UKRI - AHRC,09/01/2019,T&S UK - Accommodation,HR,Corporate Travel Management (North) Ltd,98379365,181.00,T&S UK - Accommodation
BEIS,UKRI - AHRC,09/01/2019,T&S UK - Accommodation,HR,Corporate Travel Management (North) Ltd,98379365,0.10,T&S UK - Accommodation
BEIS,UKRI - AHRC,09/01/2019,T&S UK - Accommodation,"Histories,Culture & Heritage",Corporate Travel Management (North) Ltd,98379365,0.50,T&S UK - Accommodation
BEIS,UKRI - AHRC,09/01/2019,T&S UK - Accommodation,"Histories,Culture & Heritage",Corporate Travel Management (North) Ltd,98379365,365.60,T&S UK - Accommodation
BEIS,UKRI - AHRC,09/01/2019,T&S UK - Accommodation,"Histories,Culture & Heritage",Corporate Travel Management (North) Ltd,98379365,0.10,T&S UK - Accommodation
BEIS,UKRI - AHRC,09/01/2019,T&S UK - Accommodation,Industrial Strategy Challenge Fund (ISCF) - Creative Clusters,Corporate Travel Management (North) Ltd,98379365,0.50,T&S UK - Accommodation
BEIS,UKRI - AHRC,09/01/2019,T&S UK - Accommodation,Industrial Strategy Challenge Fund (ISCF) - Creative Clusters,Corporate Travel Management (North) Ltd,98379365,89.00,T&S UK - Accommodation
BEIS,UKRI - AHRC,09/01/2019,T&S UK - Accommodation,Industrial Strategy Challenge Fund (ISCF) - Creative Clusters,Corporate Travel Management (North) Ltd,98379365,0.50,T&S UK - Accommodation
BEIS,UKRI - AHRC,09/01/2019,T&S UK - Accommodation,Industrial Strategy Challenge Fund (ISCF) - Creative Clusters,Corporate Travel Management (North) Ltd,98379365,50.25,T&S UK - Accommodation
BEIS,UKRI - AHRC,09/01/2019,T&S UK - Accommodation,Industrial Strategy Challenge Fund (ISCF) - Creative Clusters,Corporate Travel Management (North) Ltd,98379365,0.20,T&S UK - Accommodation
BEIS,UKRI - AHRC,09/01/2019,T&S UK - Accommodation,International,Corporate Travel Management (North) Ltd,98379365,0.50,T&S UK - Accommodation
BEIS,UKRI - AHRC,09/01/2019,T&S UK - Accommodation,International,Corporate Travel Management (North) Ltd,98379365,64.00,T&S UK - Accommodation
BEIS,UKRI - AHRC,09/01/2019,T&S UK - Accommodation,International,Corporate Travel Management (North) Ltd,98379365,0.10,T&S UK - Accommodation
BEIS,UKRI - AHRC,09/01/2019,T&S UK - Accommodation,SMT,Corporate Travel Management (North) Ltd,98379365,0.50,T&S UK - Accommodation
BEIS,UKRI - AHRC,09/01/2019,T&S UK - Accommodation,SMT,Corporate Travel Management (North) Ltd,98379365,85.00,T&S UK - Accommodation
BEIS,UKRI - AHRC,09/01/2019,T&S UK - Accommodation,SMT,Corporate Travel Management (North) Ltd,98379365,0.50,T&S UK - Accommodation
BEIS,UKRI - AHRC,09/01/2019,T&S UK - Accommodation,SMT,Corporate Travel Management (North) Ltd,98379365,65.00,T&S UK - Accommodation
BEIS,UKRI - AHRC,09/01/2019,T&S UK - Accommodation,SMT,Corporate Travel Management (North) Ltd,98379365,0.50,T&S UK - Accommodation
BEIS,UKRI - AHRC,09/01/2019,T&S UK - Accommodation,SMT,Corporate Travel Management (North) Ltd,98379365,206.00,T&S UK - Accommodation
BEIS,UKRI - AHRC,09/01/2019,T&S UK - Accommodation,SMT,Corporate Travel Management (North) Ltd,98379365,0.50,T&S UK - Accommodation
BEIS,UKRI - AHRC,09/01/2019,T&S UK - Accommodation,SMT,Corporate Travel Management (North) Ltd,98379365,206.00,T&S UK - Accommodation
BEIS,UKRI - AHRC,09/01/2019,T&S UK - Accommodation,SMT,Corporate Travel Management (North) Ltd,98379365,0.50,T&S UK - Accommodation
BEIS,UKRI - AHRC,09/01/2019,T&S UK - Accommodation,SMT,Corporate Travel Management (North) Ltd,98379365,65.00,T&S UK - Accommodation
BEIS,UKRI - AHRC,09/01/2019,T&S UK - Accommodation,SMT,Corporate Travel Management (North) Ltd,98379365,0.50,T&S UK - Accommodation
BEIS,UKRI - AHRC,09/01/2019,T&S UK - Accommodation,Secretariat,Corporate Travel Management (North) Ltd,98379365,0.50,T&S UK - Accommodation
BEIS,UKRI - AHRC,09/01/2019,T&S UK - Accommodation,Secretariat,Corporate Travel Management (North) Ltd,98379365,155.00,T&S UK - Accommodation
BEIS,UKRI - AHRC,09/01/2019,T&S UK - Accommodation,Secretariat,Corporate Travel Management (North) Ltd,98379365,0.50,T&S UK - Accommodation
BEIS,UKRI - AHRC,09/01/2019,T&S UK - Accommodation,Secretariat,Corporate Travel Management (North) Ltd,98379365,206.00,T&S UK - Accommodation
BEIS,UKRI - AHRC,09/01/2019,T&S UK - Accommodation,Secretariat,Corporate Travel Management (North) Ltd,98379365,0.50,T&S UK - Accommodation
BEIS,UKRI - AHRC,09/01/2019,T&S UK - Accommodation,Secretariat,Corporate Travel Management (North) Ltd,98379365,206.00,T&S UK - Accommodation
BEIS,UKRI - AHRC,09/01/2019,T&S UK - Accommodation,Secretariat,Corporate Travel Management (North) Ltd,98379365,0.50,T&S UK - Accommodation
BEIS,UKRI - AHRC,09/01/2019,T&S UK - Accommodation,Secretariat,Corporate Travel Management (North) Ltd,98379365,1.44,T&S UK - Accommodation
BEIS,UKRI - AHRC,09/01/2019,T&S UK - Accommodation,Secretariat,Corporate Travel Management (North) Ltd,98379365,206.00,T&S UK - Accommodation
BEIS,UKRI - AHRC,09/01/2019,T&S UK - Accommodation,Secretariat,Corporate Travel Management (North) Ltd,98379365,0.69,T&S UK - Accommodation
BEIS,UKRI - AHRC,09/01/2019,T&S UK - Flights,Industrial Strategy Challenge Fund (ISCF) - Creative Clusters,Corporate Travel Management (North) Ltd,98379365,58.32,T&S UK - Flights
BEIS,UKRI - AHRC,09/01/2019,T&S UK - Flights,PSU Project Office,Corporate Travel Management (North) Ltd,98379365,104.19,T&S UK - Flights
BEIS,UKRI - AHRC,09/01/2019,T&S UK - Flights,PSU Project Office,Corporate Travel Management (North) Ltd,98379365,2.16,T&S UK - Flights
BEIS,UKRI - AHRC,09/01/2019,T&S UK - Flights,PSU Project Office,Corporate Travel Management (North) Ltd,98379365,18.95,T&S UK - Flights
BEIS,UKRI - AHRC,09/01/2019,T&S UK - Flights,PSU Project Office,Corporate Travel Management (North) Ltd,98379365,164.21,T&S UK - Flights
BEIS,UKRI - AHRC,09/01/2019,T&S UK - Flights,PSU Project Office,Corporate Travel Management (North) Ltd,98379365,61.99,T&S UK - Flights
BEIS,UKRI - AHRC,09/01/2019,T&S UK - Flights,PSU Project Office,Corporate Travel Management (North) Ltd,98379365,61.99,T&S UK - Flights
BEIS,UKRI - AHRC,09/01/2019,T&S UK - Flights,PSU Project Office,Corporate Travel Management (North) Ltd,98379365,164.21,T&S UK - Flights
BEIS,UKRI - AHRC,09/01/2019,T&S UK - Flights,PSU Project Office,Corporate Travel Management (North) Ltd,98379365,164.21,T&S UK - Flights
BEIS,UKRI - AHRC,09/01/2019,T&S UK - Flights,PSU Project Office,Corporate Travel Management (North) Ltd,98379365,50.77,T&S UK - Flights
BEIS,UKRI - AHRC,09/01/2019,T&S UK - Flights,PSU Project Office,Corporate Travel Management (North) Ltd,98379365,79.77,T&S UK - Flights
BEIS,UKRI - AHRC,09/01/2019,T&S UK - Public Transport,Business Process & Analysis,Corporate Travel Management (North) Ltd,98379365,54.50,T&S UK - Public Transport
BEIS,UKRI - AHRC,09/01/2019,T&S UK - Public Transport,Business Process & Analysis,Corporate Travel Management (North) Ltd,98379365,-69.80,T&S UK - Public Transport
BEIS,UKRI - AHRC,09/01/2019,T&S UK - Public Transport,Communications,Corporate Travel Management (North) Ltd,98379365,194.80,T&S UK - Public Transport
BEIS,UKRI - AHRC,09/01/2019,T&S UK - Public Transport,Communications,Corporate Travel Management (North) Ltd,98379365,97.45,T&S UK - Public Transport
BEIS,UKRI - AHRC,09/01/2019,T&S UK - Public Transport,Communications,Corporate Travel Management (North) Ltd,98379365,-47.60,T&S UK - Public Transport
BEIS,UKRI - AHRC,09/01/2019,T&S UK - Public Transport,Communications,Corporate Travel Management (North) Ltd,98379365,97.45,T&S UK - Public Transport
BEIS,UKRI - AHRC,09/01/2019,T&S UK - Public Transport,Communications,Corporate Travel Management (North) Ltd,98379365,145.80,T&S UK - Public Transport
BEIS,UKRI - AHRC,09/01/2019,T&S UK - Public Transport,Communications,Corporate Travel Management (North) Ltd,98379365,13.90,T&S UK - Public Transport
BEIS,UKRI - AHRC,09/01/2019,T&S UK - Public Transport,Communications,Corporate Travel Management (North) Ltd,98379365,63.20,T&S UK - Public Transport
BEIS,UKRI - AHRC,09/01/2019,T&S UK - Public Transport,Communications,Corporate Travel Management (North) Ltd,98379365,79.80,T&S UK - Public Transport
BEIS,UKRI - AHRC,09/01/2019,T&S UK - Public Transport,Communications,Corporate Travel Management (North) Ltd,98379365,72.60,T&S UK - Public Transport
BEIS,UKRI - AHRC,09/01/2019,T&S UK - Public Transport,Communications,Corporate Travel Management (North) Ltd,98379365,48.40,T&S UK - Public Transport
BEIS,UKRI - AHRC,09/01/2019,T&S UK - Public Transport,Communications,Corporate Travel Management (North) Ltd,98379365,72.60,T&S UK - Public Transport
BEIS,UKRI - AHRC,09/01/2019,T&S UK - Public Transport,Communications,Corporate Travel Management (North) Ltd,98379365,48.40,T&S UK - Public Transport
BEIS,UKRI - AHRC,09/01/2019,T&S UK - Public Transport,Communications,Corporate Travel Management (North) Ltd,98379365,184.00,T&S UK - Public Transport
BEIS,UKRI - AHRC,09/01/2019,T&S UK - Public Transport,Communications,Corporate Travel Management (North) Ltd,98379365,184.00,T&S UK - Public Transport
BEIS,UKRI - AHRC,09/01/2019,T&S UK - Public Transport,Communications,Corporate Travel Management (North) Ltd,98379365,1.00,T&S UK - Public Transport
BEIS,UKRI - AHRC,09/01/2019,T&S UK - Public Transport,Communications,Corporate Travel Management (North) Ltd,98379365,69.20,T&S UK - Public Transport
BEIS,UKRI - AHRC,09/01/2019,T&S UK - Public Transport,Communications,Corporate Travel Management (North) Ltd,98379365,24.80,T&S UK - Public Transport
BEIS,UKRI - AHRC,09/01/2019,T&S UK - Public Transport,Communications,Corporate Travel Management (North) Ltd,98379365,1.00,T&S UK - Public Transport
BEIS,UKRI - AHRC,09/01/2019,T&S UK - Public Transport,Communications,Corporate Travel Management (North) Ltd,98379365,139.60,T&S UK - Public Transport
BEIS,UKRI - AHRC,09/01/2019,T&S UK - Public Transport,Creative Arts & Digital Humanities,Corporate Travel Management (North) Ltd,98379365,1.00,T&S UK - Public Transport
BEIS,UKRI - AHRC,09/01/2019,T&S UK - Public Transport,Creative Arts & Digital Humanities,Corporate Travel Management (North) Ltd,98379365,124.30,T&S UK - Public Transport
BEIS,UKRI - AHRC,09/01/2019,T&S UK - Public Transport,Creative Arts & Digital Humanities,Corporate Travel Management (North) Ltd,98379365,1.00,T&S UK - Public Transport
BEIS,UKRI - AHRC,09/01/2019,T&S UK - Public Transport,Creative Arts & Digital Humanities,Corporate Travel Management (North) Ltd,98379365,121.80,T&S UK - Public Transport
BEIS,UKRI - AHRC,09/01/2019,T&S UK - Public Transport,Creative Arts & Digital Humanities,Corporate Travel Management (North) Ltd,98379365,1.00,T&S UK - Public Transport
BEIS,UKRI - AHRC,09/01/2019,T&S UK - Public Transport,Creative Arts & Digital Humanities,Corporate Travel Management (North) Ltd,98379365,92.15,T&S UK - Public Transport
BEIS,UKRI - AHRC,09/01/2019,T&S UK - Public Transport,Creative Arts & Digital Humanities,Corporate Travel Management (North) Ltd,98379365,1.00,T&S UK - Public Transport
BEIS,UKRI - AHRC,09/01/2019,T&S UK - Public Transport,Creative Arts & Digital Humanities,Corporate Travel Management (North) Ltd,98379365,160.30,T&S UK - Public Transport
BEIS,UKRI - AHRC,09/01/2019,T&S UK - Public Transport,Finance,Corporate Travel Management (North) Ltd,98379365,23.00,T&S UK - Public Transport
BEIS,UKRI - AHRC,09/01/2019,T&S UK - Public Transport,Fund for International Collaboration,Corporate Travel Management (North) Ltd,98379365,-36.20,T&S UK - Public Transport
BEIS,UKRI - AHRC,09/01/2019,T&S UK - Public Transport,GCRF - Programme Delivery,Corporate Travel Management (North) Ltd,98379365,-47.60,T&S UK - Public Transport
BEIS,UKRI - AHRC,09/01/2019,T&S UK - Public Transport,HR,Corporate Travel Management (North) Ltd,98379365,1.00,T&S UK - Public Transport
BEIS,UKRI - AHRC,09/01/2019,T&S UK - Public Transport,HR,Corporate Travel Management (North) Ltd,98379365,46.00,T&S UK - Public Transport
BEIS,UKRI - AHRC,09/01/2019,T&S UK - Public Transport,HR,Corporate Travel Management (North) Ltd,98379365,1.00,T&S UK - Public Transport
BEIS,UKRI - AHRC,09/01/2019,T&S UK - Public Transport,HR,Corporate Travel Management (North) Ltd,98379365,46.00,T&S UK - Public Transport
BEIS,UKRI - AHRC,09/01/2019,T&S UK - Public Transport,HR,Corporate Travel Management (North) Ltd,98379365,1.00,T&S UK - Public Transport
BEIS,UKRI - AHRC,09/01/2019,T&S UK - Public Transport,HR,Corporate Travel Management (North) Ltd,98379365,146.30,T&S UK - Public Transport
BEIS,UKRI - AHRC,09/01/2019,T&S UK - Public Transport,HR,Corporate Travel Management (North) Ltd,98379365,171.60,T&S UK - Public Transport
BEIS,UKRI - AHRC,09/01/2019,T&S UK - Public Transport,"Histories,Culture & Heritage",Corporate Travel Management (North) Ltd,98379365,1.00,T&S UK - Public Transport
BEIS,UKRI - AHRC,09/01/2019,T&S UK - Public Transport,"Histories,Culture & Heritage",Corporate Travel Management (North) Ltd,98379365,164.00,T&S UK - Public Transport
BEIS,UKRI - AHRC,09/01/2019,T&S UK - Public Transport,"Histories,Culture & Heritage",Corporate Travel Management (North) Ltd,98379365,2.00,T&S UK - Public Transport
BEIS,UKRI - AHRC,09/01/2019,T&S UK - Public Transport,"Histories,Culture & Heritage",Corporate Travel Management (North) Ltd,98379365,23.00,T&S UK - Public Transport
BEIS,UKRI - AHRC,09/01/2019,T&S UK - Public Transport,"Histories,Culture & Heritage",Corporate Travel Management (North) Ltd,98379365,139.60,T&S UK - Public Transport
BEIS,UKRI - AHRC,09/01/2019,T&S UK - Public Transport,IS,Corporate Travel Management (North) Ltd,98379365,111.00,T&S UK - Public Transport
BEIS,UKRI - AHRC,09/01/2019,T&S UK - Public Transport,Industrial Strategy Challenge Fund (ISCF) - Creative Clusters,Corporate Travel Management (North) Ltd,98379365,1.00,T&S UK - Public Transport
BEIS,UKRI - AHRC,09/01/2019,T&S UK - Public Transport,Industrial Strategy Challenge Fund (ISCF) - Creative Clusters,Corporate Travel Management (North) Ltd,98379365,21.00,T&S UK - Public Transport
BEIS,UKRI - AHRC,09/01/2019,T&S UK - Public Transport,Industrial Strategy Challenge Fund (ISCF) - Creative Clusters,Corporate Travel Management (North) Ltd,98379365,139.60,T&S UK - Public Transport
BEIS,UKRI - AHRC,09/01/2019,T&S UK - Public Transport,Industrial Strategy Challenge Fund (ISCF) - Creative Clusters,Corporate Travel Management (North) Ltd,98379365,1.00,T&S UK - Public Transport
BEIS,UKRI - AHRC,09/01/2019,T&S UK - Public Transport,Industrial Strategy Challenge Fund (ISCF) - Creative Clusters,Corporate Travel Management (North) Ltd,98379365,331.20,T&S UK - Public Transport
BEIS,UKRI - AHRC,09/01/2019,T&S UK - Public Transport,Industrial Strategy Challenge Fund (ISCF) - Creative Clusters,Corporate Travel Management (North) Ltd,98379365,1.00,T&S UK - Public Transport
BEIS,UKRI - AHRC,09/01/2019,T&S UK - Public Transport,Industrial Strategy Challenge Fund (ISCF) - Creative Clusters,Corporate Travel Management (North) Ltd,98379365,26.80,T&S UK - Public Transport
BEIS,UKRI - AHRC,09/01/2019,T&S UK - Public Transport,International,Corporate Travel Management (North) Ltd,98379365,-103.70,T&S UK - Public Transport
BEIS,UKRI - AHRC,09/01/2019,T&S UK - Public Transport,International,Corporate Travel Management (North) Ltd,98379365,-125.70,T&S UK - Public Transport
BEIS,UKRI - AHRC,09/01/2019,T&S UK - Public Transport,"Languages,Literature & International Engagement",Corporate Travel Management (North) Ltd,98379365,2.00,T&S UK - Public Transport
BEIS,UKRI - AHRC,09/01/2019,T&S UK - Public Transport,"Languages,Literature & International Engagement",Corporate Travel Management (North) Ltd,98379365,70.60,T&S UK - Public Transport
BEIS,UKRI - AHRC,09/01/2019,T&S UK - Public Transport,"Languages,Literature & International Engagement",Corporate Travel Management (North) Ltd,98379365,46.80,T&S UK - Public Transport
BEIS,UKRI - AHRC,09/01/2019,T&S UK - Public Transport,"Languages,Literature & International Engagement",Corporate Travel Management (North) Ltd,98379365,100.70,T&S UK - Public Transport
BEIS,UKRI - AHRC,09/01/2019,T&S UK - Public Transport,"Languages,Literature & International Engagement",Corporate Travel Management (North) Ltd,98379365,2.00,T&S UK - Public Transport
BEIS,UKRI - AHRC,09/01/2019,T&S UK - Public Transport,"Languages,Literature & International Engagement",Corporate Travel Management (North) Ltd,98379365,31.30,T&S UK - Public Transport
BEIS,UKRI - AHRC,09/01/2019,T&S UK - Public Transport,"Languages,Literature & International Engagement",Corporate Travel Management (North) Ltd,98379365,11.60,T&S UK - Public Transport
BEIS,UKRI - AHRC,09/01/2019,T&S UK - Public Transport,"Languages,Literature & International Engagement",Corporate Travel Management (North) Ltd,98379365,-21.60,T&S UK - Public Transport
BEIS,UKRI - AHRC,09/01/2019,T&S UK - Public Transport,"Languages,Literature & International Engagement",Corporate Travel Management (North) Ltd,98379365,-6.60,T&S UK - Public Transport
BEIS,UKRI - AHRC,09/01/2019,T&S UK - Public Transport,"Languages,Literature & International Engagement",Corporate Travel Management (North) Ltd,98379365,-134.60,T&S UK - Public Transport
BEIS,UKRI - AHRC,09/01/2019,T&S UK - Public Transport,Newton Programme Delivery,Corporate Travel Management (North) Ltd,98379365,139.60,T&S UK - Public Transport
BEIS,UKRI - AHRC,09/01/2019,T&S UK - Public Transport,Newton Programme Delivery,Corporate Travel Management (North) Ltd,98379365,67.00,T&S UK - Public Transport
BEIS,UKRI - AHRC,09/01/2019,T&S UK - Public Transport,Newton Programme Delivery,Corporate Travel Management (North) Ltd,98379365,60.30,T&S UK - Public Transport
BEIS,UKRI - AHRC,09/01/2019,T&S UK - Public Transport,Newton Programme Delivery,Corporate Travel Management (North) Ltd,98379365,70.60,T&S UK - Public Transport
BEIS,UKRI - AHRC,09/01/2019,T&S UK - Public Transport,Newton Programme Delivery,Corporate Travel Management (North) Ltd,98379365,23.00,T&S UK - Public Transport
BEIS,UKRI - AHRC,09/01/2019,T&S UK - Public Transport,Newton Programme Delivery,Corporate Travel Management (North) Ltd,98379365,139.60,T&S UK - Public Transport
BEIS,UKRI - AHRC,09/01/2019,T&S UK - Public Transport,Newton Programme Delivery,Corporate Travel Management (North) Ltd,98379365,53.45,T&S UK - Public Transport
BEIS,UKRI - AHRC,09/01/2019,T&S UK - Public Transport,PSU Project Office,Corporate Travel Management (North) Ltd,98379365,1.00,T&S UK - Public Transport
BEIS,UKRI - AHRC,09/01/2019,T&S UK - Public Transport,PSU Project Office,Corporate Travel Management (North) Ltd,98379365,20.90,T&S UK - Public Transport
BEIS,UKRI - AHRC,09/01/2019,T&S UK - Public Transport,PSU Project Office,Corporate Travel Management (North) Ltd,98379365,1.00,T&S UK - Public Transport
BEIS,UKRI - AHRC,09/01/2019,T&S UK - Public Transport,PSU Project Office,Corporate Travel Management (North) Ltd,98379365,29.30,T&S UK - Public Transport
BEIS,UKRI - AHRC,09/01/2019,T&S UK - Public Transport,PSU Project Office,Corporate Travel Management (North) Ltd,98379365,146.30,T&S UK - Public Transport
BEIS,UKRI - AHRC,09/01/2019,T&S UK - Public Transport,SMT,Corporate Travel Management (North) Ltd,98379365,2.00,T&S UK - Public Transport
BEIS,UKRI - AHRC,09/01/2019,T&S UK - Public Transport,SMT,Corporate Travel Management (North) Ltd,98379365,132.50,T&S UK - Public Transport
BEIS,UKRI - AHRC,09/01/2019,T&S UK - Public Transport,SMT,Corporate Travel Management (North) Ltd,98379365,27.90,T&S UK - Public Transport
BEIS,UKRI - AHRC,09/01/2019,T&S UK - Public Transport,SMT,Corporate Travel Management (North) Ltd,98379365,1.00,T&S UK - Public Transport
BEIS,UKRI - AHRC,09/01/2019,T&S UK - Public Transport,SMT,Corporate Travel Management (North) Ltd,98379365,12.30,T&S UK - Public Transport
BEIS,UKRI - AHRC,09/01/2019,T&S UK - Public Transport,SMT,Corporate Travel Management (North) Ltd,98379365,24.40,T&S UK - Public Transport
BEIS,UKRI - AHRC,09/01/2019,T&S UK - Public Transport,SMT,Corporate Travel Management (North) Ltd,98379365,1.00,T&S UK - Public Transport
BEIS,UKRI - AHRC,09/01/2019,T&S UK - Public Transport,SMT,Corporate Travel Management (North) Ltd,98379365,74.10,T&S UK - Public Transport
BEIS,UKRI - AHRC,09/01/2019,T&S UK - Public Transport,SMT,Corporate Travel Management (North) Ltd,98379365,2.00,T&S UK - Public Transport
BEIS,UKRI - AHRC,09/01/2019,T&S UK - Public Transport,SMT,Corporate Travel Management (North) Ltd,98379365,12.30,T&S UK - Public Transport
BEIS,UKRI - AHRC,09/01/2019,T&S UK - Public Transport,SMT,Corporate Travel Management (North) Ltd,98379365,12.30,T&S UK - Public Transport
BEIS,UKRI - AHRC,09/01/2019,T&S UK - Public Transport,SMT,Corporate Travel Management (North) Ltd,98379365,1.00,T&S UK - Public Transport
BEIS,UKRI - AHRC,09/01/2019,T&S UK - Public Transport,SMT,Corporate Travel Management (North) Ltd,98379365,88.30,T&S UK - Public Transport
BEIS,UKRI - AHRC,09/01/2019,T&S UK - Public Transport,SMT,Corporate Travel Management (North) Ltd,98379365,1.00,T&S UK - Public Transport
BEIS,UKRI - AHRC,09/01/2019,T&S UK - Public Transport,SMT,Corporate Travel Management (North) Ltd,98379365,92.30,T&S UK - Public Transport
BEIS,UKRI - AHRC,09/01/2019,T&S UK - Public Transport,SMT,Corporate Travel Management (North) Ltd,98379365,-37.80,T&S UK - Public Transport
BEIS,UKRI - AHRC,09/01/2019,T&S UK - Public Transport,SMT,Corporate Travel Management (North) Ltd,98379365,1.00,T&S UK - Public Transport
BEIS,UKRI - AHRC,09/01/2019,T&S UK - Public Transport,SMT,Corporate Travel Management (North) Ltd,98379365,45.00,T&S UK - Public Transport
BEIS,UKRI - AHRC,09/01/2019,T&S UK - Public Transport,SMT,Corporate Travel Management (North) Ltd,98379365,94.70,T&S UK - Public Transport
BEIS,UKRI - AHRC,09/01/2019,T&S UK - Public Transport,SMT,Corporate Travel Management (North) Ltd,98379365,2.00,T&S UK - Public Transport
BEIS,UKRI - AHRC,09/01/2019,T&S UK - Public Transport,SMT,Corporate Travel Management (North) Ltd,98379365,137.40,T&S UK - Public Transport
BEIS,UKRI - AHRC,09/01/2019,T&S UK - Public Transport,SMT,Corporate Travel Management (North) Ltd,98379365,1.00,T&S UK - Public Transport
BEIS,UKRI - AHRC,09/01/2019,T&S UK - Public Transport,SMT,Corporate Travel Management (North) Ltd,98379365,25.50,T&S UK - Public Transport
BEIS,UKRI - AHRC,09/01/2019,T&S UK - Public Transport,SMT,Corporate Travel Management (North) Ltd,98379365,1.00,T&S UK - Public Transport
BEIS,UKRI - AHRC,09/01/2019,T&S UK - Public Transport,SMT,Corporate Travel Management (North) Ltd,98379365,23.40,T&S UK - Public Transport
BEIS,UKRI - AHRC,09/01/2019,T&S UK - Public Transport,SMT,Corporate Travel Management (North) Ltd,98379365,42.80,T&S UK - Public Transport
BEIS,UKRI - AHRC,09/01/2019,T&S UK - Public Transport,SMT,Corporate Travel Management (North) Ltd,98379365,66.80,T&S UK - Public Transport
BEIS,UKRI - AHRC,09/01/2019,T&S UK - Public Transport,SMT,Corporate Travel Management (North) Ltd,98379365,76.00,T&S UK - Public Transport
BEIS,UKRI - AHRC,09/01/2019,T&S UK - Public Transport,SMT,Corporate Travel Management (North) Ltd,98379365,15.50,T&S UK - Public Transport
BEIS,UKRI - AHRC,09/01/2019,T&S UK - Public Transport,SMT,Corporate Travel Management (North) Ltd,98379365,94.70,T&S UK - Public Transport
BEIS,UKRI - AHRC,09/01/2019,T&S UK - Public Transport,SMT,Corporate Travel Management (North) Ltd,98379365,1.00,T&S UK - Public Transport
BEIS,UKRI - AHRC,09/01/2019,T&S UK - Public Transport,SMT,Corporate Travel Management (North) Ltd,98379365,57.10,T&S UK - Public Transport
BEIS,UKRI - AHRC,09/01/2019,T&S UK - Public Transport,SMT,Corporate Travel Management (North) Ltd,98379365,49.80,T&S UK - Public Transport
BEIS,UKRI - AHRC,09/01/2019,T&S UK - Public Transport,SMT,Corporate Travel Management (North) Ltd,98379365,-26.50,T&S UK - Public Transport
BEIS,UKRI - AHRC,09/01/2019,T&S UK - Public Transport,SMT,Corporate Travel Management (North) Ltd,98379365,10.00,T&S UK - Public Transport
BEIS,UKRI - AHRC,09/01/2019,T&S UK - Public Transport,SMT,Corporate Travel Management (North) Ltd,98379365,-123.60,T&S UK - Public Transport
BEIS,UKRI - AHRC,09/01/2019,T&S UK - Public Transport,SMT,Corporate Travel Management (North) Ltd,98379365,1.00,T&S UK - Public Transport
BEIS,UKRI - AHRC,09/01/2019,T&S UK - Public Transport,SMT,Corporate Travel Management (North) Ltd,98379365,133.60,T&S UK - Public Transport
BEIS,UKRI - AHRC,09/01/2019,T&S UK - Public Transport,SMT,Corporate Travel Management (North) Ltd,98379365,128.80,T&S UK - Public Transport
BEIS,UKRI - AHRC,09/01/2019,T&S UK - Public Transport,SMT,Corporate Travel Management (North) Ltd,98379365,1.00,T&S UK - Public Transport
BEIS,UKRI - AHRC,09/01/2019,T&S UK - Public Transport,SMT,Corporate Travel Management (North) Ltd,98379365,274.60,T&S UK - Public Transport
BEIS,UKRI - AHRC,09/01/2019,T&S UK - Public Transport,SMT,Corporate Travel Management (North) Ltd,98379365,94.70,T&S UK - Public Transport
BEIS,UKRI - AHRC,09/01/2019,T&S UK - Public Transport,SMT,Corporate Travel Management (North) Ltd,98379365,94.70,T&S UK - Public Transport
BEIS,UKRI - AHRC,09/01/2019,T&S UK - Public Transport,SMT,Corporate Travel Management (North) Ltd,98379365,1.00,T&S UK - Public Transport
BEIS,UKRI - AHRC,09/01/2019,T&S UK - Public Transport,SMT,Corporate Travel Management (North) Ltd,98379365,133.60,T&S UK - Public Transport
BEIS,UKRI - AHRC,09/01/2019,T&S UK - Public Transport,SMT,Corporate Travel Management (North) Ltd,98379365,1.00,T&S UK - Public Transport
BEIS,UKRI - AHRC,09/01/2019,T&S UK - Public Transport,SMT,Corporate Travel Management (North) Ltd,98379365,132.50,T&S UK - Public Transport
BEIS,UKRI - AHRC,09/01/2019,T&S UK - Public Transport,Secretariat,Corporate Travel Management (North) Ltd,98379365,10.00,T&S UK - Public Transport
BEIS,UKRI - AHRC,09/01/2019,T&S UK - Public Transport,Secretariat,Corporate Travel Management (North) Ltd,98379365,-56.80,T&S UK - Public Transport
BEIS,UKRI - AHRC,09/01/2019,T&S UK - Public Transport,Skills,Corporate Travel Management (North) Ltd,98379365,1.00,T&S UK - Public Transport
BEIS,UKRI - AHRC,09/01/2019,T&S UK - Public Transport,Skills,Corporate Travel Management (North) Ltd,98379365,158.30,T&S UK - Public Transport
BEIS,UKRI - AHRC,09/01/2019,T&S UK - Public Transport,Skills,Corporate Travel Management (North) Ltd,98379365,1.00,T&S UK - Public Transport
BEIS,UKRI - AHRC,09/01/2019,T&S UK - Public Transport,Skills,Corporate Travel Management (North) Ltd,98379365,66.90,T&S UK - Public Transport
BEIS,UKRI - AHRC,09/01/2019,T&S UK - Public Transport,Skills,Corporate Travel Management (North) Ltd,98379365,1.00,T&S UK - Public Transport
BEIS,UKRI - AHRC,09/01/2019,T&S UK - Public Transport,Skills,Corporate Travel Management (North) Ltd,98379365,147.00,T&S UK - Public Transport
BEIS,UKRI - AHRC,09/01/2019,T&S UK - Public Transport,Skills,Corporate Travel Management (North) Ltd,98379365,312.90,T&S UK - Public Transport
BEIS,UKRI - AHRC,22/01/2019,Training Awards - Postgraduates,Collabrative Doctoral Grants - Block Payment,Courtauld Institute of Art,98378316,5463.75,Training Awards - Postgraduates
BEIS,UKRI - AHRC,22/01/2019,Training Awards - Postgraduates,Collabrative Doctoral Grants - Block Payment,Courtauld Institute of Art,98378380,5473.00,Training Awards - Postgraduates
BEIS,UKRI - AHRC,22/01/2019,Training Awards - Postgraduates,Collabrative Doctoral Grants - Block Payment,Courtauld Institute of Art,98378476,-55.00,Training Awards - Postgraduates
BEIS,UKRI - AHRC,22/01/2019,Training Awards - Postgraduates,Collabrative Doctoral Grants - Block Payment,Coventry University,98378286,4963.75,Training Awards - Postgraduates
BEIS,UKRI - AHRC,21/01/2019,Advertising & Promotion,GCRF - Programme Delivery,unspecified,98386105,1643.50,Advertising & Promotion
BEIS,UKRI - AHRC,22/01/2019,Training Awards - Postgraduates,Collabrative Doctoral Grants - Block Payment,De Montfort University,98378375,4973.00,Training Awards - Postgraduates
BEIS,UKRI - AHRC,22/01/2019,Training Awards - Postgraduates,Collabrative Doctoral Grants - Block Payment,De Montfort University,98378385,4973.00,Training Awards - Postgraduates
BEIS,UKRI - AHRC,22/01/2019,Training Awards - Postgraduates,Collabrative Doctoral Grants - Block Payment,De Montfort University,98378439,4946.75,Training Awards - Postgraduates
BEIS,UKRI - AHRC,22/01/2019,Training Awards - Postgraduates,Collabrative Doctoral Grants - Block Payment,De Montfort University,98378441,4946.75,Training Awards - Postgraduates
BEIS,UKRI - AHRC,22/01/2019,Training Awards - Postgraduates,Collabrative Doctoral Grants - Block Payment,De Montfort University,98378441,4946.75,Training Awards - Postgraduates
BEIS,UKRI - AHRC,08/01/2019,Council & Committee Honoraria,"AHRC - Strategic Planning, Evidence & Impact",Dominic Gray,98295698,500.00,Council & Committee Honoraria
BEIS,UKRI - AHRC,16/01/2019,Council & Committee Honoraria,New Programme Development,unspecified,98383111,170.00,Council & Committee Honoraria
BEIS,UKRI - AHRC,08/01/2019,Council & Committee Honoraria,"AHRC - Strategic Planning, Evidence & Impact",unspecified,98295687,500.00,Council & Committee Honoraria
BEIS,UKRI - AHRC,16/01/2019,Council & Committee Honoraria,New Programme Development,unspecified,98383109,170.00,Council & Committee Honoraria
BEIS,UKRI - AHRC,08/01/2019,Council & Committee Honoraria,"AHRC - Strategic Planning, Evidence & Impact",unspecified,98295689,500.00,Council & Committee Honoraria
BEIS,UKRI - AHRC,17/01/2019,Nursery Deductions,Balance Sheet,EDENRED (UK GROUP) LTD,98384290,3994.00,Nursery Deductions
BEIS,UKRI - AHRC,18/01/2019,Other Staff Benefits,Corporate Services,EDENRED (UK GROUP) LTD,98384291,8.63,Other Staff Benefits
BEIS,UKRI - AHRC,24/01/2019,Other Staff Benefits,Corporate Services,EDENRED (UK GROUP) LTD,98388733,490.00,Other Staff Benefits
BEIS,UKRI - AHRC,08/01/2019,Council & Committee Honoraria,New Programme Development,Fraser MacBride,98222196,170.00,Council & Committee Honoraria
BEIS,UKRI - AHRC,22/01/2019,Training Awards - Postgraduates,Collabrative Doctoral Grants - Block Payment,Glasgow School of Art,98378390,4973.00,Training Awards - Postgraduates
BEIS,UKRI - AHRC,22/01/2019,Training Awards - Postgraduates,Collabrative Doctoral Grants - Block Payment,Goldsmiths College University of London,98378438,5446.75,Training Awards - Postgraduates
BEIS,UKRI - AHRC,22/01/2019,Training Awards - Postgraduates,Collabrative Doctoral Grants - Block Payment,Goldsmiths College University of London,98378438,5446.75,Training Awards - Postgraduates
BEIS,UKRI - AHRC,22/01/2019,Training Awards - Postgraduates,Collabrative Doctoral Grants - Block Payment,Guildhall School of Music & Drama,98378323,5463.75,Training Awards - Postgraduates
BEIS,UKRI - AHRC,16/01/2019,Council & Committee Honoraria,New Programme Development,Harriet Hawkins,98383105,230.00,Council & Committee Honoraria
BEIS,UKRI - AHRC,03/01/2019,Agency Staff,Finance,Hays Specialist Recruitment Ltd,98374472,2138.21,Agency Staff
BEIS,UKRI - AHRC,03/01/2019,Agency Staff,Finance,Hays Specialist Recruitment Ltd,98374480,2672.76,Agency Staff
BEIS,UKRI - AHRC,03/01/2019,Agency Staff,Finance,Hays Specialist Recruitment Ltd,98374486,2672.76,Agency Staff
BEIS,UKRI - AHRC,03/01/2019,Agency Staff,Finance,Hays Specialist Recruitment Ltd,98374493,2672.76,Agency Staff
BEIS,UKRI - AHRC,03/01/2019,Agency Staff,Finance,Hays Specialist Recruitment Ltd,98374500,3027.78,Agency Staff
BEIS,UKRI - AHRC,03/01/2019,Agency Staff,Finance,Hays Specialist Recruitment Ltd,98374617,2138.21,Agency Staff
BEIS,UKRI - AHRC,07/01/2019,Contract Staff,Finance,Hays Specialist Recruitment Ltd,98287653,1816.50,Contract Staff
BEIS,UKRI - AHRC,07/01/2019,Contract Staff,Finance,Hays Specialist Recruitment Ltd,98292507,1816.50,Contract Staff
BEIS,UKRI - AHRC,07/01/2019,Contract Staff,Finance,Hays Specialist Recruitment Ltd,98299972,1816.50,Contract Staff
BEIS,UKRI - AHRC,07/01/2019,Agency Staff,Finance,Hays Specialist Recruitment Ltd,98377282,1634.86,Agency Staff
BEIS,UKRI - AHRC,24/01/2019,Agency Staff,PSU Project Office,Hays Specialist Recruitment Ltd,98311502,830.75,Agency Staff
BEIS,UKRI - AHRC,24/01/2019,Agency Staff,PSU Project Office,Hays Specialist Recruitment Ltd,98369267,830.75,Agency Staff
BEIS,UKRI - AHRC,24/01/2019,Agency Staff,PSU Project Office,Hays Specialist Recruitment Ltd,98388894,830.75,Agency Staff
BEIS,UKRI - AHRC,24/01/2019,Agency Staff,PSU Project Office,Hays Specialist Recruitment Ltd,98388895,752.16,Agency Staff
BEIS,UKRI - AHRC,24/01/2019,Agency Staff,PSU Project Office,Hays Specialist Recruitment Ltd,98388897,830.75,Agency Staff
BEIS,UKRI - AHRC,24/01/2019,Contract Staff,Finance,Hays Specialist Recruitment Ltd,98390305,-12.06,Contract Staff
BEIS,UKRI - AHRC,24/01/2019,Contract Staff,Finance,Hays Specialist Recruitment Ltd,98390324,-9.65,Contract Staff
BEIS,UKRI - AHRC,31/01/2019,Contract Staff,Finance,Hays Specialist Recruitment Ltd,98390326,-12.06,Contract Staff
BEIS,UKRI - AHRC,31/01/2019,Contract Staff,Finance,Hays Specialist Recruitment Ltd,98390671,-12.06,Contract Staff
BEIS,UKRI - AHRC,31/01/2019,Contract Staff,Finance,Hays Specialist Recruitment Ltd,98390676,-12.06,Contract Staff
BEIS,UKRI - AHRC,31/01/2019,Contract Staff,Finance,Hays Specialist Recruitment Ltd,98390681,-12.06,Contract Staff
BEIS,UKRI - AHRC,31/01/2019,Contract Staff,Finance,Hays Specialist Recruitment Ltd,98390800,-12.06,Contract Staff
BEIS,UKRI - AHRC,31/01/2019,Contract Staff,Finance,Hays Specialist Recruitment Ltd,98390834,-12.06,Contract Staff
BEIS,UKRI - AHRC,31/01/2019,Contract Staff,Finance,Hays Specialist Recruitment Ltd,98390843,-9.65,Contract Staff
BEIS,UKRI - AHRC,31/01/2019,Contract Staff,Finance,Hays Specialist Recruitment Ltd,98390846,-12.06,Contract Staff
BEIS,UKRI - AHRC,31/01/2019,Contract Staff,Finance,Hays Specialist Recruitment Ltd,98390870,-9.65,Contract Staff
BEIS,UKRI - AHRC,31/01/2019,Contract Staff,Finance,Hays Specialist Recruitment Ltd,98390888,-12.06,Contract Staff
BEIS,UKRI - AHRC,31/01/2019,Contract Staff,Finance,Hays Specialist Recruitment Ltd,98390903,-7.24,Contract Staff
BEIS,UKRI - AHRC,31/01/2019,Contract Staff,Finance,Hays Specialist Recruitment Ltd,98390910,-9.65,Contract Staff
BEIS,UKRI - AHRC,31/01/2019,Contract Staff,Finance,Hays Specialist Recruitment Ltd,98390917,-12.06,Contract Staff
BEIS,UKRI - AHRC,31/01/2019,Contract Staff,Finance,Hays Specialist Recruitment Ltd,98390927,-12.06,Contract Staff
BEIS,UKRI - AHRC,31/01/2019,Contract Staff,Finance,Hays Specialist Recruitment Ltd,98390930,-12.06,Contract Staff
BEIS,UKRI - AHRC,31/01/2019,Contract Staff,Finance,Hays Specialist Recruitment Ltd,98390933,-9.65,Contract Staff
BEIS,UKRI - AHRC,31/01/2019,Contract Staff,Finance,Hays Specialist Recruitment Ltd,98390972,-4.82,Contract Staff
BEIS,UKRI - AHRC,31/01/2019,Contract Staff,Finance,Hays Specialist Recruitment Ltd,98390981,-12.06,Contract Staff
BEIS,UKRI - AHRC,31/01/2019,Contract Staff,Finance,Hays Specialist Recruitment Ltd,98390988,-12.06,Contract Staff
BEIS,UKRI - AHRC,31/01/2019,Contract Staff,Finance,Hays Specialist Recruitment Ltd,98390991,-12.06,Contract Staff
BEIS,UKRI - AHRC,31/01/2019,Contract Staff,Finance,Hays Specialist Recruitment Ltd,98390999,-12.06,Contract Staff
BEIS,UKRI - AHRC,31/01/2019,Contract Staff,Finance,Hays Specialist Recruitment Ltd,98391012,-12.06,Contract Staff
BEIS,UKRI - AHRC,31/01/2019,Contract Staff,Finance,Hays Specialist Recruitment Ltd,98391020,-12.06,Contract Staff
BEIS,UKRI - AHRC,31/01/2019,Contract Staff,Finance,Hays Specialist Recruitment Ltd,98391267,-9.65,Contract Staff
BEIS,UKRI - AHRC,31/01/2019,Contract Staff,Finance,Hays Specialist Recruitment Ltd,98391268,-12.06,Contract Staff
BEIS,UKRI - AHRC,31/01/2019,Contract Staff,Finance,Hays Specialist Recruitment Ltd,98391269,-12.06,Contract Staff
BEIS,UKRI - AHRC,31/01/2019,Contract Staff,Finance,Hays Specialist Recruitment Ltd,98391976,-12.06,Contract Staff
BEIS,UKRI - AHRC,31/01/2019,Recruitment Costs,Finance,Hays Specialist Recruitment Ltd,98393505,-12.06,Recruitment Costs
BEIS,UKRI - AHRC,31/01/2019,Contract Staff,Finance,Hays Specialist Recruitment Ltd,98394471,1252.99,Contract Staff
BEIS,UKRI - AHRC,17/01/2019,Provision for Early Retirement Liability,HR,Health Assured Ltd,98384520,792.00,Provision for Early Retirement Liability
BEIS,UKRI - AHRC,22/01/2019,Training Awards - Postgraduates,Collabrative Doctoral Grants - Block Payment,Heriot Watt University,98378329,4963.75,Training Awards - Postgraduates
BEIS,UKRI - AHRC,16/01/2019,Council & Committee Honoraria,New Programme Development,Hilary Lingham-French,98383112,170.00,Council & Committee Honoraria
BEIS,UKRI - AHRC,14/01/2019,NI Payable Salaries,Balance Sheet,HM Revenue & Customs,98382411,91275.27,NI Payable Salaries
BEIS,UKRI - AHRC,14/01/2019,PAYE Payable Salaries,Balance Sheet,HM Revenue & Customs,98382412,64544.27,PAYE Payable Salaries
BEIS,UKRI - AHRC,14/01/2019,Student Loans,Balance Sheet,HM Revenue & Customs,98382413,4022.00,Student Loans
BEIS,UKRI - AHRC,14/01/2019,Apprenticeship Levy,Corporate Services,HM Revenue & Customs,98382414,2379.00,Apprenticeship Levy
BEIS,UKRI - AHRC,28/01/2019,Hospitality,GCRF - Programme Delivery,House of Commons,98391498,2000.00,Hospitality
BEIS,UKRI - AHRC,24/01/2019,Legal & Professional Services,Business Process & Analysis,Institute for Government,98380755,10152.00,Legal & Professional Services
BEIS,UKRI - AHRC,24/01/2019,Storage & Archiving Costs,Corporate Services,Iron Mountain (UK) PLC,98388828,408.29,Storage & Archiving Costs
BEIS,UKRI - AHRC,08/01/2019,Council & Committee Honoraria,New Programme Development,unspecified,98255670,170.00,Council & Committee Honoraria
BEIS,UKRI - AHRC,30/01/2019,Corporate Events,SMT,Jurys Inns (UK) Ltd,98392930,1798.00,Corporate Events
BEIS,UKRI - AHRC,08/01/2019,Council & Committee Honoraria,"AHRC - Strategic Planning, Evidence & Impact",Karen Lury,98295691,500.00,Council & Committee Honoraria
BEIS,UKRI - AHRC,22/01/2019,Training Awards - Postgraduates,Collabrative Doctoral Grants - Block Payment,Keele University,98378437,4946.75,Training Awards - Postgraduates
BEIS,UKRI - AHRC,22/01/2019,Training Awards - Postgraduates,Collabrative Doctoral Grants - Block Payment,King's College London,98378373,5473.00,Training Awards - Postgraduates
BEIS,UKRI - AHRC,22/01/2019,Training Awards - Postgraduates,Collabrative Doctoral Grants - Block Payment,King's College London,98378403,5446.75,Training Awards - Postgraduates
BEIS,UKRI - AHRC,22/01/2019,Training Awards - Postgraduates,Collabrative Doctoral Grants - Block Payment,King's College London,98378403,5446.75,Training Awards - Postgraduates
BEIS,UKRI - AHRC,22/01/2019,Training Awards - Postgraduates,Collabrative Doctoral Grants - Block Payment,King's College London,98378414,5446.75,Training Awards - Postgraduates
BEIS,UKRI - AHRC,22/01/2019,Training Awards - Postgraduates,Collabrative Doctoral Grants - Block Payment,King's College London,98378414,5446.75,Training Awards - Postgraduates
BEIS,UKRI - AHRC,08/01/2019,Council & Committee Honoraria,"AHRC - Strategic Planning, Evidence & Impact",Laura Sillars,98295688,500.00,Council & Committee Honoraria
BEIS,UKRI - AHRC,04/01/2019,Legal & Professional Services,Industrial Strategy Challenge Fund (ISCF) - Creative Clusters,Lilley Associates Ltd,98368335,9000.00,Legal & Professional Services
BEIS,UKRI - AHRC,04/01/2019,Legal & Professional Services,Industrial Strategy Challenge Fund (ISCF) - Creative Clusters,Lilley Associates Ltd,98368336,11250.00,Legal & Professional Services
BEIS,UKRI - AHRC,08/01/2019,Council & Committee Honoraria,"AHRC - Strategic Planning, Evidence & Impact",Lin Foxhall,98295692,500.00,Council & Committee Honoraria
BEIS,UKRI - AHRC,22/01/2019,Training Awards - Postgraduates,Collabrative Doctoral Grants - Block Payment,London South Bank University,98378293,5463.75,Training Awards - Postgraduates
BEIS,UKRI - AHRC,08/01/2019,Council & Committee Honoraria,"AHRC - Strategic Planning, Evidence & Impact",Maja Maricevic,98295699,500.00,Council & Committee Honoraria
BEIS,UKRI - AHRC,22/01/2019,Training Awards - Postgraduates,Collabrative Doctoral Grants - Block Payment,Manchester Metropolitan University,98378314,4963.75,Training Awards - Postgraduates
BEIS,UKRI - AHRC,08/01/2019,Council & Committee Honoraria,"AHRC - Strategic Planning, Evidence & Impact",unspecified,98295690,500.00,Council & Committee Honoraria
BEIS,UKRI - AHRC,10/01/2019,Consultancy Services,Communications,Matthew Ford,98381060,2800.00,Consultancy Services
BEIS,UKRI - AHRC,29/01/2019,Research Grant Expenditure,Global Challenges Research Fund (GCRF),Medical Research Council,98368249,10258.19,Research Grant Expenditure
BEIS,UKRI - AHRC,15/01/2019,Council & Committee Honoraria,New Programme Development,unspecified,98383110,170.00,Council & Committee Honoraria
BEIS,UKRI - AHRC,16/01/2019,Research Consumables,International,Netherlands Organisation for Scientific Research,98382714,8704.14,Research Consumables
BEIS,UKRI - AHRC,16/01/2019,Council & Committee Honoraria,New Programme Development,Noha Mellor,98383108,170.00,Council & Committee Honoraria
BEIS,UKRI - AHRC,08/01/2019,Non-staff travel and subsistance,"Histories,Culture & Heritage",Non Employee Expenses Supplier,98377731,35.50,Non-staff travel and subsistance
BEIS,UKRI - AHRC,08/01/2019,Non-staff travel and subsistance,Communications,Non Employee Expenses Supplier,98377732,2000.00,Non-staff travel and subsistance
BEIS,UKRI - AHRC,08/01/2019,Non-staff travel and subsistance,"Languages,Literature & International Engagement",Non Employee Expenses Supplier,98377733,64.80,Non-staff travel and subsistance
BEIS,UKRI - AHRC,08/01/2019,Non-staff travel and subsistance,Fund for International Collaboration,Non Employee Expenses Supplier,98377734,285.83,Non-staff travel and subsistance
BEIS,UKRI - AHRC,08/01/2019,Non-staff travel and subsistance,Fund for International Collaboration,Non Employee Expenses Supplier,98377735,139.63,Non-staff travel and subsistance
BEIS,UKRI - AHRC,08/01/2019,Non-staff travel and subsistance,Fund for International Collaboration,Non Employee Expenses Supplier,98377736,17.70,Non-staff travel and subsistance
BEIS,UKRI - AHRC,08/01/2019,Non-staff travel and subsistance,"Histories,Culture & Heritage",Non Employee Expenses Supplier,98377737,117.95,Non-staff travel and subsistance
BEIS,UKRI - AHRC,08/01/2019,Non-staff travel and subsistance,"Languages,Literature & International Engagement",Non Employee Expenses Supplier,98377738,87.20,Non-staff travel and subsistance
BEIS,UKRI - AHRC,08/01/2019,Non-staff travel and subsistance,"Histories,Culture & Heritage",Non Employee Expenses Supplier,98377739,250.21,Non-staff travel and subsistance
BEIS,UKRI - AHRC,08/01/2019,Non-staff travel and subsistance,Fund for International Collaboration,Non Employee Expenses Supplier,98377740,1833.66,Non-staff travel and subsistance
BEIS,UKRI - AHRC,08/01/2019,Non-staff travel and subsistance,Digital Economy Programme,Non Employee Expenses Supplier,98377741,2205.52,Non-staff travel and subsistance
BEIS,UKRI - AHRC,08/01/2019,Non-staff travel and subsistance,"Histories,Culture & Heritage",Non Employee Expenses Supplier,98377742,35.90,Non-staff travel and subsistance
BEIS,UKRI - AHRC,08/01/2019,Non-staff travel and subsistance,Communications,Non Employee Expenses Supplier,98377743,72.50,Non-staff travel and subsistance
BEIS,UKRI - AHRC,08/01/2019,Non-staff travel and subsistance,"AHRC - Strategic Planning, Evidence & Impact",Non Employee Expenses Supplier,98377744,422.48,Non-staff travel and subsistance
BEIS,UKRI - AHRC,09/01/2019,Non-staff travel and subsistance,"Histories,Culture & Heritage",Non Employee Expenses Supplier,98377745,199.73,Non-staff travel and subsistance
BEIS,UKRI - AHRC,15/01/2019,Non-staff travel and subsistance,Newton Programme Delivery,Non Employee Expenses Supplier,98380505,5.20,Non-staff travel and subsistance
BEIS,UKRI - AHRC,15/01/2019,Non-staff travel and subsistance,"Histories,Culture & Heritage",Non Employee Expenses Supplier,98380506,70.34,Non-staff travel and subsistance
BEIS,UKRI - AHRC,15/01/2019,Non-staff travel and subsistance,"Histories,Culture & Heritage",Non Employee Expenses Supplier,98380507,123.50,Non-staff travel and subsistance
BEIS,UKRI - AHRC,15/01/2019,Non-staff travel and subsistance,Creative Arts & Digital Humanities,Non Employee Expenses Supplier,98380508,29.10,Non-staff travel and subsistance
BEIS,UKRI - AHRC,15/01/2019,Non-staff travel and subsistance,SMT,Non Employee Expenses Supplier,98380509,40.25,Non-staff travel and subsistance
BEIS,UKRI - AHRC,15/01/2019,Non-staff travel and subsistance,"AHRC - Strategic Planning, Evidence & Impact",Non Employee Expenses Supplier,98380510,85.60,Non-staff travel and subsistance
BEIS,UKRI - AHRC,15/01/2019,Non-staff travel and subsistance,"Languages,Literature & International Engagement",Non Employee Expenses Supplier,98380511,156.09,Non-staff travel and subsistance
BEIS,UKRI - AHRC,15/01/2019,Non-staff travel and subsistance,Communications,Non Employee Expenses Supplier,98380512,47.00,Non-staff travel and subsistance
BEIS,UKRI - AHRC,15/01/2019,Non-staff travel and subsistance,Communications,Non Employee Expenses Supplier,98380513,72.50,Non-staff travel and subsistance
BEIS,UKRI - AHRC,15/01/2019,Non-staff travel and subsistance,"Languages,Literature & International Engagement",Non Employee Expenses Supplier,98380514,34.30,Non-staff travel and subsistance
BEIS,UKRI - AHRC,15/01/2019,Non-staff travel and subsistance,Creative Arts & Digital Humanities,Non Employee Expenses Supplier,98380515,86.70,Non-staff travel and subsistance
BEIS,UKRI - AHRC,15/01/2019,Non-staff travel and subsistance,Creative Arts & Digital Humanities,Non Employee Expenses Supplier,98380516,78.00,Non-staff travel and subsistance
BEIS,UKRI - AHRC,15/01/2019,Non-staff travel and subsistance,Communications,Non Employee Expenses Supplier,98380517,72.00,Non-staff travel and subsistance
BEIS,UKRI - AHRC,15/01/2019,Non-staff travel and subsistance,"Histories,Culture & Heritage",Non Employee Expenses Supplier,98380518,67.40,Non-staff travel and subsistance
BEIS,UKRI - AHRC,15/01/2019,Non-staff travel and subsistance,"Languages,Literature & International Engagement",Non Employee Expenses Supplier,98380519,225.01,Non-staff travel and subsistance
BEIS,UKRI - AHRC,15/01/2019,Non-staff travel and subsistance,Fund for International Collaboration,Non Employee Expenses Supplier,98380520,2926.92,Non-staff travel and subsistance
BEIS,UKRI - AHRC,16/01/2019,Non-staff travel and subsistance,"Histories,Culture & Heritage",Non Employee Expenses Supplier,98383174,316.63,Non-staff travel and subsistance
BEIS,UKRI - AHRC,29/01/2019,Non-staff travel and subsistance,Finance,Non Employee Expenses Supplier,98389613,159.90,Non-staff travel and subsistance
BEIS,UKRI - AHRC,29/01/2019,Non-staff travel and subsistance,Fund for International Collaboration,Non Employee Expenses Supplier,98389614,48.71,Non-staff travel and subsistance
BEIS,UKRI - AHRC,29/01/2019,Non-staff travel and subsistance,Newton Programme Delivery,Non Employee Expenses Supplier,98389615,263.00,Non-staff travel and subsistance
BEIS,UKRI - AHRC,29/01/2019,Non-staff travel and subsistance,Fund for International Collaboration,Non Employee Expenses Supplier,98389616,633.98,Non-staff travel and subsistance
BEIS,UKRI - AHRC,29/01/2019,Non-staff travel and subsistance,Fund for International Collaboration,Non Employee Expenses Supplier,98389617,139.00,Non-staff travel and subsistance
BEIS,UKRI - AHRC,29/01/2019,Non-staff travel and subsistance,Fund for International Collaboration,Non Employee Expenses Supplier,98389618,116.32,Non-staff travel and subsistance
BEIS,UKRI - AHRC,29/01/2019,Non-staff travel and subsistance,Communications,Non Employee Expenses Supplier,98389619,108.02,Non-staff travel and subsistance
BEIS,UKRI - AHRC,29/01/2019,Non-staff travel and subsistance,"AHRC - Strategic Planning, Evidence & Impact",Non Employee Expenses Supplier,98389620,290.00,Non-staff travel and subsistance
BEIS,UKRI - AHRC,29/01/2019,Non-staff travel and subsistance,Newton Programme Delivery,Non Employee Expenses Supplier,98389621,774.03,Non-staff travel and subsistance
BEIS,UKRI - AHRC,22/01/2019,Training Awards - Postgraduates,BGP Award,Northumbria University,98378266,58394.24,Training Awards - Postgraduates
BEIS,UKRI - AHRC,22/01/2019,Training Awards - Postgraduates,Collabrative Doctoral Grants - Block Payment,Northumbria University,98378389,4973.00,Training Awards - Postgraduates
BEIS,UKRI - AHRC,22/01/2019,Training Awards - Postgraduates,Collabrative Doctoral Grants - Block Payment,Northumbria University,98378402,4946.75,Training Awards - Postgraduates
BEIS,UKRI - AHRC,22/01/2019,Training Awards - Postgraduates,Collabrative Doctoral Grants - Block Payment,Northumbria University,98378402,4946.75,Training Awards - Postgraduates
BEIS,UKRI - AHRC,22/01/2019,Training Awards - Postgraduates,Collabrative Doctoral Grants - Block Payment,Nottingham Trent University,98378344,4973.00,Training Awards - Postgraduates
BEIS,UKRI - AHRC,22/01/2019,Training Awards - Postgraduates,Collabrative Doctoral Grants - Block Payment,Nottingham Trent University,98378346,4973.00,Training Awards - Postgraduates
BEIS,UKRI - AHRC,11/01/2019,Catering Contracts,HR,Officedrop Ltd,98379352,144.00,Catering Contracts
BEIS,UKRI - AHRC,11/01/2019,Catering Contracts,HR,Officedrop Ltd,98379363,108.00,Catering Contracts
BEIS,UKRI - AHRC,10/01/2019,Advertising & Promotion,Communications,OMGRenegade Ltd,98374644,19.08,Advertising & Promotion
BEIS,UKRI - AHRC,10/01/2019,Advertising & Promotion,Communications,OMGRenegade Ltd,98374644,1239.12,Advertising & Promotion
BEIS,UKRI - AHRC,11/01/2019,Staff Training,Communications,Partnership Media Group T/A GovNet Communications,98381312,534.00,Staff Training
BEIS,UKRI - AHRC,16/01/2019,Council & Committee Honoraria,New Programme Development,Paul Long,98383107,170.00,Council & Committee Honoraria
BEIS,UKRI - AHRC,15/01/2019,Union Deductions,Balance Sheet,PCS Union,98382420,180.84,Union Deductions
BEIS,UKRI - AHRC,15/01/2019,Provisions ( Food etc),HR,Premier Farnell UK Ltd T/A Farnell Onecall,98383035,221.69,Provisions ( Food etc)
BEIS,UKRI - AHRC,04/01/2019,Advertising & Promotion,Communications,Professional Images (UK) Ltd,98371619,299.99,Advertising & Promotion
BEIS,UKRI - AHRC,21/01/2019,Advertising & Promotion,Communications,Professional Images (UK) Ltd,98386879,1124.96,Advertising & Promotion
BEIS,UKRI - AHRC,08/01/2019,Council & Committee Honoraria,"AHRC - Strategic Planning, Evidence & Impact",unspecified,98295694,500.00,Council & Committee Honoraria
BEIS,UKRI - AHRC,08/01/2019,Council & Committee Honoraria,"AHRC - Strategic Planning, Evidence & Impact",unspecified,98295695,500.00,Council & Committee Honoraria
BEIS,UKRI - AHRC,08/01/2019,Council & Committee Honoraria,New Programme Development,unspecified,98222197,170.00,Council & Committee Honoraria
BEIS,UKRI - AHRC,08/01/2019,Council & Committee Honoraria,"AHRC - Strategic Planning, Evidence & Impact",unspecified,98295693,500.00,Council & Committee Honoraria
BEIS,UKRI - AHRC,08/01/2019,Council & Committee Honoraria,"AHRC - Strategic Planning, Evidence & Impact",unspecified,98295697,500.00,Council & Committee Honoraria
BEIS,UKRI - AHRC,22/01/2019,Training Awards - Postgraduates,Collabrative Doctoral Grants - Block Payment,Queen Mary University of London,98378295,5463.75,Training Awards - Postgraduates
BEIS,UKRI - AHRC,22/01/2019,Training Awards - Postgraduates,Collabrative Doctoral Grants - Block Payment,Queen Mary University of London,98378298,5463.75,Training Awards - Postgraduates
BEIS,UKRI - AHRC,22/01/2019,Training Awards - Postgraduates,Collabrative Doctoral Grants - Block Payment,Queen Mary University of London,98378332,5463.75,Training Awards - Postgraduates
BEIS,UKRI - AHRC,22/01/2019,Training Awards - Postgraduates,Collabrative Doctoral Grants - Block Payment,Queen Mary University of London,98378339,5463.75,Training Awards - Postgraduates
BEIS,UKRI - AHRC,22/01/2019,Training Awards - Postgraduates,Collabrative Doctoral Grants - Block Payment,Queen Mary University of London,98378426,5446.75,Training Awards - Postgraduates
BEIS,UKRI - AHRC,22/01/2019,Training Awards - Postgraduates,Collabrative Doctoral Grants - Block Payment,Queen Mary University of London,98378461,-73.00,Training Awards - Postgraduates
BEIS,UKRI - AHRC,22/01/2019,Training Awards - Postgraduates,Collabrative Doctoral Grants - Block Payment,Queen Mary University of London,98378463,-292.00,Training Awards - Postgraduates
BEIS,UKRI - AHRC,22/01/2019,Training Awards - Postgraduates,Collabrative Doctoral Grants - Block Payment,Queen Mary University of London,98378478,-73.00,Training Awards - Postgraduates
BEIS,UKRI - AHRC,16/01/2019,Council & Committee Honoraria,New Programme Development,Reina Lewis,98383106,170.00,Council & Committee Honoraria
BEIS,UKRI - AHRC,22/01/2019,Training Awards - Postgraduates,Collabrative Doctoral Grants - Block Payment,Robert Gordon University,98378407,4946.75,Training Awards - Postgraduates
BEIS,UKRI - AHRC,22/01/2019,Training Awards - Postgraduates,Collabrative Doctoral Grants - Block Payment,Robert Gordon University,98378407,4946.75,Training Awards - Postgraduates
BEIS,UKRI - AHRC,22/01/2019,Training Awards - Postgraduates,BGP Award,Royal College of Art,98378273,117678.49,Training Awards - Postgraduates
BEIS,UKRI - AHRC,22/01/2019,Training Awards - Postgraduates,Collabrative Doctoral Grants - Block Payment,Royal College of Art,98378320,5463.75,Training Awards - Postgraduates
BEIS,UKRI - AHRC,22/01/2019,Training Awards - Postgraduates,Collabrative Doctoral Grants - Block Payment,Royal College of Art,98378388,5473.00,Training Awards - Postgraduates
BEIS,UKRI - AHRC,22/01/2019,Training Awards - Postgraduates,Collabrative Doctoral Grants - Block Payment,Royal College of Art,98378391,4720.08,Training Awards - Postgraduates
BEIS,UKRI - AHRC,22/01/2019,Training Awards - Postgraduates,Collabrative Doctoral Grants - Block Payment,Royal College of Art,98378443,5446.75,Training Awards - Postgraduates
BEIS,UKRI - AHRC,22/01/2019,Training Awards - Postgraduates,Collabrative Doctoral Grants - Block Payment,Royal College of Art,98378443,5446.75,Training Awards - Postgraduates
BEIS,UKRI - AHRC,22/01/2019,Training Awards - Postgraduates,Collabrative Doctoral Grants - Block Payment,Royal College of Art,98378453,600.00,Training Awards - Postgraduates
BEIS,UKRI - AHRC,22/01/2019,Training Awards - Postgraduates,Collabrative Doctoral Grants - Block Payment,Royal College of Art,98378470,-410.50,Training Awards - Postgraduates
BEIS,UKRI - AHRC,22/01/2019,Training Awards - Postgraduates,BGP Award,"Royal Holloway, University of London",98378256,673870.98,Training Awards - Postgraduates
BEIS,UKRI - AHRC,22/01/2019,Training Awards - Postgraduates,Collabrative Doctoral Grants - Block Payment,"Royal Holloway, University of London",98378297,5463.75,Training Awards - Postgraduates
BEIS,UKRI - AHRC,22/01/2019,Training Awards - Postgraduates,Collabrative Doctoral Grants - Block Payment,"Royal Holloway, University of London",98378299,5463.75,Training Awards - Postgraduates
BEIS,UKRI - AHRC,22/01/2019,Training Awards - Postgraduates,Collabrative Doctoral Grants - Block Payment,"Royal Holloway, University of London",98378345,5473.00,Training Awards - Postgraduates
BEIS,UKRI - AHRC,22/01/2019,Training Awards - Postgraduates,BGP Award,"Royal Holloway, University of London",98378397,64676.00,Training Awards - Postgraduates
BEIS,UKRI - AHRC,22/01/2019,Training Awards - Postgraduates,Industrial Strategy Challenge Fund (ISCF) - Skills,"Royal Holloway, University of London",98378448,21859.75,Training Awards - Postgraduates
BEIS,UKRI - AHRC,22/01/2019,Training Awards - Postgraduates,Industrial Strategy Challenge Fund (ISCF) - Skills,"Royal Holloway, University of London",98378448,21859.75,Training Awards - Postgraduates
BEIS,UKRI - AHRC,22/01/2019,Training Awards - Postgraduates,Collabrative Doctoral Grants - Block Payment,"Royal Holloway, University of London",98378480,-209.26,Training Awards - Postgraduates
BEIS,UKRI - AHRC,29/01/2019,Secondments,PSU Project Office,Science & Technology Facilities Council,98390335,5850.48,Secondments
BEIS,UKRI - AHRC,22/01/2019,Training Awards - Postgraduates,Collabrative Doctoral Grants - Block Payment,Sheffield Hallam University,98378440,4946.75,Training Awards - Postgraduates
BEIS,UKRI - AHRC,04/01/2019,Advertising & Promotion,Communications,Sophie Toumazis T/A TPR Media Consultants,98375814,3600.00,Advertising & Promotion
BEIS,UKRI - AHRC,08/01/2019,Council & Committee Honoraria,"AHRC - Strategic Planning, Evidence & Impact",Stephen Hoskins,98295696,500.00,Council & Committee Honoraria
BEIS,UKRI - AHRC,22/01/2019,Training Awards - Postgraduates,Collabrative Doctoral Grants - Block Payment,Swansea University,98378308,4963.75,Training Awards - Postgraduates
BEIS,UKRI - AHRC,22/01/2019,Training Awards - Postgraduates,Collabrative Doctoral Grants - Block Payment,Swansea University,98378466,-412.30,Training Awards - Postgraduates
BEIS,UKRI - AHRC,10/01/2019,Health & Safety (inc. Medicals & Opticians),Corporate Services,Swindon Occupational Medical Services Ltd,98380707,1050.00,Health & Safety (inc. Medicals & Opticians)
BEIS,UKRI - AHRC,25/01/2019,Voluntary Deductions,Balance Sheet,Swindon Office Sports and Social Club,98382419,94.00,Voluntary Deductions
BEIS,UKRI - AHRC,30/01/2019,Staff Training,Corporate Services,Tableau International U.C,98301765,1074.86,Staff Training
BEIS,UKRI - AHRC,22/01/2019,Training Awards - Postgraduates,International Placement Scheme,Teesside University,98378491,6870.00,Training Awards - Postgraduates
BEIS,UKRI - AHRC,30/01/2019,Conferences & Seminars,Secretariat,The Royal Society,98392465,780.00,Conferences & Seminars
BEIS,UKRI - AHRC,30/01/2019,Conferences & Seminars,Secretariat,The Royal Society,98392469,1752.24,Conferences & Seminars
BEIS,UKRI - AHRC,22/01/2019,Training Awards - Postgraduates,BGP Award,The University of Manchester,98378267,711023.25,Training Awards - Postgraduates
BEIS,UKRI - AHRC,22/01/2019,Training Awards - Postgraduates,Collabrative Doctoral Grants - Block Payment,The University of Manchester,98378324,4963.75,Training Awards - Postgraduates
BEIS,UKRI - AHRC,22/01/2019,Training Awards - Postgraduates,Collabrative Doctoral Grants - Block Payment,The University of Manchester,98378328,4963.75,Training Awards - Postgraduates
BEIS,UKRI - AHRC,22/01/2019,Training Awards - Postgraduates,Collabrative Doctoral Grants - Block Payment,The University of Manchester,98378382,4973.00,Training Awards - Postgraduates
BEIS,UKRI - AHRC,22/01/2019,Training Awards - Postgraduates,Collabrative Doctoral Grants - Block Payment,The University of Manchester,98378387,4973.00,Training Awards - Postgraduates
BEIS,UKRI - AHRC,22/01/2019,Training Awards - Postgraduates,BGP Award,The University of Manchester,98378394,59676.00,Training Awards - Postgraduates
BEIS,UKRI - AHRC,22/01/2019,Training Awards - Postgraduates,Industrial Strategy Challenge Fund (ISCF) - Skills,The University of Manchester,98378445,19853.06,Training Awards - Postgraduates
BEIS,UKRI - AHRC,22/01/2019,Training Awards - Postgraduates,Industrial Strategy Challenge Fund (ISCF) - Skills,The University of Manchester,98378445,19853.06,Training Awards - Postgraduates
BEIS,UKRI - AHRC,08/01/2019,Advertising & Promotion,Communications,Tim Stubbings Photography Ltd,98378631,882.00,Advertising & Promotion
BEIS,UKRI - AHRC,08/01/2019,Staff Training,Corporate Services,UK Shared Business Services Ltd,98378176,8790.73,Staff Training
BEIS,UKRI - AHRC,22/01/2019,Training Awards - Postgraduates,BGP Award,University College London,98378259,125993.18,Training Awards - Postgraduates
BEIS,UKRI - AHRC,22/01/2019,Training Awards - Postgraduates,BGP Award,University College London,98378260,941427.90,Training Awards - Postgraduates
BEIS,UKRI - AHRC,22/01/2019,Training Awards - Postgraduates,Collabrative Doctoral Grants - Block Payment,University College London,98378284,5463.75,Training Awards - Postgraduates
BEIS,UKRI - AHRC,22/01/2019,Training Awards - Postgraduates,Collabrative Doctoral Grants - Block Payment,University College London,98378290,5463.75,Training Awards - Postgraduates
BEIS,UKRI - AHRC,22/01/2019,Training Awards - Postgraduates,Collabrative Doctoral Grants - Block Payment,University College London,98378326,5463.75,Training Awards - Postgraduates
BEIS,UKRI - AHRC,22/01/2019,Training Awards - Postgraduates,Collabrative Doctoral Grants - Block Payment,University College London,98378341,5463.75,Training Awards - Postgraduates
BEIS,UKRI - AHRC,22/01/2019,Training Awards - Postgraduates,Collabrative Doctoral Grants - Block Payment,University College London,98378367,5473.00,Training Awards - Postgraduates
BEIS,UKRI - AHRC,22/01/2019,Training Awards - Postgraduates,Collabrative Doctoral Grants - Block Payment,University College London,98378400,5446.75,Training Awards - Postgraduates
BEIS,UKRI - AHRC,22/01/2019,Training Awards - Postgraduates,Collabrative Doctoral Grants - Block Payment,University College London,98378413,5446.75,Training Awards - Postgraduates
BEIS,UKRI - AHRC,22/01/2019,Training Awards - Postgraduates,Collabrative Doctoral Grants - Block Payment,University College London,98378413,5446.75,Training Awards - Postgraduates
BEIS,UKRI - AHRC,22/01/2019,Training Awards - Postgraduates,Collabrative Doctoral Grants - Block Payment,University College London,98378429,5446.75,Training Awards - Postgraduates
BEIS,UKRI - AHRC,22/01/2019,Training Awards - Postgraduates,International Placement Scheme,University College London,98378490,8070.00,Training Awards - Postgraduates
BEIS,UKRI - AHRC,22/01/2019,Training Awards - Postgraduates,International Placement Scheme,University College London,98378494,4470.00,Training Awards - Postgraduates
BEIS,UKRI - AHRC,22/01/2019,Training Awards - Postgraduates,Collabrative Doctoral Grants - Block Payment,University of Aberdeen,98378317,4963.75,Training Awards - Postgraduates
BEIS,UKRI - AHRC,22/01/2019,Training Awards - Postgraduates,Collabrative Doctoral Grants - Block Payment,University of Aberdeen,98378427,4946.75,Training Awards - Postgraduates
BEIS,UKRI - AHRC,22/01/2019,Training Awards - Postgraduates,Collabrative Doctoral Grants - Block Payment,University of Bedfordshire,98378322,4963.75,Training Awards - Postgraduates
BEIS,UKRI - AHRC,22/01/2019,Training Awards - Postgraduates,Collabrative Doctoral Grants - Block Payment,University of Birmingham GRANT,98378368,4973.00,Training Awards - Postgraduates
BEIS,UKRI - AHRC,22/01/2019,Training Awards - Postgraduates,Collabrative Doctoral Grants - Block Payment,University of Birmingham GRANT,98378459,-1408.00,Training Awards - Postgraduates
BEIS,UKRI - AHRC,22/01/2019,Training Awards - Postgraduates,Collabrative Doctoral Grants - Block Payment,University of Bradford,98378336,4874.50,Training Awards - Postgraduates
BEIS,UKRI - AHRC,22/01/2019,Training Awards - Postgraduates,Collabrative Doctoral Grants - Block Payment,University of Brighton,98378307,4963.75,Training Awards - Postgraduates
BEIS,UKRI - AHRC,22/01/2019,Training Awards - Postgraduates,Collabrative Doctoral Grants - Block Payment,University of Brighton,98378311,4963.75,Training Awards - Postgraduates
BEIS,UKRI - AHRC,22/01/2019,Training Awards - Postgraduates,Collabrative Doctoral Grants - Block Payment,University of Brighton,98378404,4946.75,Training Awards - Postgraduates
BEIS,UKRI - AHRC,22/01/2019,Training Awards - Postgraduates,Collabrative Doctoral Grants - Block Payment,University of Brighton,98378404,4946.75,Training Awards - Postgraduates
BEIS,UKRI - AHRC,22/01/2019,Training Awards - Postgraduates,Collabrative Doctoral Grants - Block Payment,University of Brighton,98378458,-14691.00,Training Awards - Postgraduates
BEIS,UKRI - AHRC,22/01/2019,Training Awards - Postgraduates,BGP Award,University of Bristol GRANT,98378264,711023.25,Training Awards - Postgraduates
BEIS,UKRI - AHRC,22/01/2019,Training Awards - Postgraduates,Collabrative Doctoral Grants - Block Payment,University of Bristol GRANT,98378319,4963.75,Training Awards - Postgraduates
BEIS,UKRI - AHRC,22/01/2019,Training Awards - Postgraduates,Collabrative Doctoral Grants - Block Payment,University of Bristol GRANT,98378338,4963.75,Training Awards - Postgraduates
BEIS,UKRI - AHRC,22/01/2019,Training Awards - Postgraduates,Collabrative Doctoral Grants - Block Payment,University of Bristol GRANT,98378352,4973.00,Training Awards - Postgraduates
BEIS,UKRI - AHRC,22/01/2019,Training Awards - Postgraduates,Collabrative Doctoral Grants - Block Payment,University of Bristol GRANT,98378456,4702.00,Training Awards - Postgraduates
BEIS,UKRI - AHRC,22/01/2019,Training Awards - Postgraduates,BGP Award,University of Cambridge,98378268,711023.25,Training Awards - Postgraduates
BEIS,UKRI - AHRC,22/01/2019,Training Awards - Postgraduates,Collabrative Doctoral Grants - Block Payment,University of Cambridge,98378303,4963.75,Training Awards - Postgraduates
BEIS,UKRI - AHRC,22/01/2019,Training Awards - Postgraduates,Collabrative Doctoral Grants - Block Payment,University of Cambridge,98378330,4963.75,Training Awards - Postgraduates
BEIS,UKRI - AHRC,22/01/2019,Training Awards - Postgraduates,Collabrative Doctoral Grants - Block Payment,University of Cambridge,98378425,4946.75,Training Awards - Postgraduates
BEIS,UKRI - AHRC,22/01/2019,Training Awards - Postgraduates,Collabrative Doctoral Grants - Block Payment,University of Cambridge,98378425,4946.75,Training Awards - Postgraduates
BEIS,UKRI - AHRC,22/01/2019,Training Awards - Postgraduates,Collabrative Doctoral Grants - Block Payment,University of Cambridge,98378431,4946.75,Training Awards - Postgraduates
BEIS,UKRI - AHRC,22/01/2019,Training Awards - Postgraduates,Collabrative Doctoral Grants - Block Payment,University of Cambridge,98378431,4946.75,Training Awards - Postgraduates
BEIS,UKRI - AHRC,22/01/2019,Training Awards - Postgraduates,Collabrative Doctoral Grants - Block Payment,University of Cambridge,98378432,4946.75,Training Awards - Postgraduates
BEIS,UKRI - AHRC,22/01/2019,Training Awards - Postgraduates,Collabrative Doctoral Grants - Block Payment,University of Cambridge,98378432,4946.75,Training Awards - Postgraduates
BEIS,UKRI - AHRC,22/01/2019,Training Awards - Postgraduates,Collabrative Doctoral Grants - Block Payment,University of Cambridge,98378474,-600.00,Training Awards - Postgraduates
BEIS,UKRI - AHRC,22/01/2019,Training Awards - Postgraduates,Collabrative Doctoral Grants - Block Payment,University of Central Lancashire,98378277,9927.50,Training Awards - Postgraduates
BEIS,UKRI - AHRC,22/01/2019,Training Awards - Postgraduates,Collabrative Doctoral Grants - Block Payment,University of Central Lancashire,98378361,4973.00,Training Awards - Postgraduates
BEIS,UKRI - AHRC,22/01/2019,Training Awards - Postgraduates,Collabrative Doctoral Grants - Block Payment,University of Central Lancashire,98378416,4946.75,Training Awards - Postgraduates
BEIS,UKRI - AHRC,22/01/2019,Training Awards - Postgraduates,Collabrative Doctoral Grants - Block Payment,University of Central Lancashire,98378416,4946.75,Training Awards - Postgraduates
BEIS,UKRI - AHRC,22/01/2019,Training Awards - Postgraduates,Collabrative Doctoral Grants - Block Payment,University of Durham,98378291,4963.75,Training Awards - Postgraduates
BEIS,UKRI - AHRC,22/01/2019,Training Awards - Postgraduates,Collabrative Doctoral Grants - Block Payment,University of Durham,98378313,4963.75,Training Awards - Postgraduates
BEIS,UKRI - AHRC,22/01/2019,Training Awards - Postgraduates,Collabrative Doctoral Grants - Block Payment,University of Durham,98378315,4963.75,Training Awards - Postgraduates
BEIS,UKRI - AHRC,22/01/2019,Training Awards - Postgraduates,Collabrative Doctoral Grants - Block Payment,University of Durham,98378354,4973.00,Training Awards - Postgraduates
BEIS,UKRI - AHRC,22/01/2019,Training Awards - Postgraduates,Collabrative Doctoral Grants - Block Payment,University of Durham,98378410,4946.75,Training Awards - Postgraduates
BEIS,UKRI - AHRC,22/01/2019,Training Awards - Postgraduates,Collabrative Doctoral Grants - Block Payment,University of Durham,98378410,4946.75,Training Awards - Postgraduates
BEIS,UKRI - AHRC,22/01/2019,Training Awards - Postgraduates,Collabrative Doctoral Grants - Block Payment,University of Durham,98378428,4946.75,Training Awards - Postgraduates
BEIS,UKRI - AHRC,22/01/2019,Training Awards - Postgraduates,Collabrative Doctoral Grants - Block Payment,University of Durham,98378428,4946.75,Training Awards - Postgraduates
BEIS,UKRI - AHRC,22/01/2019,Training Awards - Postgraduates,Collabrative Doctoral Grants - Block Payment,University of Durham,98378473,-673.00,Training Awards - Postgraduates
BEIS,UKRI - AHRC,22/01/2019,Training Awards - Postgraduates,Collabrative Doctoral Grants - Block Payment,University of Edinburgh,98378340,4963.75,Training Awards - Postgraduates
BEIS,UKRI - AHRC,22/01/2019,Training Awards - Postgraduates,Collabrative Doctoral Grants - Block Payment,University of Edinburgh,98378342,4966.75,Training Awards - Postgraduates
BEIS,UKRI - AHRC,22/01/2019,Training Awards - Postgraduates,Collabrative Doctoral Grants - Block Payment,University of Edinburgh,98378351,4973.00,Training Awards - Postgraduates
BEIS,UKRI - AHRC,22/01/2019,Training Awards - Postgraduates,Collabrative Doctoral Grants - Block Payment,University of Edinburgh,98378353,4973.00,Training Awards - Postgraduates
BEIS,UKRI - AHRC,22/01/2019,Training Awards - Postgraduates,Collabrative Doctoral Grants - Block Payment,University of Edinburgh,98378364,4973.00,Training Awards - Postgraduates
BEIS,UKRI - AHRC,22/01/2019,Training Awards - Postgraduates,Collabrative Doctoral Grants - Block Payment,University of Edinburgh,98378409,4946.75,Training Awards - Postgraduates
BEIS,UKRI - AHRC,22/01/2019,Training Awards - Postgraduates,Collabrative Doctoral Grants - Block Payment,University of Exeter,98378363,4973.00,Training Awards - Postgraduates
BEIS,UKRI - AHRC,22/01/2019,Training Awards - Postgraduates,Collabrative Doctoral Grants - Block Payment,University of Exeter,98378408,4946.75,Training Awards - Postgraduates
BEIS,UKRI - AHRC,22/01/2019,Training Awards - Postgraduates,Collabrative Doctoral Grants - Block Payment,University of Exeter,98378408,4946.75,Training Awards - Postgraduates
BEIS,UKRI - AHRC,22/01/2019,Training Awards - Postgraduates,BGP Award,University of Glasgow,98378262,711023.25,Training Awards - Postgraduates
BEIS,UKRI - AHRC,22/01/2019,Training Awards - Postgraduates,BGP Award,University of Glasgow,98378265,88877.91,Training Awards - Postgraduates
BEIS,UKRI - AHRC,22/01/2019,Training Awards - Postgraduates,Collabrative Doctoral Grants - Block Payment,University of Glasgow,98378279,4963.75,Training Awards - Postgraduates
BEIS,UKRI - AHRC,22/01/2019,Training Awards - Postgraduates,Collabrative Doctoral Grants - Block Payment,University of Glasgow,98378280,4963.75,Training Awards - Postgraduates
BEIS,UKRI - AHRC,22/01/2019,Training Awards - Postgraduates,Collabrative Doctoral Grants - Block Payment,University of Glasgow,98378325,4963.75,Training Awards - Postgraduates
BEIS,UKRI - AHRC,22/01/2019,Training Awards - Postgraduates,Collabrative Doctoral Grants - Block Payment,University of Glasgow,98378366,4973.00,Training Awards - Postgraduates
BEIS,UKRI - AHRC,22/01/2019,Training Awards - Postgraduates,BGP Award,University of Glasgow,98378392,59676.00,Training Awards - Postgraduates
BEIS,UKRI - AHRC,22/01/2019,Training Awards - Postgraduates,Collabrative Doctoral Grants - Block Payment,University of Glasgow,98378418,4946.75,Training Awards - Postgraduates
BEIS,UKRI - AHRC,22/01/2019,Training Awards - Postgraduates,Industrial Strategy Challenge Fund (ISCF) - Skills,University of Glasgow,98378446,19853.06,Training Awards - Postgraduates
BEIS,UKRI - AHRC,22/01/2019,Training Awards - Postgraduates,Industrial Strategy Challenge Fund (ISCF) - Skills,University of Glasgow,98378446,19853.06,Training Awards - Postgraduates
BEIS,UKRI - AHRC,22/01/2019,Training Awards - Postgraduates,Collabrative Doctoral Grants - Block Payment,University of Glasgow,98378457,-627.18,Training Awards - Postgraduates
BEIS,UKRI - AHRC,22/01/2019,Training Awards - Postgraduates,Collabrative Doctoral Grants - Block Payment,University of Glasgow,98378465,-562.18,Training Awards - Postgraduates
BEIS,UKRI - AHRC,22/01/2019,Training Awards - Postgraduates,Collabrative Doctoral Grants - Block Payment,University of Glasgow,98378468,-627.18,Training Awards - Postgraduates
BEIS,UKRI - AHRC,22/01/2019,Training Awards - Postgraduates,Collabrative Doctoral Grants - Block Payment,University of Glasgow,98378485,-540.18,Training Awards - Postgraduates
BEIS,UKRI - AHRC,22/01/2019,Training Awards - Postgraduates,Collabrative Doctoral Grants - Block Payment,University of Huddersfield,98378283,4963.75,Training Awards - Postgraduates
BEIS,UKRI - AHRC,22/01/2019,Training Awards - Postgraduates,BGP Award,University of Hull,98378258,88877.91,Training Awards - Postgraduates
BEIS,UKRI - AHRC,22/01/2019,Training Awards - Postgraduates,Collabrative Doctoral Grants - Block Payment,University of Kent,98378305,4963.75,Training Awards - Postgraduates
BEIS,UKRI - AHRC,22/01/2019,Training Awards - Postgraduates,Collabrative Doctoral Grants - Block Payment,University of Kent,98378348,4973.00,Training Awards - Postgraduates
BEIS,UKRI - AHRC,22/01/2019,Training Awards - Postgraduates,Collabrative Doctoral Grants - Block Payment,University of Kent,98378424,4946.75,Training Awards - Postgraduates
BEIS,UKRI - AHRC,22/01/2019,Training Awards - Postgraduates,Collabrative Doctoral Grants - Block Payment,University of Kent,98378430,4946.75,Training Awards - Postgraduates
BEIS,UKRI - AHRC,22/01/2019,Training Awards - Postgraduates,Collabrative Doctoral Grants - Block Payment,University of Leeds,98378310,4963.75,Training Awards - Postgraduates
BEIS,UKRI - AHRC,22/01/2019,Training Awards - Postgraduates,Collabrative Doctoral Grants - Block Payment,University of Leeds,98378312,4963.75,Training Awards - Postgraduates
BEIS,UKRI - AHRC,22/01/2019,Training Awards - Postgraduates,Collabrative Doctoral Grants - Block Payment,University of Leeds,98378334,4963.75,Training Awards - Postgraduates
BEIS,UKRI - AHRC,22/01/2019,Training Awards - Postgraduates,Collabrative Doctoral Grants - Block Payment,University of Leeds,98378355,4973.00,Training Awards - Postgraduates
BEIS,UKRI - AHRC,22/01/2019,Training Awards - Postgraduates,Collabrative Doctoral Grants - Block Payment,University of Leeds,98378358,4973.00,Training Awards - Postgraduates
BEIS,UKRI - AHRC,22/01/2019,Training Awards - Postgraduates,Collabrative Doctoral Grants - Block Payment,University of Leeds,98378374,4973.00,Training Awards - Postgraduates
BEIS,UKRI - AHRC,22/01/2019,Training Awards - Postgraduates,Collabrative Doctoral Grants - Block Payment,University of Leeds,98378412,4946.75,Training Awards - Postgraduates
BEIS,UKRI - AHRC,22/01/2019,Training Awards - Postgraduates,Collabrative Doctoral Grants - Block Payment,University of Leeds,98378421,4946.75,Training Awards - Postgraduates
BEIS,UKRI - AHRC,22/01/2019,Training Awards - Postgraduates,Collabrative Doctoral Grants - Block Payment,University of Leeds,98378433,4946.75,Training Awards - Postgraduates
BEIS,UKRI - AHRC,22/01/2019,Training Awards - Postgraduates,Collabrative Doctoral Grants - Block Payment,University of Leeds,98378434,4946.75,Training Awards - Postgraduates
BEIS,UKRI - AHRC,22/01/2019,Training Awards - Postgraduates,Collabrative Doctoral Grants - Block Payment,University of Leeds,98378454,460.75,Training Awards - Postgraduates
BEIS,UKRI - AHRC,22/01/2019,Training Awards - Postgraduates,Collabrative Doctoral Grants - Block Payment,University of Leicester,98378327,4963.75,Training Awards - Postgraduates
BEIS,UKRI - AHRC,22/01/2019,Training Awards - Postgraduates,Collabrative Doctoral Grants - Block Payment,University of Leicester,98378356,4973.00,Training Awards - Postgraduates
BEIS,UKRI - AHRC,22/01/2019,Training Awards - Postgraduates,Collabrative Doctoral Grants - Block Payment,University of Leicester,98378360,4973.00,Training Awards - Postgraduates
BEIS,UKRI - AHRC,22/01/2019,Training Awards - Postgraduates,Collabrative Doctoral Grants - Block Payment,University of Leicester,98378372,4973.00,Training Awards - Postgraduates
BEIS,UKRI - AHRC,22/01/2019,Training Awards - Postgraduates,Collabrative Doctoral Grants - Block Payment,University of Leicester,98378376,4973.00,Training Awards - Postgraduates
BEIS,UKRI - AHRC,22/01/2019,Training Awards - Postgraduates,Collabrative Doctoral Grants - Block Payment,University of Leicester,98378464,-455.49,Training Awards - Postgraduates
BEIS,UKRI - AHRC,22/01/2019,Training Awards - Postgraduates,Collabrative Doctoral Grants - Block Payment,University of Leicester,98378481,-393.15,Training Awards - Postgraduates
BEIS,UKRI - AHRC,25/01/2019,Research Grant Expenditure,GCRF - Programme Delivery,University of Leicester,98389300,4990.41,Research Grant Expenditure
BEIS,UKRI - AHRC,22/01/2019,Training Awards - Postgraduates,Collabrative Doctoral Grants - Block Payment,University of Lincoln,98378306,4894.50,Training Awards - Postgraduates
BEIS,UKRI - AHRC,22/01/2019,Training Awards - Postgraduates,Collabrative Doctoral Grants - Block Payment,University of Liverpool,98378275,9918.50,Training Awards - Postgraduates
BEIS,UKRI - AHRC,22/01/2019,Training Awards - Postgraduates,Collabrative Doctoral Grants - Block Payment,University of Liverpool,98378281,9927.50,Training Awards - Postgraduates
BEIS,UKRI - AHRC,22/01/2019,Training Awards - Postgraduates,Collabrative Doctoral Grants - Block Payment,University of Liverpool,98378287,9927.50,Training Awards - Postgraduates
BEIS,UKRI - AHRC,22/01/2019,Training Awards - Postgraduates,Collabrative Doctoral Grants - Block Payment,University of Liverpool,98378292,9927.50,Training Awards - Postgraduates
BEIS,UKRI - AHRC,22/01/2019,Training Awards - Postgraduates,Collabrative Doctoral Grants - Block Payment,University of Liverpool,98378406,4946.75,Training Awards - Postgraduates
BEIS,UKRI - AHRC,22/01/2019,Training Awards - Postgraduates,Collabrative Doctoral Grants - Block Payment,University of London,98378371,5473.00,Training Awards - Postgraduates
BEIS,UKRI - AHRC,22/01/2019,Training Awards - Postgraduates,Collabrative Doctoral Grants - Block Payment,University of London,98378398,5446.75,Training Awards - Postgraduates
BEIS,UKRI - AHRC,22/01/2019,Training Awards - Postgraduates,Collabrative Doctoral Grants - Block Payment,University of London,98378436,4342.97,Training Awards - Postgraduates
BEIS,UKRI - AHRC,22/01/2019,Training Awards - Postgraduates,BGP Award,University of Newcastle Upon Tyne,98378263,556110.59,Training Awards - Postgraduates
BEIS,UKRI - AHRC,22/01/2019,Training Awards - Postgraduates,Collabrative Doctoral Grants - Block Payment,University of Newcastle Upon Tyne,98378321,4963.75,Training Awards - Postgraduates
BEIS,UKRI - AHRC,22/01/2019,Training Awards - Postgraduates,BGP Award,University of Newcastle Upon Tyne,98378393,59676.00,Training Awards - Postgraduates
BEIS,UKRI - AHRC,22/01/2019,Training Awards - Postgraduates,Collabrative Doctoral Grants - Block Payment,University of Newcastle Upon Tyne,98378420,4946.75,Training Awards - Postgraduates
BEIS,UKRI - AHRC,22/01/2019,Training Awards - Postgraduates,Collabrative Doctoral Grants - Block Payment,University of Newcastle Upon Tyne,98378420,4946.75,Training Awards - Postgraduates
BEIS,UKRI - AHRC,22/01/2019,Training Awards - Postgraduates,Industrial Strategy Challenge Fund (ISCF) - Skills,University of Newcastle Upon Tyne,98378447,19853.06,Training Awards - Postgraduates
BEIS,UKRI - AHRC,22/01/2019,Training Awards - Postgraduates,Industrial Strategy Challenge Fund (ISCF) - Skills,University of Newcastle Upon Tyne,98378447,19853.06,Training Awards - Postgraduates
BEIS,UKRI - AHRC,22/01/2019,Training Awards - Postgraduates,Collabrative Doctoral Grants - Block Payment,University of Newcastle Upon Tyne,98378472,-2323.00,Training Awards - Postgraduates
BEIS,UKRI - AHRC,22/01/2019,Training Awards - Postgraduates,International Placement Scheme,University of Newcastle Upon Tyne,98378493,-1.11,Training Awards - Postgraduates
BEIS,UKRI - AHRC,22/01/2019,Training Awards - Postgraduates,Collabrative Doctoral Grants - Block Payment,University of Northampton,98378331,4963.75,Training Awards - Postgraduates
BEIS,UKRI - AHRC,22/01/2019,Training Awards - Postgraduates,BGP Award,University of Nottingham,98378271,728798.84,Training Awards - Postgraduates
BEIS,UKRI - AHRC,22/01/2019,Training Awards - Postgraduates,Collabrative Doctoral Grants - Block Payment,University of Nottingham,98378288,4963.75,Training Awards - Postgraduates
BEIS,UKRI - AHRC,22/01/2019,Training Awards - Postgraduates,Collabrative Doctoral Grants - Block Payment,University of Nottingham,98378294,4963.75,Training Awards - Postgraduates
BEIS,UKRI - AHRC,22/01/2019,Training Awards - Postgraduates,Collabrative Doctoral Grants - Block Payment,University of Nottingham,98378365,4973.00,Training Awards - Postgraduates
BEIS,UKRI - AHRC,22/01/2019,Training Awards - Postgraduates,BGP Award,University of Nottingham,98378396,49731.00,Training Awards - Postgraduates
BEIS,UKRI - AHRC,22/01/2019,Training Awards - Postgraduates,Industrial Strategy Challenge Fund (ISCF) - Skills,University of Nottingham,98378449,19853.06,Training Awards - Postgraduates
BEIS,UKRI - AHRC,22/01/2019,Training Awards - Postgraduates,Industrial Strategy Challenge Fund (ISCF) - Skills,University of Nottingham,98378449,19853.06,Training Awards - Postgraduates
BEIS,UKRI - AHRC,22/01/2019,Training Awards - Postgraduates,Collabrative Doctoral Grants - Block Payment,University of Nottingham,98378455,-105.00,Training Awards - Postgraduates
BEIS,UKRI - AHRC,22/01/2019,Training Awards - Postgraduates,Collabrative Doctoral Grants - Block Payment,University of Nottingham,98378467,-673.00,Training Awards - Postgraduates
BEIS,UKRI - AHRC,22/01/2019,Training Awards - Postgraduates,BGP Award,University of Oxford,98378261,711023.27,Training Awards - Postgraduates
BEIS,UKRI - AHRC,22/01/2019,Training Awards - Postgraduates,Collabrative Doctoral Grants - Block Payment,University of Oxford,98378343,4973.00,Training Awards - Postgraduates
BEIS,UKRI - AHRC,22/01/2019,Training Awards - Postgraduates,Collabrative Doctoral Grants - Block Payment,University of Oxford,98378370,4973.00,Training Awards - Postgraduates
BEIS,UKRI - AHRC,22/01/2019,Training Awards - Postgraduates,Collabrative Doctoral Grants - Block Payment,University of Oxford,98378422,4946.75,Training Awards - Postgraduates
BEIS,UKRI - AHRC,22/01/2019,Training Awards - Postgraduates,Collabrative Doctoral Grants - Block Payment,University of Oxford,98378471,-673.00,Training Awards - Postgraduates
BEIS,UKRI - AHRC,22/01/2019,Training Awards - Postgraduates,BGP Award,University of Reading,98378269,109207.62,Training Awards - Postgraduates
BEIS,UKRI - AHRC,22/01/2019,Training Awards - Postgraduates,Collabrative Doctoral Grants - Block Payment,University of Reading,98378318,4963.75,Training Awards - Postgraduates
BEIS,UKRI - AHRC,22/01/2019,Training Awards - Postgraduates,Collabrative Doctoral Grants - Block Payment,University of Reading,98378378,4973.00,Training Awards - Postgraduates
BEIS,UKRI - AHRC,22/01/2019,Training Awards - Postgraduates,Collabrative Doctoral Grants - Block Payment,University of Reading,98378384,4973.00,Training Awards - Postgraduates
BEIS,UKRI - AHRC,22/01/2019,Training Awards - Postgraduates,Collabrative Doctoral Grants - Block Payment,University of Sheffield,98378282,4963.75,Training Awards - Postgraduates
BEIS,UKRI - AHRC,22/01/2019,Training Awards - Postgraduates,Collabrative Doctoral Grants - Block Payment,University of Sheffield,98378347,4973.00,Training Awards - Postgraduates
BEIS,UKRI - AHRC,22/01/2019,Training Awards - Postgraduates,Collabrative Doctoral Grants - Block Payment,University of Sheffield,98378399,4946.75,Training Awards - Postgraduates
BEIS,UKRI - AHRC,22/01/2019,Training Awards - Postgraduates,Collabrative Doctoral Grants - Block Payment,University of Sheffield,98378399,4946.75,Training Awards - Postgraduates
BEIS,UKRI - AHRC,22/01/2019,Training Awards - Postgraduates,Collabrative Doctoral Grants - Block Payment,University of Sheffield,98378401,4946.75,Training Awards - Postgraduates
BEIS,UKRI - AHRC,22/01/2019,Training Awards - Postgraduates,Collabrative Doctoral Grants - Block Payment,University of Sheffield,98378462,-225.00,Training Awards - Postgraduates
BEIS,UKRI - AHRC,22/01/2019,Training Awards - Postgraduates,Collabrative Doctoral Grants - Block Payment,University of Sheffield,98378482,-75.00,Training Awards - Postgraduates
BEIS,UKRI - AHRC,22/01/2019,Training Awards - Postgraduates,International Placement Scheme,University of Sheffield,98378492,2000.00,Training Awards - Postgraduates
BEIS,UKRI - AHRC,22/01/2019,Training Awards - Postgraduates,Collabrative Doctoral Grants - Block Payment,University of Southampton GRANT,98378415,4946.75,Training Awards - Postgraduates
BEIS,UKRI - AHRC,22/01/2019,Training Awards - Postgraduates,Collabrative Doctoral Grants - Block Payment,University of Southampton GRANT,98378415,4946.75,Training Awards - Postgraduates
BEIS,UKRI - AHRC,22/01/2019,Training Awards - Postgraduates,Collabrative Doctoral Grants - Block Payment,University of Southampton GRANT,98378483,3156.50,Training Awards - Postgraduates
BEIS,UKRI - AHRC,22/01/2019,Training Awards - Postgraduates,Collabrative Doctoral Grants - Block Payment,University of Southampton GRANT,98378495,34984.40,Training Awards - Postgraduates
BEIS,UKRI - AHRC,22/01/2019,Training Awards - Postgraduates,Collabrative Doctoral Grants - Block Payment,University of St Andrews,98378278,4963.75,Training Awards - Postgraduates
BEIS,UKRI - AHRC,22/01/2019,Training Awards - Postgraduates,Collabrative Doctoral Grants - Block Payment,University of St Andrews,98378359,4973.00,Training Awards - Postgraduates
BEIS,UKRI - AHRC,22/01/2019,Training Awards - Postgraduates,Collabrative Doctoral Grants - Block Payment,University of Stirling,98378357,4973.00,Training Awards - Postgraduates
BEIS,UKRI - AHRC,22/01/2019,Training Awards - Postgraduates,Collabrative Doctoral Grants - Block Payment,University of Stirling,98378405,4946.75,Training Awards - Postgraduates
BEIS,UKRI - AHRC,22/01/2019,Training Awards - Postgraduates,Collabrative Doctoral Grants - Block Payment,University of Stirling,98378405,4946.75,Training Awards - Postgraduates
BEIS,UKRI - AHRC,22/01/2019,Training Awards - Postgraduates,Collabrative Doctoral Grants - Block Payment,University of Stirling,98378419,4946.75,Training Awards - Postgraduates
BEIS,UKRI - AHRC,22/01/2019,Training Awards - Postgraduates,Collabrative Doctoral Grants - Block Payment,University of Stirling,98378419,4946.75,Training Awards - Postgraduates
BEIS,UKRI - AHRC,22/01/2019,Training Awards - Postgraduates,Collabrative Doctoral Grants - Block Payment,University of Strathclyde,98378304,4963.75,Training Awards - Postgraduates
BEIS,UKRI - AHRC,22/01/2019,Training Awards - Postgraduates,Collabrative Doctoral Grants - Block Payment,University of Strathclyde,98378411,4792.13,Training Awards - Postgraduates
BEIS,UKRI - AHRC,22/01/2019,Training Awards - Postgraduates,Collabrative Doctoral Grants - Block Payment,University of Strathclyde,98378435,4946.75,Training Awards - Postgraduates
BEIS,UKRI - AHRC,22/01/2019,Training Awards - Postgraduates,Collabrative Doctoral Grants - Block Payment,University of Strathclyde,98378435,4946.75,Training Awards - Postgraduates
BEIS,UKRI - AHRC,22/01/2019,Training Awards - Postgraduates,Collabrative Doctoral Grants - Block Payment,University of Strathclyde,98378479,-2323.00,Training Awards - Postgraduates
BEIS,UKRI - AHRC,22/01/2019,Training Awards - Postgraduates,Collabrative Doctoral Grants - Block Payment,University of Strathclyde,98378486,-2323.00,Training Awards - Postgraduates
BEIS,UKRI - AHRC,22/01/2019,Training Awards - Postgraduates,Collabrative Doctoral Grants - Block Payment,University of Strathclyde,98378488,-7673.00,Training Awards - Postgraduates
BEIS,UKRI - AHRC,22/01/2019,Training Awards - Postgraduates,BGP Award,University of Sussex,98378270,846925.80,Training Awards - Postgraduates
BEIS,UKRI - AHRC,22/01/2019,Training Awards - Postgraduates,Collabrative Doctoral Grants - Block Payment,University of Sussex,98378362,4973.00,Training Awards - Postgraduates
BEIS,UKRI - AHRC,22/01/2019,Training Awards - Postgraduates,Collabrative Doctoral Grants - Block Payment,University of the Arts London,98378442,5446.75,Training Awards - Postgraduates
BEIS,UKRI - AHRC,22/01/2019,Training Awards - Postgraduates,Collabrative Doctoral Grants - Block Payment,University of the Arts London,98378442,5446.75,Training Awards - Postgraduates
BEIS,UKRI - AHRC,22/01/2019,Training Awards - Postgraduates,Collabrative Doctoral Grants - Block Payment,University of the Highlands and Islands,98378289,4963.75,Training Awards - Postgraduates
BEIS,UKRI - AHRC,22/01/2019,Training Awards - Postgraduates,BGP Award,University of the West of England,98378257,116788.61,Training Awards - Postgraduates
BEIS,UKRI - AHRC,22/01/2019,Training Awards - Postgraduates,BGP Award,University of the West of England,98378395,59676.00,Training Awards - Postgraduates
BEIS,UKRI - AHRC,22/01/2019,Training Awards - Postgraduates,Industrial Strategy Challenge Fund (ISCF) - Skills,University of the West of England,98378450,19665.67,Training Awards - Postgraduates
BEIS,UKRI - AHRC,22/01/2019,Training Awards - Postgraduates,Industrial Strategy Challenge Fund (ISCF) - Skills,University of the West of England,98378450,19665.67,Training Awards - Postgraduates
BEIS,UKRI - AHRC,22/01/2019,Training Awards - Postgraduates,Collabrative Doctoral Grants - Block Payment,University of Warwick,98378301,4963.75,Training Awards - Postgraduates
BEIS,UKRI - AHRC,22/01/2019,Training Awards - Postgraduates,Collabrative Doctoral Grants - Block Payment,University of Westminster,98378386,5473.00,Training Awards - Postgraduates
BEIS,UKRI - AHRC,22/01/2019,Training Awards - Postgraduates,Collabrative Doctoral Grants - Block Payment,University of Wolverhampton,98378350,4973.00,Training Awards - Postgraduates
BEIS,UKRI - AHRC,22/01/2019,Training Awards - Postgraduates,Collabrative Doctoral Grants - Block Payment,University of Wolverhampton,98378350,4973.00,Training Awards - Postgraduates
BEIS,UKRI - AHRC,22/01/2019,Training Awards - Postgraduates,BGP Award,University of York,98378272,956519.89,Training Awards - Postgraduates
BEIS,UKRI - AHRC,22/01/2019,Training Awards - Postgraduates,Collabrative Doctoral Grants - Block Payment,University of York,98378285,9927.50,Training Awards - Postgraduates
BEIS,UKRI - AHRC,22/01/2019,Training Awards - Postgraduates,Collabrative Doctoral Grants - Block Payment,University of York,98378300,4963.75,Training Awards - Postgraduates
BEIS,UKRI - AHRC,22/01/2019,Training Awards - Postgraduates,Collabrative Doctoral Grants - Block Payment,University of York,98378333,4963.75,Training Awards - Postgraduates
BEIS,UKRI - AHRC,22/01/2019,Training Awards - Postgraduates,Collabrative Doctoral Grants - Block Payment,University of York,98378379,4973.00,Training Awards - Postgraduates
BEIS,UKRI - AHRC,22/01/2019,Training Awards - Postgraduates,Collabrative Doctoral Grants - Block Payment,University of York,98378381,4973.00,Training Awards - Postgraduates
BEIS,UKRI - AHRC,22/01/2019,Training Awards - Postgraduates,Collabrative Doctoral Grants - Block Payment,University of York,98378423,4946.75,Training Awards - Postgraduates
BEIS,UKRI - AHRC,22/01/2019,Training Awards - Postgraduates,Collabrative Doctoral Grants - Block Payment,University of York,98378423,4946.75,Training Awards - Postgraduates
BEIS,UKRI - AHRC,22/01/2019,Training Awards - Postgraduates,International Placement Scheme,University of York,98378444,4470.00,Training Awards - Postgraduates
BEIS,UKRI - AHRC,22/01/2019,Training Awards - Postgraduates,Collabrative Doctoral Grants - Block Payment,University of York,98378487,-73.00,Training Awards - Postgraduates
BEIS,UKRI - AHRC,22/01/2019,Training Awards - Postgraduates,International Placement Scheme,University of York,98378489,4470.00,Training Awards - Postgraduates
BEIS,UKRI - AHRC,08/01/2019,Council & Committee Honoraria,New Programme Development,Unspecified,98222194,170.00,Council & Committee Honoraria
BEIS,UKRI - AHRC,03/01/2019,T&S UK - Vehicle Hire,Corporate Services,Unspecified,98375563,40.91,T&S UK - Vehicle Hire
BEIS,UKRI - AHRC,03/01/2019,T&S UK - Mileage,HR,Unspecified,98375564,31.05,T&S UK - Mileage
BEIS,UKRI - AHRC,08/01/2019,T&S UK - Public Transport,PSU Project Office,Unspecified,98378833,7.70,T&S UK - Public Transport
BEIS,UKRI - AHRC,09/01/2019,UK - Professional Memberships & Subscriptions,Finance,Unspecified,98379429,285.00,UK - Professional Memberships & Subscriptions
BEIS,UKRI - AHRC,09/01/2019,T&S UK - Other Charges,Finance,Unspecified,98379430,100.00,T&S UK - Other Charges
BEIS,UKRI - AHRC,09/01/2019,UK - Professional Memberships & Subscriptions,Finance,Unspecified,98379430,285.00,UK - Professional Memberships & Subscriptions
BEIS,UKRI - AHRC,09/01/2019,Health & Safety (inc. Medicals & Opticians),Creative Arts & Digital Humanities,Unspecified,98379431,12.99,Health & Safety (inc. Medicals & Opticians)
BEIS,UKRI - AHRC,09/01/2019,T&S UK - Public Transport,Industrial Strategy Challenge Fund (ISCF) - Creative Clusters,Unspecified,98379432,2.00,T&S UK - Public Transport
BEIS,UKRI - AHRC,09/01/2019,T&S UK - Public Transport,Industrial Strategy Challenge Fund (ISCF) - Creative Clusters,Unspecified,98379432,16.23,T&S UK - Public Transport
BEIS,UKRI - AHRC,09/01/2019,T&S UK - Subsistence,Industrial Strategy Challenge Fund (ISCF) - Creative Clusters,Unspecified,98379432,7.50,T&S UK - Subsistence
BEIS,UKRI - AHRC,09/01/2019,T&S UK - Subsistence,Industrial Strategy Challenge Fund (ISCF) - Creative Clusters,Unspecified,98379432,40.60,T&S UK - Subsistence
BEIS,UKRI - AHRC,09/01/2019,T&S UK - Subsistence,Industrial Strategy Challenge Fund (ISCF) - Creative Clusters,Unspecified,98379432,6.95,T&S UK - Subsistence
BEIS,UKRI - AHRC,09/01/2019,T&S UK - Subsistence,Industrial Strategy Challenge Fund (ISCF) - Creative Clusters,Unspecified,98379432,2.42,T&S UK - Subsistence
BEIS,UKRI - AHRC,09/01/2019,T&S UK - Subsistence,Business Process & Analysis,Unspecified,98379433,23.00,T&S UK - Subsistence
BEIS,UKRI - AHRC,09/01/2019,T&S UK - Public Transport,Creative Arts & Digital Humanities,Unspecified,98379434,38.20,T&S UK - Public Transport
BEIS,UKRI - AHRC,10/01/2019,T&S UK - Mileage,"AHRC - Strategic Planning, Evidence & Impact",Unspecified,98381138,29.16,T&S UK - Mileage
BEIS,UKRI - AHRC,10/01/2019,T&S UK - Public Transport,"AHRC - Strategic Planning, Evidence & Impact",Unspecified,98381138,9.90,T&S UK - Public Transport
BEIS,UKRI - AHRC,10/01/2019,T&S UK - Public Transport,"AHRC - Strategic Planning, Evidence & Impact",Unspecified,98381138,9.20,T&S UK - Public Transport
BEIS,UKRI - AHRC,10/01/2019,T&S UK - Subsistence,"AHRC - Strategic Planning, Evidence & Impact",Unspecified,98381138,22.90,T&S UK - Subsistence
BEIS,UKRI - AHRC,10/01/2019,T&S UK - Subsistence,"AHRC - Strategic Planning, Evidence & Impact",Unspecified,98381138,14.10,T&S UK - Subsistence
BEIS,UKRI - AHRC,11/01/2019,T&S Overseas - Other Charges,Fund for International Collaboration,Unspecified,98381897,32.30,T&S Overseas - Other Charges
BEIS,UKRI - AHRC,11/01/2019,T&S Overseas - Public Transport,Fund for International Collaboration,Unspecified,98381897,13.05,T&S Overseas - Public Transport
BEIS,UKRI - AHRC,11/01/2019,T&S Overseas - Subsistence,Fund for International Collaboration,Unspecified,98381897,5.00,T&S Overseas - Subsistence
BEIS,UKRI - AHRC,11/01/2019,T&S Overseas - Subsistence,Fund for International Collaboration,Unspecified,98381897,22.98,T&S Overseas - Subsistence
BEIS,UKRI - AHRC,11/01/2019,T&S UK - Public Transport,"AHRC - Strategic Planning, Evidence & Impact",Unspecified,98381899,22.90,T&S UK - Public Transport
BEIS,UKRI - AHRC,11/01/2019,T&S UK - Public Transport,Industrial Strategy Challenge Fund (ISCF) - Creative Clusters,Unspecified,98381899,24.70,T&S UK - Public Transport
BEIS,UKRI - AHRC,11/01/2019,T&S UK - Subsistence,"AHRC - Strategic Planning, Evidence & Impact",Unspecified,98381899,4.18,T&S UK - Subsistence
BEIS,UKRI - AHRC,11/01/2019,T&S UK - Subsistence,"AHRC - Strategic Planning, Evidence & Impact",Unspecified,98381899,47.69,T&S UK - Subsistence
BEIS,UKRI - AHRC,11/01/2019,T&S UK - Subsistence,Industrial Strategy Challenge Fund (ISCF) - Creative Clusters,Unspecified,98381899,15.00,T&S UK - Subsistence
BEIS,UKRI - AHRC,11/01/2019,T&S UK - Subsistence,Industrial Strategy Challenge Fund (ISCF) - Creative Clusters,Unspecified,98381899,2.15,T&S UK - Subsistence
BEIS,UKRI - AHRC,11/01/2019,T&S Overseas - Public Transport,"Languages,Literature & International Engagement",Unspecified,98381900,32.56,T&S Overseas - Public Transport
BEIS,UKRI - AHRC,11/01/2019,T&S Overseas - Subsistence,"Languages,Literature & International Engagement",Unspecified,98381900,13.20,T&S Overseas - Subsistence
BEIS,UKRI - AHRC,14/01/2019,T&S UK - Mileage,HR,Unspecified,98381898,81.90,T&S UK - Mileage
BEIS,UKRI - AHRC,14/01/2019,T&S UK - Parking Tolls Congestion Charges,HR,Unspecified,98381898,9.70,T&S UK - Parking Tolls Congestion Charges
BEIS,UKRI - AHRC,14/01/2019,T&S UK - Other Charges,Communications,Unspecified,98382951,14.79,T&S UK - Other Charges
BEIS,UKRI - AHRC,14/01/2019,T&S UK - Public Transport,Communications,Unspecified,98382951,6.00,T&S UK - Public Transport
BEIS,UKRI - AHRC,14/01/2019,T&S UK - Subsistence,Communications,Unspecified,98382951,22.99,T&S UK - Subsistence
BEIS,UKRI - AHRC,15/01/2019,UK - Professional Memberships & Subscriptions,Finance,Unspecified,98370493,285.00,UK - Professional Memberships & Subscriptions
BEIS,UKRI - AHRC,16/01/2019,T&S UK - Subsistence,Communications,Unspecified,98339569,20.76,T&S UK - Subsistence
BEIS,UKRI - AHRC,16/01/2019,T&S UK - Other Charges,SMT,Unspecified,98384800,14.85,T&S UK - Other Charges
BEIS,UKRI - AHRC,16/01/2019,T&S UK - Parking Tolls Congestion Charges,SMT,Unspecified,98384800,70.60,T&S UK - Parking Tolls Congestion Charges
BEIS,UKRI - AHRC,16/01/2019,T&S UK - Public Transport,SMT,Unspecified,98384800,4.00,T&S UK - Public Transport
BEIS,UKRI - AHRC,16/01/2019,T&S UK - Public Transport,SMT,Unspecified,98384800,5.00,T&S UK - Public Transport
BEIS,UKRI - AHRC,16/01/2019,T&S UK - Subsistence,SMT,Unspecified,98384800,30.98,T&S UK - Subsistence
BEIS,UKRI - AHRC,16/01/2019,T&S UK - Subsistence,SMT,Unspecified,98384800,64.39,T&S UK - Subsistence
BEIS,UKRI - AHRC,16/01/2019,T&S UK - Subsistence,SMT,Unspecified,98384800,26.03,T&S UK - Subsistence
BEIS,UKRI - AHRC,16/01/2019,T&S UK - Subsistence,SMT,Unspecified,98384800,17.74,T&S UK - Subsistence
BEIS,UKRI - AHRC,16/01/2019,UK - Professional Memberships & Subscriptions,HR,Unspecified,98384801,28.75,UK - Professional Memberships & Subscriptions
BEIS,UKRI - AHRC,17/01/2019,T&S UK - Mileage,HR,Unspecified,98385814,74.79,T&S UK - Mileage
BEIS,UKRI - AHRC,17/01/2019,T&S UK - Other Charges,Communications,Unspecified,98385815,2.65,T&S UK - Other Charges
BEIS,UKRI - AHRC,17/01/2019,T&S UK - Subsistence,Communications,Unspecified,98385815,7.00,T&S UK - Subsistence
BEIS,UKRI - AHRC,18/01/2019,UK - Professional Memberships & Subscriptions,Finance,Unspecified,98386340,285.00,UK - Professional Memberships & Subscriptions
BEIS,UKRI - AHRC,18/01/2019,Education Fees & Study Materials,HR,Unspecified,98386341,19.98,Education Fees & Study Materials
BEIS,UKRI - AHRC,18/01/2019,GPC Clearing - AHRC,Balance Sheet,Unspecified,98386341,-297.37,GPC Clearing - AHRC
BEIS,UKRI - AHRC,18/01/2019,Health & Safety (inc. Medicals & Opticians),HR,Unspecified,98386341,277.39,Health & Safety (inc. Medicals & Opticians)
BEIS,UKRI - AHRC,18/01/2019,T&S UK - Public Transport,HR,Unspecified,98386341,14.60,T&S UK - Public Transport
BEIS,UKRI - AHRC,18/01/2019,T&S UK - Subsistence,HR,Unspecified,98386341,2.15,T&S UK - Subsistence
BEIS,UKRI - AHRC,18/01/2019,T&S UK - Subsistence,HR,Unspecified,98386341,14.05,T&S UK - Subsistence
BEIS,UKRI - AHRC,18/01/2019,T&S UK - Vehicle Hire,HR,Unspecified,98386341,63.00,T&S UK - Vehicle Hire
BEIS,UKRI - AHRC,21/01/2019,T&S UK - Other Charges,Communications,Unspecified,98387905,2.65,T&S UK - Other Charges
BEIS,UKRI - AHRC,21/01/2019,T&S UK - Public Transport,Communications,Unspecified,98387906,14.30,T&S UK - Public Transport
BEIS,UKRI - AHRC,21/01/2019,T&S UK - Public Transport,Communications,Unspecified,98387906,26.00,T&S UK - Public Transport
BEIS,UKRI - AHRC,21/01/2019,T&S UK - Subsistence,Communications,Unspecified,98387906,43.57,T&S UK - Subsistence
BEIS,UKRI - AHRC,21/01/2019,T&S UK - Subsistence,Communications,Unspecified,98387906,10.77,T&S UK - Subsistence
BEIS,UKRI - AHRC,21/01/2019,T&S UK - Subsistence,Communications,Unspecified,98387906,29.80,T&S UK - Subsistence
BEIS,UKRI - AHRC,21/01/2019,T&S UK - Subsistence,Communications,Unspecified,98387906,20.00,T&S UK - Subsistence
BEIS,UKRI - AHRC,23/01/2019,GPC Clearing - AHRC,Balance Sheet,Unspecified,98390099,-94.33,GPC Clearing - AHRC
BEIS,UKRI - AHRC,23/01/2019,T&S UK - Other Charges,HR,Unspecified,98390099,94.33,T&S UK - Other Charges
BEIS,UKRI - AHRC,23/01/2019,T&S UK - Vehicle Hire,HR,Unspecified,98390099,31.50,T&S UK - Vehicle Hire
BEIS,UKRI - AHRC,24/01/2019,T&S UK - Public Transport,Communications,Unspecified,98390557,7.60,T&S UK - Public Transport
BEIS,UKRI - AHRC,24/01/2019,T&S UK - Subsistence,Communications,Unspecified,98390557,24.50,T&S UK - Subsistence
BEIS,UKRI - AHRC,24/01/2019,T&S UK - Subsistence,Communications,Unspecified,98390557,5.58,T&S UK - Subsistence
BEIS,UKRI - AHRC,25/01/2019,T&S UK - Mileage,HR,Unspecified,98391073,133.20,T&S UK - Mileage
BEIS,UKRI - AHRC,25/01/2019,T&S UK - Public Transport,Business Process & Analysis,Unspecified,98391074,3.30,T&S UK - Public Transport
BEIS,UKRI - AHRC,25/01/2019,T&S UK - Public Transport,Business Process & Analysis,Unspecified,98391074,24.60,T&S UK - Public Transport
BEIS,UKRI - AHRC,30/01/2019,T&S UK - Other Charges,Secretariat,Unspecified,98393712,10.35,T&S UK - Other Charges
BEIS,UKRI - AHRC,30/01/2019,T&S UK - Public Transport,Secretariat,Unspecified,98393712,8.50,T&S UK - Public Transport
BEIS,UKRI - AHRC,30/01/2019,T&S UK - Public Transport,Secretariat,Unspecified,98393712,41.30,T&S UK - Public Transport
BEIS,UKRI - AHRC,30/01/2019,T&S UK - Public Transport,Secretariat,Unspecified,98393712,3.70,T&S UK - Public Transport
BEIS,UKRI - AHRC,30/01/2019,T&S UK - Subsistence,Secretariat,Unspecified,98393712,16.05,T&S UK - Subsistence
BEIS,UKRI - AHRC,30/01/2019,T&S UK - Subsistence,Secretariat,Unspecified,98393712,15.15,T&S UK - Subsistence
BEIS,UKRI - AHRC,31/01/2019,T&S UK - Subsistence,GCRF - Programme Delivery,Unspecified,98393620,10.03,T&S UK - Subsistence
BEIS,UKRI - AHRC,31/01/2019,T&S UK - Flights,Industrial Strategy Challenge Fund (ISCF) - Creative Clusters,Unspecified,98393621,12.00,T&S UK - Flights
BEIS,UKRI - AHRC,31/01/2019,T&S UK - Mileage,Industrial Strategy Challenge Fund (ISCF) - Creative Clusters,Unspecified,98393621,38.16,T&S UK - Mileage
BEIS,UKRI - AHRC,31/01/2019,T&S UK - Parking Tolls Congestion Charges,Industrial Strategy Challenge Fund (ISCF) - Creative Clusters,Unspecified,98393621,52.99,T&S UK - Parking Tolls Congestion Charges
BEIS,UKRI - AHRC,31/01/2019,T&S UK - Public Transport,Industrial Strategy Challenge Fund (ISCF) - Creative Clusters,Unspecified,98393621,4.40,T&S UK - Public Transport
BEIS,UKRI - AHRC,31/01/2019,T&S UK - Public Transport,Industrial Strategy Challenge Fund (ISCF) - Creative Clusters,Unspecified,98393621,48.20,T&S UK - Public Transport
BEIS,UKRI - AHRC,31/01/2019,T&S UK - Subsistence,Industrial Strategy Challenge Fund (ISCF) - Creative Clusters,Unspecified,98393621,5.73,T&S UK - Subsistence
BEIS,UKRI - AHRC,31/01/2019,T&S UK - Subsistence,Industrial Strategy Challenge Fund (ISCF) - Creative Clusters,Unspecified,98393621,23.15,T&S UK - Subsistence
BEIS,UKRI - AHRC,31/01/2019,T&S UK - Subsistence,Industrial Strategy Challenge Fund (ISCF) - Creative Clusters,Unspecified,98393621,14.05,T&S UK - Subsistence
BEIS,UKRI - AHRC,31/01/2019,T&S UK - Subsistence,Industrial Strategy Challenge Fund (ISCF) - Creative Clusters,Unspecified,98393621,10.00,T&S UK - Subsistence
BEIS,UKRI - AHRC,31/01/2019,T&S UK - Other Charges,Newton Programme Delivery,Unspecified,98393622,80.58,T&S UK - Other Charges
BEIS,UKRI - AHRC,22/01/2019,Training Awards - Postgraduates,Collabrative Doctoral Grants - Block Payment,Victoria and Albert Museum,98378276,3059.57,Training Awards - Postgraduates
BEIS,UKRI - BBSRC,11/01/2019,Non-Capital Building Construction,JBOS - Maintenance,Abbey Business Equipment Ltd,98377235," 3,000.00 ",Non-Capital Building Construction
BEIS,UKRI - BBSRC,11/01/2019,Purchase of non capital equipment,JBOS - Maintenance,Abbey Business Equipment Ltd,98377243, 988.18 ,Purchase of non capital equipment
BEIS,UKRI - BBSRC,15/01/2019,Non-Capital Building Construction,JBOS - Maintenance,Abbey Business Equipment Ltd,98383212," 2,520.00 ",Non-Capital Building Construction
BEIS,UKRI - BBSRC,09/01/2019,Research Institutes - Capital Grants: Major Works,IBERS,ABERYSTWYTH INNOVATION AND ENTERPRISE CAMPUS LTD (AIEC),98379289," 94,913.47 ",Research Institutes - Capital Grants: Major Works
BEIS,UKRI - BBSRC,23/01/2019,Research Institutes - Capital Grants: Major Works,IBERS,ABERYSTWYTH INNOVATION AND ENTERPRISE CAMPUS LTD (AIEC),98386491," 1,003,745.76 ",Research Institutes - Capital Grants: Major Works
BEIS,UKRI - BBSRC,10/01/2019,Training Awards - Postgraduates,FG - Accounts & Business Planning,Aberystwyth University,98349702," 5,081.67 ",Training Awards - Postgraduates
BEIS,UKRI - BBSRC,10/01/2019,Training Awards - Postgraduates,FG - Accounts & Business Planning,Aberystwyth University,98352068," 3,719.55 ",Training Awards - Postgraduates
BEIS,UKRI - BBSRC,10/01/2019,Training Awards - Postgraduates,FG - Accounts & Business Planning,Aberystwyth University,98352121," 5,940.12 ",Training Awards - Postgraduates
BEIS,UKRI - BBSRC,10/01/2019,Training Awards - Postgraduates,FG - Accounts & Business Planning,Aberystwyth University,98352123," 5,940.12 ",Training Awards - Postgraduates
BEIS,UKRI - BBSRC,10/01/2019,Training Awards - Postgraduates,FG - Accounts & Business Planning,Aberystwyth University,98352171," 5,940.12 ",Training Awards - Postgraduates
BEIS,UKRI - BBSRC,10/01/2019,Training Awards - Postgraduates,FG - Accounts & Business Planning,Aberystwyth University,98352179," 5,940.12 ",Training Awards - Postgraduates
BEIS,UKRI - BBSRC,10/01/2019,Training Awards - Postgraduates,FG - Accounts & Business Planning,Aberystwyth University,98352181," 5,940.12 ",Training Awards - Postgraduates
BEIS,UKRI - BBSRC,08/01/2019,Recruitment Costs,PDG - Director,Agenda Resource Management Ltd,98377507, 155.91 ,Recruitment Costs
BEIS,UKRI - BBSRC,09/01/2019,Recruitment Costs,PDG - Director,Agenda Resource Management Ltd,98378173, 155.91 ,Recruitment Costs
BEIS,UKRI - BBSRC,10/01/2019,Recruitment Costs,PDG - Director,Agenda Resource Management Ltd,98368571, 155.91 ,Recruitment Costs
BEIS,UKRI - BBSRC,28/01/2019,Recruitment Costs,PDG - Director,Agenda Resource Management Ltd,98389302, 155.91 ,Recruitment Costs
BEIS,UKRI - BBSRC,29/01/2019,Recruitment Costs,PDG - Director,Agenda Resource Management Ltd,98389382, 155.91 ,Recruitment Costs
BEIS,UKRI - BBSRC,30/01/2019,Recruitment Costs,PDG - Director,Agenda Resource Management Ltd,98389381, 155.91 ,Recruitment Costs
BEIS,UKRI - BBSRC,30/01/2019,Recruitment Costs,PDG - Director,Agenda Resource Management Ltd,98389383, 155.91 ,Recruitment Costs
BEIS,UKRI - BBSRC,22/01/2019,Printing & Stationery,FG - Accounts & Business Planning,Allied Publicity Services (Manchester) Ltd t/a APS Group,98388255, 455.52 ,Printing & Stationery
BEIS,UKRI - BBSRC,03/01/2019,Health & Safety (inc. Medicals & Opticians),PDG - Director,AM Health & Safety Ltd,98372957, 459.00 ,Health & Safety (inc. Medicals & Opticians)
BEIS,UKRI - BBSRC,03/01/2019,Health & Safety (inc. Medicals & Opticians),JBOS Health and Safety,AM Health & Safety Ltd,98372964, 99.00 ,Health & Safety (inc. Medicals & Opticians)
BEIS,UKRI - BBSRC,03/01/2019,Health & Safety (inc. Medicals & Opticians),PDG - Director,AM Health & Safety Ltd,98372965, 54.00 ,Health & Safety (inc. Medicals & Opticians)
BEIS,UKRI - BBSRC,23/01/2019,Health & Safety (inc. Medicals & Opticians),PDG - Director,AM Health & Safety Ltd,98387414, 198.00 ,Health & Safety (inc. Medicals & Opticians)
BEIS,UKRI - BBSRC,03/01/2019,Mechanical & Electrical Maintenance,JBOS - Maintenance,AR Electrical (Swindon) Ltd,98375285, 300.00 ,Mechanical & Electrical Maintenance
BEIS,UKRI - BBSRC,11/01/2019,Non-Capital Building Construction,JBOS - Maintenance,AR Electrical (Swindon) Ltd,98365618," 11,126.40 ",Non-Capital Building Construction
BEIS,UKRI - BBSRC,17/01/2019,Non-Capital Building Construction,JBOS - Maintenance,AR Electrical (Swindon) Ltd,98384374," 4,621.20 ",Non-Capital Building Construction
BEIS,UKRI - BBSRC,10/01/2019,Training Awards - Postgraduates,FG - Accounts & Business Planning,Aston University,98349726," 5,882.95 ",Training Awards - Postgraduates
BEIS,UKRI - BBSRC,10/01/2019,Training Awards - Postgraduates,FG - Accounts & Business Planning,Aston University,98349728," 3,954.41 ",Training Awards - Postgraduates
BEIS,UKRI - BBSRC,10/01/2019,Training Awards - Postgraduates,FG - Accounts & Business Planning,Aston University,98349731," 5,388.18 ",Training Awards - Postgraduates
BEIS,UKRI - BBSRC,10/01/2019,Training Awards - Postgraduates,FG - Accounts & Business Planning,Aston University,98352135," 5,940.12 ",Training Awards - Postgraduates
BEIS,UKRI - BBSRC,10/01/2019,Training Awards - Postgraduates,FG - Accounts & Business Planning,Aston University,98352198," 5,940.12 ",Training Awards - Postgraduates
BEIS,UKRI - BBSRC,08/01/2019,Health & Safety (inc. Medicals & Opticians),PDG - Director,Banner Group Ltd,98377170, 112.61 ,Health & Safety (inc. Medicals & Opticians)
BEIS,UKRI - BBSRC,11/01/2019,Printing & Stationery,PDG - JSS,Banner Group Ltd,98334230, 11.76 ,Printing & Stationery
BEIS,UKRI - BBSRC,11/01/2019,VAT Input Tax Control (for UK VAT),Balance Sheet,Banner Group Ltd,98334230, 2.35 ,VAT Input Tax Control (for UK VAT)
BEIS,UKRI - BBSRC,15/01/2019,Catering Contracts,JBOS - Restaurant,Banner Group Ltd,98382360, 16.15 ,Catering Contracts
BEIS,UKRI - BBSRC,15/01/2019,Catering Contracts,JBOS - Restaurant,Banner Group Ltd,98382360, 33.91 ,Catering Contracts
BEIS,UKRI - BBSRC,15/01/2019,Catering Contracts,JBOS - Restaurant,Banner Group Ltd,98382360, 7.71 ,Catering Contracts
BEIS,UKRI - BBSRC,17/01/2019,Printing & Stationery,JBOS - Administration,Banner Group Ltd,98326255,-0.19 ,Printing & Stationery
BEIS,UKRI - BBSRC,17/01/2019,Printing & Stationery,JBOS - Administration,Banner Group Ltd,98326255, 1.53 ,Printing & Stationery
BEIS,UKRI - BBSRC,17/01/2019,Printing & Stationery,JBOS - Administration,Banner Group Ltd,98326255,-0.96 ,Printing & Stationery
BEIS,UKRI - BBSRC,17/01/2019,Printing & Stationery,CIMG - Director,Banner Group Ltd,98382361, 0.84 ,Printing & Stationery
BEIS,UKRI - BBSRC,17/01/2019,Printing & Stationery,CIMG - Director,Banner Group Ltd,98382361, 2.06 ,Printing & Stationery
BEIS,UKRI - BBSRC,18/01/2019,Printing & Stationery,JBOS - Administration,Banner Group Ltd,98368405, 54.84 ,Printing & Stationery
BEIS,UKRI - BBSRC,18/01/2019,Printing & Stationery,JBOS - Administration,Banner Group Ltd,98368405, 30.62 ,Printing & Stationery
BEIS,UKRI - BBSRC,21/01/2019,Printing & Stationery,JBOS - Administration,Banner Group Ltd,98386629, 11.40 ,Printing & Stationery
BEIS,UKRI - BBSRC,21/01/2019,Printing & Stationery,JBOS - Administration,Banner Group Ltd,98386629, 8.04 ,Printing & Stationery
BEIS,UKRI - BBSRC,21/01/2019,Printing & Stationery,JBOS - Administration,Banner Group Ltd,98386629, 7.56 ,Printing & Stationery
BEIS,UKRI - BBSRC,21/01/2019,Printing & Stationery,JBOS - Administration,Banner Group Ltd,98386629, 7.61 ,Printing & Stationery
BEIS,UKRI - BBSRC,21/01/2019,Printing & Stationery,JBOS - Administration,Banner Group Ltd,98386629, 0.13 ,Printing & Stationery
BEIS,UKRI - BBSRC,21/01/2019,Printing & Stationery,JBOS - Administration,Banner Group Ltd,98386629, 82.26 ,Printing & Stationery
BEIS,UKRI - BBSRC,21/01/2019,Printing & Stationery,JBOS - Administration,Banner Group Ltd,98386629, 117.60 ,Printing & Stationery
BEIS,UKRI - BBSRC,21/01/2019,Printing & Stationery,JBOS - Administration,Banner Group Ltd,98386629, 4.44 ,Printing & Stationery
BEIS,UKRI - BBSRC,21/01/2019,Printing & Stationery,JBOS - Administration,Banner Group Ltd,98386629, 3.24 ,Printing & Stationery
BEIS,UKRI - BBSRC,21/01/2019,Printing & Stationery,JBOS - Administration,Banner Group Ltd,98386629, 6.06 ,Printing & Stationery
BEIS,UKRI - BBSRC,21/01/2019,Printing & Stationery,JBOS - Administration,Banner Group Ltd,98386629, 5.54 ,Printing & Stationery
BEIS,UKRI - BBSRC,21/01/2019,Printing & Stationery,JBOS - Administration,Banner Group Ltd,98386629, 6.47 ,Printing & Stationery
BEIS,UKRI - BBSRC,21/01/2019,Printing & Stationery,JBOS - Administration,Banner Group Ltd,98386629, 16.56 ,Printing & Stationery
BEIS,UKRI - BBSRC,22/01/2019,Printing & Stationery,JBOS - Administration,Banner Group Ltd,98388009, 10.92 ,Printing & Stationery
BEIS,UKRI - BBSRC,23/01/2019,Printing & Stationery,JBOS - Administration,Banner Group Ltd,98388007, 144.00 ,Printing & Stationery
BEIS,UKRI - BBSRC,24/01/2019,Safety Materials & Equipment,JBOS Health and Safety,Banner Group Ltd,98388008, 5.90 ,Safety Materials & Equipment
BEIS,UKRI - BBSRC,24/01/2019,Safety Materials & Equipment,JBOS Health and Safety,Banner Group Ltd,98388008, 3.78 ,Safety Materials & Equipment
BEIS,UKRI - BBSRC,29/01/2019,Printing & Stationery,JBOS - Administration,Banner Group Ltd,98391727, 2.11 ,Printing & Stationery
BEIS,UKRI - BBSRC,29/01/2019,Printing & Stationery,JBOS - Administration,Banner Group Ltd,98391728, 3.50 ,Printing & Stationery
BEIS,UKRI - BBSRC,30/01/2019,Health & Safety (inc. Medicals & Opticians),PDG - Director,Banner Group Ltd,98389525, 184.90 ,Health & Safety (inc. Medicals & Opticians)
BEIS,UKRI - BBSRC,31/01/2019,Printing & Stationery,CIMG - Director,Banner Group Ltd,98392345, 7.55 ,Printing & Stationery
BEIS,UKRI - BBSRC,02/01/2019,Meetings & Catering,CE - Chief Executive,Baxter Storey Ltd,98374945, 376.62 ,Meetings & Catering
BEIS,UKRI - BBSRC,02/01/2019,Meetings & Catering,FG - Accounts & Business Planning,Baxter Storey Ltd,98374945, 126.72 ,Meetings & Catering
BEIS,UKRI - BBSRC,02/01/2019,Meetings & Catering,FG - Director,Baxter Storey Ltd,98374945, 166.44 ,Meetings & Catering
BEIS,UKRI - BBSRC,02/01/2019,Meetings & Catering,Innovation and Skills Group,Baxter Storey Ltd,98374945, 266.10 ,Meetings & Catering
BEIS,UKRI - BBSRC,02/01/2019,Meetings & Catering,Science Group,Baxter Storey Ltd,98374945, 453.42 ,Meetings & Catering
BEIS,UKRI - BBSRC,31/01/2019,Meetings & Catering,FG - Accounts & Business Planning,Baxter Storey Ltd,98394512, 461.64 ,Meetings & Catering
BEIS,UKRI - BBSRC,09/01/2019,Other Staff Benefits,PDG - Director,Benenden Healthcare Society,98368581," 8,702.25 ",Other Staff Benefits
BEIS,UKRI - BBSRC,22/01/2019,Health & Safety (inc. Medicals & Opticians),PDG - Director,BMI Healthcare Limited,98388153," 1,908.20 ",Health & Safety (inc. Medicals & Opticians)
BEIS,UKRI - BBSRC,29/01/2019,Mechanical & Electrical Maintenance,JBOS - Maintenance,British Engineering Services Ltd,98392699," 1,858.86 ",Mechanical & Electrical Maintenance
BEIS,UKRI - BBSRC,10/01/2019,Training Awards - Postgraduates,FG - Accounts & Business Planning,Brunel University London,98352355," 6,543.50 ",Training Awards - Postgraduates
BEIS,UKRI - BBSRC,28/01/2019,Telecoms - Tele/ Video conferencing,FG - Director,BT Conferencing,98391563, 220.40 ,Telecoms - Tele/ Video conferencing
BEIS,UKRI - BBSRC,28/01/2019,Telecoms - Tele/ Video conferencing,Innovation and Skills Group,BT Conferencing,98391563, 26.74 ,Telecoms - Tele/ Video conferencing
BEIS,UKRI - BBSRC,08/01/2019,Other Programme Costs,Science Group,Calder Conference Ltd,98372581, 461.28 ,Other Programme Costs
BEIS,UKRI - BBSRC,11/01/2019,Meetings & Catering,European Initiatives,Calder Conference Ltd,98346186," 6,667.00 ",Meetings & Catering
BEIS,UKRI - BBSRC,11/01/2019,Meetings & Catering,European Initiatives,Calder Conference Ltd,98377085,"-1,577.40 ",Meetings & Catering
BEIS,UKRI - BBSRC,15/01/2019,Other Programme Costs,Innovation and Skills Group CDSU,Calder Conference Ltd,98374572," 5,358.00 ",Other Programme Costs
BEIS,UKRI - BBSRC,15/01/2019,Other Programme Costs,Innovation and Skills Group CDSU,Calder Conference Ltd,98381585," 5,185.00 ",Other Programme Costs
BEIS,UKRI - BBSRC,16/01/2019,Other Programme Costs,Innovation and Skills Group CDSU,Calder Conference Ltd,98384673," 3,142.30 ",Other Programme Costs
BEIS,UKRI - BBSRC,17/01/2019,Other Programme Costs,Innovation and Skills Group,Calder Conference Ltd,98380498, 377.00 ,Other Programme Costs
BEIS,UKRI - BBSRC,22/01/2019,Other Programme Costs,Science Group,Calder Conference Ltd,98387836," 1,725.00 ",Other Programme Costs
BEIS,UKRI - BBSRC,10/01/2019,Training Awards - Postgraduates,FG - Accounts & Business Planning,Cambridge Crystallographic Data Centre,98352312," 6,043.50 ",Training Awards - Postgraduates
BEIS,UKRI - BBSRC,09/01/2019,Security Services,JBOS - Maintenance,Capita Secure Information Solutions Ltd T/A Capita Workforce Management,98379079, 708.00 ,Security Services
BEIS,UKRI - BBSRC,10/01/2019,Security Services,JBOS - Maintenance,Capita Secure Information Solutions Ltd T/A Capita Workforce Management,98380645, 708.00 ,Security Services
BEIS,UKRI - BBSRC,10/01/2019,Security Services,JBOS - Maintenance,Capita Secure Information Solutions Ltd T/A Capita Workforce Management,98380756, 354.00 ,Security Services
BEIS,UKRI - BBSRC,10/01/2019,Training Awards - Postgraduates,FG - Accounts & Business Planning,Cardiff University,98352111," 5,940.12 ",Training Awards - Postgraduates
BEIS,UKRI - BBSRC,10/01/2019,Training Awards - Postgraduates,FG - Accounts & Business Planning,Cardiff University,98352229," 5,940.12 ",Training Awards - Postgraduates
BEIS,UKRI - BBSRC,10/01/2019,Training Awards - Postgraduates,FG - Accounts & Business Planning,Cardiff University,98352338," 6,043.50 ",Training Awards - Postgraduates
BEIS,UKRI - BBSRC,10/01/2019,Training Awards - Postgraduates,FG - Accounts & Business Planning,Cardiff University,98352368," 6,138.25 ",Training Awards - Postgraduates
BEIS,UKRI - BBSRC,10/01/2019,Training Awards - Postgraduates,FG - Accounts & Business Planning,Cardiff University,98352525," 6,189.63 ",Training Awards - Postgraduates
BEIS,UKRI - BBSRC,10/01/2019,Training Awards - Postgraduates,FG - Accounts & Business Planning,Cardiff University,98352525," 6,189.63 ",Training Awards - Postgraduates
BEIS,UKRI - BBSRC,10/01/2019,Training Awards - Postgraduates,FG - Accounts & Business Planning,Cardiff University,98352526," 6,189.63 ",Training Awards - Postgraduates
BEIS,UKRI - BBSRC,10/01/2019,Training Awards - Postgraduates,FG - Accounts & Business Planning,Cardiff University,98352526," 6,189.63 ",Training Awards - Postgraduates
BEIS,UKRI - BBSRC,07/01/2019,Water,JBOS - Maintenance,Castle Water Ltd,98377322," 3,131.46 ",Water
BEIS,UKRI - BBSRC,15/01/2019,Voluntary Deductions,Balance Sheet,Charities Aid Foundation - GAYE,98378129, 570.83 ,Voluntary Deductions
BEIS,UKRI - BBSRC,28/01/2019,Subsidiaries Expenditure,Innovation and Skills Group,CIELivestock Ltd,98375511," 60,000.00 ",Subsidiaries Expenditure
BEIS,UKRI - BBSRC,28/01/2019,Subsidiaries Expenditure,Innovation and Skills Group,CIELivestock Ltd,98390361,"-60,000.00 ",Subsidiaries Expenditure
BEIS,UKRI - BBSRC,11/01/2019,Postage & Courier Services,JBOS - Post Room,unspecified,98381544, 743.64 ,Postage & Courier Services
BEIS,UKRI - BBSRC,15/01/2019,Voluntary Deductions,Balance Sheet,Civil Service Benevolent Fund,98376419, 2.00 ,Voluntary Deductions
BEIS,UKRI - BBSRC,23/01/2019,Legal & Professional Services,CE - CPS,unspecified,98387656," 9,227.54 ",Legal & Professional Services
BEIS,UKRI - BBSRC,18/01/2019,Gas,JBOS - Maintenance,Corona Energy,98386222," 4,554.36 ",Gas
BEIS,UKRI - BBSRC,11/01/2019,T&S UK - Public Transport,Science Group,Corporate Airport Transfers Ltd,98379371, 156.00 ,T&S UK - Public Transport
BEIS,UKRI - BBSRC,17/01/2019,T&S UK - Vehicle Hire,CE - IRU,Corporate Airport Transfers Ltd,98362020, 558.00 ,T&S UK - Vehicle Hire
BEIS,UKRI - BBSRC,17/01/2019,T&S UK - Vehicle Hire,CE - IRU,Corporate Airport Transfers Ltd,98373686, 62.40 ,T&S UK - Vehicle Hire
BEIS,UKRI - BBSRC,11/01/2019,Non-staff travel and subsistance,Science Group - Delivery Function,Corporate Travel Management (North) Ltd,98379774, 79.80 ,Non-staff travel and subsistance
BEIS,UKRI - BBSRC,11/01/2019,Non-staff travel and subsistance,Science Group - Delivery Function,Corporate Travel Management (North) Ltd,98379774, 0.50 ,Non-staff travel and subsistance
BEIS,UKRI - BBSRC,11/01/2019,Non-staff travel and subsistance,Science Group - Delivery Function,Corporate Travel Management (North) Ltd,98379774, 158.00 ,Non-staff travel and subsistance
BEIS,UKRI - BBSRC,11/01/2019,Non-staff travel and subsistance,Science Group - Delivery Function,Corporate Travel Management (North) Ltd,98379774, 0.10 ,Non-staff travel and subsistance
BEIS,UKRI - BBSRC,11/01/2019,T&S Overseas - Accommodation,CE - CPS,Corporate Travel Management (North) Ltd,98379774, 0.50 ,T&S Overseas - Accommodation
BEIS,UKRI - BBSRC,11/01/2019,T&S Overseas - Accommodation,CE - CPS,Corporate Travel Management (North) Ltd,98379774, 0.10 ,T&S Overseas - Accommodation
BEIS,UKRI - BBSRC,11/01/2019,T&S Overseas - Accommodation,CE - IRU,Corporate Travel Management (North) Ltd,98379774, 0.50 ,T&S Overseas - Accommodation
BEIS,UKRI - BBSRC,11/01/2019,T&S Overseas - Accommodation,CE - IRU,Corporate Travel Management (North) Ltd,98379774, 0.50 ,T&S Overseas - Accommodation
BEIS,UKRI - BBSRC,11/01/2019,T&S Overseas - Accommodation,CE - IRU,Corporate Travel Management (North) Ltd,98379774, 507.72 ,T&S Overseas - Accommodation
BEIS,UKRI - BBSRC,11/01/2019,T&S Overseas - Accommodation,CE - IRU,Corporate Travel Management (North) Ltd,98379774, 0.10 ,T&S Overseas - Accommodation
BEIS,UKRI - BBSRC,11/01/2019,T&S Overseas - Accommodation,CE - IRU,Corporate Travel Management (North) Ltd,98379774, 0.10 ,T&S Overseas - Accommodation
BEIS,UKRI - BBSRC,11/01/2019,T&S Overseas - Accommodation,FG - RCUK Assurance,Corporate Travel Management (North) Ltd,98379774, 0.50 ,T&S Overseas - Accommodation
BEIS,UKRI - BBSRC,11/01/2019,T&S Overseas - Accommodation,FG - RCUK Assurance,Corporate Travel Management (North) Ltd,98379774, 0.50 ,T&S Overseas - Accommodation
BEIS,UKRI - BBSRC,11/01/2019,T&S Overseas - Accommodation,FG - RCUK Assurance,Corporate Travel Management (North) Ltd,98379774, 0.20 ,T&S Overseas - Accommodation
BEIS,UKRI - BBSRC,11/01/2019,T&S Overseas - Accommodation,Science Group,Corporate Travel Management (North) Ltd,98379774, 0.50 ,T&S Overseas - Accommodation
BEIS,UKRI - BBSRC,11/01/2019,T&S Overseas - Accommodation,Science Group,Corporate Travel Management (North) Ltd,98379774, 0.50 ,T&S Overseas - Accommodation
BEIS,UKRI - BBSRC,11/01/2019,T&S Overseas - Accommodation,Science Group,Corporate Travel Management (North) Ltd,98379774, 0.50 ,T&S Overseas - Accommodation
BEIS,UKRI - BBSRC,11/01/2019,T&S Overseas - Accommodation,Science Group,Corporate Travel Management (North) Ltd,98379774, 0.50 ,T&S Overseas - Accommodation
BEIS,UKRI - BBSRC,11/01/2019,T&S Overseas - Accommodation,Science Group,Corporate Travel Management (North) Ltd,98379774, 286.25 ,T&S Overseas - Accommodation
BEIS,UKRI - BBSRC,11/01/2019,T&S Overseas - Accommodation,Science Group,Corporate Travel Management (North) Ltd,98379774, 0.30 ,T&S Overseas - Accommodation
BEIS,UKRI - BBSRC,11/01/2019,T&S Overseas - Accommodation,Science Group,Corporate Travel Management (North) Ltd,98379774, 0.10 ,T&S Overseas - Accommodation
BEIS,UKRI - BBSRC,11/01/2019,T&S Overseas - Flights,CE - IRU,Corporate Travel Management (North) Ltd,98379774," 2,016.82 ",T&S Overseas - Flights
BEIS,UKRI - BBSRC,11/01/2019,T&S Overseas - Flights,CE - IRU,Corporate Travel Management (North) Ltd,98379774, 2.16 ,T&S Overseas - Flights
BEIS,UKRI - BBSRC,11/01/2019,T&S Overseas - Flights,CE - IRU,Corporate Travel Management (North) Ltd,98379774," 1,867.02 ",T&S Overseas - Flights
BEIS,UKRI - BBSRC,11/01/2019,T&S Overseas - Flights,CE - IRU,Corporate Travel Management (North) Ltd,98379774," 1,948.82 ",T&S Overseas - Flights
BEIS,UKRI - BBSRC,11/01/2019,T&S Overseas - Flights,CE - IRU,Corporate Travel Management (North) Ltd,98379774, 2.16 ,T&S Overseas - Flights
BEIS,UKRI - BBSRC,11/01/2019,T&S Overseas - Flights,CE - IRU,Corporate Travel Management (North) Ltd,98379774," 1,970.82 ",T&S Overseas - Flights
BEIS,UKRI - BBSRC,11/01/2019,T&S Overseas - Flights,CIMG - External Relations,Corporate Travel Management (North) Ltd,98379774, 284.95 ,T&S Overseas - Flights
BEIS,UKRI - BBSRC,11/01/2019,T&S Overseas - Flights,European Initiatives,Corporate Travel Management (North) Ltd,98379774, 60.00 ,T&S Overseas - Flights
BEIS,UKRI - BBSRC,11/01/2019,T&S Overseas - Flights,FG - RCUK Assurance,Corporate Travel Management (North) Ltd,98379774, 649.60 ,T&S Overseas - Flights
BEIS,UKRI - BBSRC,11/01/2019,T&S Overseas - Flights,Science Group,Corporate Travel Management (North) Ltd,98379774," 2,219.51 ",T&S Overseas - Flights
BEIS,UKRI - BBSRC,11/01/2019,T&S Overseas - Flights,Science Group,Corporate Travel Management (North) Ltd,98379774, 6.75 ,T&S Overseas - Flights
BEIS,UKRI - BBSRC,11/01/2019,T&S Overseas - Flights,Science Group,Corporate Travel Management (North) Ltd,98379774, 144.90 ,T&S Overseas - Flights
BEIS,UKRI - BBSRC,11/01/2019,T&S Overseas - Flights,Science Group,Corporate Travel Management (North) Ltd,98379774, 168.00 ,T&S Overseas - Flights
BEIS,UKRI - BBSRC,11/01/2019,T&S Overseas - Flights,Science Group,Corporate Travel Management (North) Ltd,98379774, 2.16 ,T&S Overseas - Flights
BEIS,UKRI - BBSRC,11/01/2019,T&S Overseas - Flights,Science Group,Corporate Travel Management (North) Ltd,98379774," 1,291.82 ",T&S Overseas - Flights
BEIS,UKRI - BBSRC,11/01/2019,T&S Overseas - Flights,Science Group,Corporate Travel Management (North) Ltd,98379774, 30.33 ,T&S Overseas - Flights
BEIS,UKRI - BBSRC,11/01/2019,T&S Overseas - Public Transport,CE - CPS,Corporate Travel Management (North) Ltd,98379774, 223.00 ,T&S Overseas - Public Transport
BEIS,UKRI - BBSRC,11/01/2019,T&S Overseas - Public Transport,RISD - UKRO,Corporate Travel Management (North) Ltd,98379774, 149.00 ,T&S Overseas - Public Transport
BEIS,UKRI - BBSRC,11/01/2019,T&S Overseas - Public Transport,RISD - UKRO,Corporate Travel Management (North) Ltd,98379774, 2.16 ,T&S Overseas - Public Transport
BEIS,UKRI - BBSRC,11/01/2019,T&S Overseas - Public Transport,RISD - UKRO,Corporate Travel Management (North) Ltd,98379774, 114.00 ,T&S Overseas - Public Transport
BEIS,UKRI - BBSRC,11/01/2019,T&S Overseas - Public Transport,RISD - UKRO,Corporate Travel Management (North) Ltd,98379774, 2.16 ,T&S Overseas - Public Transport
BEIS,UKRI - BBSRC,11/01/2019,T&S Overseas - Public Transport,RISD - UKRO,Corporate Travel Management (North) Ltd,98379774, 185.00 ,T&S Overseas - Public Transport
BEIS,UKRI - BBSRC,11/01/2019,T&S Overseas - Public Transport,RISD - UKRO,Corporate Travel Management (North) Ltd,98379774, 60.00 ,T&S Overseas - Public Transport
BEIS,UKRI - BBSRC,11/01/2019,T&S Overseas - Public Transport,RISD - UKRO,Corporate Travel Management (North) Ltd,98379774, 2.16 ,T&S Overseas - Public Transport
BEIS,UKRI - BBSRC,11/01/2019,T&S Overseas - Public Transport,RISD - UKRO,Corporate Travel Management (North) Ltd,98379774, 158.00 ,T&S Overseas - Public Transport
BEIS,UKRI - BBSRC,11/01/2019,T&S Overseas - Public Transport,RISD - UKRO,Corporate Travel Management (North) Ltd,98379774, 94.00 ,T&S Overseas - Public Transport
BEIS,UKRI - BBSRC,11/01/2019,T&S Overseas - Public Transport,RISD - UKRO,Corporate Travel Management (North) Ltd,98379774, 102.00 ,T&S Overseas - Public Transport
BEIS,UKRI - BBSRC,11/01/2019,T&S Overseas - Public Transport,Science Group,Corporate Travel Management (North) Ltd,98379774, 490.00 ,T&S Overseas - Public Transport
BEIS,UKRI - BBSRC,11/01/2019,T&S UK - Accommodation,CE - CPS,Corporate Travel Management (North) Ltd,98379774, 0.50 ,T&S UK - Accommodation
BEIS,UKRI - BBSRC,11/01/2019,T&S UK - Accommodation,CE - CPS,Corporate Travel Management (North) Ltd,98379774, 124.50 ,T&S UK - Accommodation
BEIS,UKRI - BBSRC,11/01/2019,T&S UK - Accommodation,CE - CPS,Corporate Travel Management (North) Ltd,98379774, 0.10 ,T&S UK - Accommodation
BEIS,UKRI - BBSRC,11/01/2019,T&S UK - Accommodation,CE - Chief Executive,Corporate Travel Management (North) Ltd,98379774, 0.50 ,T&S UK - Accommodation
BEIS,UKRI - BBSRC,11/01/2019,T&S UK - Accommodation,CE - Chief Executive,Corporate Travel Management (North) Ltd,98379774, 374.30 ,T&S UK - Accommodation
BEIS,UKRI - BBSRC,11/01/2019,T&S UK - Accommodation,CE - Chief Executive,Corporate Travel Management (North) Ltd,98379774, 0.50 ,T&S UK - Accommodation
BEIS,UKRI - BBSRC,11/01/2019,T&S UK - Accommodation,CE - Chief Executive,Corporate Travel Management (North) Ltd,98379774, 251.00 ,T&S UK - Accommodation
BEIS,UKRI - BBSRC,11/01/2019,T&S UK - Accommodation,CE - Chief Executive,Corporate Travel Management (North) Ltd,98379774, 0.20 ,T&S UK - Accommodation
BEIS,UKRI - BBSRC,11/01/2019,T&S UK - Accommodation,CE - IRU,Corporate Travel Management (North) Ltd,98379774, 0.50 ,T&S UK - Accommodation
BEIS,UKRI - BBSRC,11/01/2019,T&S UK - Accommodation,CE - IRU,Corporate Travel Management (North) Ltd,98379774, 1.71 ,T&S UK - Accommodation
BEIS,UKRI - BBSRC,11/01/2019,T&S UK - Accommodation,CE - IRU,Corporate Travel Management (North) Ltd,98379774, 153.43 ,T&S UK - Accommodation
BEIS,UKRI - BBSRC,11/01/2019,T&S UK - Accommodation,CE - IRU,Corporate Travel Management (North) Ltd,98379774, 0.44 ,T&S UK - Accommodation
BEIS,UKRI - BBSRC,11/01/2019,T&S UK - Accommodation,CIMG - Council Secretariat,Corporate Travel Management (North) Ltd,98379774, 0.50 ,T&S UK - Accommodation
BEIS,UKRI - BBSRC,11/01/2019,T&S UK - Accommodation,CIMG - Council Secretariat,Corporate Travel Management (North) Ltd,98379774, 1.44 ,T&S UK - Accommodation
BEIS,UKRI - BBSRC,11/01/2019,T&S UK - Accommodation,CIMG - Council Secretariat,Corporate Travel Management (North) Ltd,98379774," 2,580.00 ",T&S UK - Accommodation
BEIS,UKRI - BBSRC,11/01/2019,T&S UK - Accommodation,CIMG - Council Secretariat,Corporate Travel Management (North) Ltd,98379774, 0.39 ,T&S UK - Accommodation
BEIS,UKRI - BBSRC,11/01/2019,T&S UK - Accommodation,CIMG - External Relations,Corporate Travel Management (North) Ltd,98379774, 0.50 ,T&S UK - Accommodation
BEIS,UKRI - BBSRC,11/01/2019,T&S UK - Accommodation,CIMG - External Relations,Corporate Travel Management (North) Ltd,98379774, 101.00 ,T&S UK - Accommodation
BEIS,UKRI - BBSRC,11/01/2019,T&S UK - Accommodation,CIMG - External Relations,Corporate Travel Management (North) Ltd,98379774, 100.15 ,T&S UK - Accommodation
BEIS,UKRI - BBSRC,11/01/2019,T&S UK - Accommodation,CIMG - External Relations,Corporate Travel Management (North) Ltd,98379774, 0.10 ,T&S UK - Accommodation
BEIS,UKRI - BBSRC,11/01/2019,T&S UK - Accommodation,CIMG - Programme Office,Corporate Travel Management (North) Ltd,98379774, 0.50 ,T&S UK - Accommodation
BEIS,UKRI - BBSRC,11/01/2019,T&S UK - Accommodation,CIMG - Programme Office,Corporate Travel Management (North) Ltd,98379774, 70.00 ,T&S UK - Accommodation
BEIS,UKRI - BBSRC,11/01/2019,T&S UK - Accommodation,CIMG - Programme Office,Corporate Travel Management (North) Ltd,98379774, 0.50 ,T&S UK - Accommodation
BEIS,UKRI - BBSRC,11/01/2019,T&S UK - Accommodation,CIMG - Programme Office,Corporate Travel Management (North) Ltd,98379774, 80.00 ,T&S UK - Accommodation
BEIS,UKRI - BBSRC,11/01/2019,T&S UK - Accommodation,CIMG - Programme Office,Corporate Travel Management (North) Ltd,98379774, 0.50 ,T&S UK - Accommodation
BEIS,UKRI - BBSRC,11/01/2019,T&S UK - Accommodation,CIMG - Programme Office,Corporate Travel Management (North) Ltd,98379774, 70.00 ,T&S UK - Accommodation
BEIS,UKRI - BBSRC,11/01/2019,T&S UK - Accommodation,CIMG - Programme Office,Corporate Travel Management (North) Ltd,98379774, 0.30 ,T&S UK - Accommodation
BEIS,UKRI - BBSRC,11/01/2019,T&S UK - Accommodation,European Initiatives,Corporate Travel Management (North) Ltd,98379774, 0.50 ,T&S UK - Accommodation
BEIS,UKRI - BBSRC,11/01/2019,T&S UK - Accommodation,European Initiatives,Corporate Travel Management (North) Ltd,98379774, 89.00 ,T&S UK - Accommodation
BEIS,UKRI - BBSRC,11/01/2019,T&S UK - Accommodation,European Initiatives,Corporate Travel Management (North) Ltd,98379774, 155.31 ,T&S UK - Accommodation
BEIS,UKRI - BBSRC,11/01/2019,T&S UK - Accommodation,European Initiatives,Corporate Travel Management (North) Ltd,98379774, 0.10 ,T&S UK - Accommodation
BEIS,UKRI - BBSRC,11/01/2019,T&S UK - Accommodation,FG - Director,Corporate Travel Management (North) Ltd,98379774, 0.50 ,T&S UK - Accommodation
BEIS,UKRI - BBSRC,11/01/2019,T&S UK - Accommodation,FG - Director,Corporate Travel Management (North) Ltd,98379774, 84.00 ,T&S UK - Accommodation
BEIS,UKRI - BBSRC,11/01/2019,T&S UK - Accommodation,FG - Director,Corporate Travel Management (North) Ltd,98379774, 0.50 ,T&S UK - Accommodation
BEIS,UKRI - BBSRC,11/01/2019,T&S UK - Accommodation,FG - Director,Corporate Travel Management (North) Ltd,98379774, 93.00 ,T&S UK - Accommodation
BEIS,UKRI - BBSRC,11/01/2019,T&S UK - Accommodation,FG - Director,Corporate Travel Management (North) Ltd,98379774, 0.50 ,T&S UK - Accommodation
BEIS,UKRI - BBSRC,11/01/2019,T&S UK - Accommodation,FG - Director,Corporate Travel Management (North) Ltd,98379774, 118.15 ,T&S UK - Accommodation
BEIS,UKRI - BBSRC,11/01/2019,T&S UK - Accommodation,FG - Director,Corporate Travel Management (North) Ltd,98379774, 0.30 ,T&S UK - Accommodation
BEIS,UKRI - BBSRC,11/01/2019,T&S UK - Accommodation,FG - Estates,Corporate Travel Management (North) Ltd,98379774, 0.50 ,T&S UK - Accommodation
BEIS,UKRI - BBSRC,11/01/2019,T&S UK - Accommodation,FG - Estates,Corporate Travel Management (North) Ltd,98379774, 73.50 ,T&S UK - Accommodation
BEIS,UKRI - BBSRC,11/01/2019,T&S UK - Accommodation,FG - Estates,Corporate Travel Management (North) Ltd,98379774, 0.50 ,T&S UK - Accommodation
BEIS,UKRI - BBSRC,11/01/2019,T&S UK - Accommodation,FG - Estates,Corporate Travel Management (North) Ltd,98379774, 110.70 ,T&S UK - Accommodation
BEIS,UKRI - BBSRC,11/01/2019,T&S UK - Accommodation,FG - Estates,Corporate Travel Management (North) Ltd,98379774, 0.50 ,T&S UK - Accommodation
BEIS,UKRI - BBSRC,11/01/2019,T&S UK - Accommodation,FG - Estates,Corporate Travel Management (North) Ltd,98379774, 60.00 ,T&S UK - Accommodation
BEIS,UKRI - BBSRC,11/01/2019,T&S UK - Accommodation,FG - Estates,Corporate Travel Management (North) Ltd,98379774, 0.30 ,T&S UK - Accommodation
BEIS,UKRI - BBSRC,11/01/2019,T&S UK - Accommodation,FG - RCUK Assurance,Corporate Travel Management (North) Ltd,98379774, 0.50 ,T&S UK - Accommodation
BEIS,UKRI - BBSRC,11/01/2019,T&S UK - Accommodation,FG - RCUK Assurance,Corporate Travel Management (North) Ltd,98379774, 180.00 ,T&S UK - Accommodation
BEIS,UKRI - BBSRC,11/01/2019,T&S UK - Accommodation,FG - RCUK Assurance,Corporate Travel Management (North) Ltd,98379774, 0.50 ,T&S UK - Accommodation
BEIS,UKRI - BBSRC,11/01/2019,T&S UK - Accommodation,FG - RCUK Assurance,Corporate Travel Management (North) Ltd,98379774, 0.50 ,T&S UK - Accommodation
BEIS,UKRI - BBSRC,11/01/2019,T&S UK - Accommodation,FG - RCUK Assurance,Corporate Travel Management (North) Ltd,98379774, 180.00 ,T&S UK - Accommodation
BEIS,UKRI - BBSRC,11/01/2019,T&S UK - Accommodation,FG - RCUK Assurance,Corporate Travel Management (North) Ltd,98379774, 0.30 ,T&S UK - Accommodation
BEIS,UKRI - BBSRC,11/01/2019,T&S UK - Accommodation,Grants Finance Management Team,Corporate Travel Management (North) Ltd,98379774, 0.50 ,T&S UK - Accommodation
BEIS,UKRI - BBSRC,11/01/2019,T&S UK - Accommodation,Grants Finance Management Team,Corporate Travel Management (North) Ltd,98379774, 233.00 ,T&S UK - Accommodation
BEIS,UKRI - BBSRC,11/01/2019,T&S UK - Accommodation,Grants Finance Management Team,Corporate Travel Management (North) Ltd,98379774, 0.10 ,T&S UK - Accommodation
BEIS,UKRI - BBSRC,11/01/2019,T&S UK - Accommodation,Innovation and Skills Group,Corporate Travel Management (North) Ltd,98379774, 0.50 ,T&S UK - Accommodation
BEIS,UKRI - BBSRC,11/01/2019,T&S UK - Accommodation,Innovation and Skills Group,Corporate Travel Management (North) Ltd,98379774, 93.50 ,T&S UK - Accommodation
BEIS,UKRI - BBSRC,11/01/2019,T&S UK - Accommodation,Innovation and Skills Group,Corporate Travel Management (North) Ltd,98379774, 0.10 ,T&S UK - Accommodation
BEIS,UKRI - BBSRC,11/01/2019,T&S UK - Accommodation,Innovation and Skills Group CDSU,Corporate Travel Management (North) Ltd,98379774, 0.50 ,T&S UK - Accommodation
BEIS,UKRI - BBSRC,11/01/2019,T&S UK - Accommodation,Innovation and Skills Group CDSU,Corporate Travel Management (North) Ltd,98379774, 370.00 ,T&S UK - Accommodation
BEIS,UKRI - BBSRC,11/01/2019,T&S UK - Accommodation,Innovation and Skills Group CDSU,Corporate Travel Management (North) Ltd,98379774, 0.10 ,T&S UK - Accommodation
BEIS,UKRI - BBSRC,11/01/2019,T&S UK - Accommodation,PDG - Director,Corporate Travel Management (North) Ltd,98379774, 0.50 ,T&S UK - Accommodation
BEIS,UKRI - BBSRC,11/01/2019,T&S UK - Accommodation,PDG - Director,Corporate Travel Management (North) Ltd,98379774, 0.10 ,T&S UK - Accommodation
BEIS,UKRI - BBSRC,11/01/2019,T&S UK - Accommodation,RISD - UKRO,Corporate Travel Management (North) Ltd,98379774, 0.50 ,T&S UK - Accommodation
BEIS,UKRI - BBSRC,11/01/2019,T&S UK - Accommodation,RISD - UKRO,Corporate Travel Management (North) Ltd,98379774, 77.00 ,T&S UK - Accommodation
BEIS,UKRI - BBSRC,11/01/2019,T&S UK - Accommodation,RISD - UKRO,Corporate Travel Management (North) Ltd,98379774, 0.50 ,T&S UK - Accommodation
BEIS,UKRI - BBSRC,11/01/2019,T&S UK - Accommodation,RISD - UKRO,Corporate Travel Management (North) Ltd,98379774, 112.50 ,T&S UK - Accommodation
BEIS,UKRI - BBSRC,11/01/2019,T&S UK - Accommodation,RISD - UKRO,Corporate Travel Management (North) Ltd,98379774, 0.50 ,T&S UK - Accommodation
BEIS,UKRI - BBSRC,11/01/2019,T&S UK - Accommodation,RISD - UKRO,Corporate Travel Management (North) Ltd,98379774, 105.00 ,T&S UK - Accommodation
BEIS,UKRI - BBSRC,11/01/2019,T&S UK - Accommodation,RISD - UKRO,Corporate Travel Management (North) Ltd,98379774, 0.30 ,T&S UK - Accommodation
BEIS,UKRI - BBSRC,11/01/2019,T&S UK - Accommodation,Science Group,Corporate Travel Management (North) Ltd,98379774, 0.50 ,T&S UK - Accommodation
BEIS,UKRI - BBSRC,11/01/2019,T&S UK - Accommodation,Science Group,Corporate Travel Management (North) Ltd,98379774, 95.00 ,T&S UK - Accommodation
BEIS,UKRI - BBSRC,11/01/2019,T&S UK - Accommodation,Science Group,Corporate Travel Management (North) Ltd,98379774, 1.44 ,T&S UK - Accommodation
BEIS,UKRI - BBSRC,11/01/2019,T&S UK - Accommodation,Science Group,Corporate Travel Management (North) Ltd,98379774, 100.96 ,T&S UK - Accommodation
BEIS,UKRI - BBSRC,11/01/2019,T&S UK - Accommodation,Science Group,Corporate Travel Management (North) Ltd,98379774, 0.50 ,T&S UK - Accommodation
BEIS,UKRI - BBSRC,11/01/2019,T&S UK - Accommodation,Science Group,Corporate Travel Management (North) Ltd,98379774, 93.98 ,T&S UK - Accommodation
BEIS,UKRI - BBSRC,11/01/2019,T&S UK - Accommodation,Science Group,Corporate Travel Management (North) Ltd,98379774, 0.39 ,T&S UK - Accommodation
BEIS,UKRI - BBSRC,11/01/2019,T&S UK - Accommodation,Science Group,Corporate Travel Management (North) Ltd,98379774, 0.10 ,T&S UK - Accommodation
BEIS,UKRI - BBSRC,11/01/2019,T&S UK - Flights,CE - IRU,Corporate Travel Management (North) Ltd,98379774, 178.00 ,T&S UK - Flights
BEIS,UKRI - BBSRC,11/01/2019,T&S UK - Flights,Innovation and Skills Group,Corporate Travel Management (North) Ltd,98379774, 71.45 ,T&S UK - Flights
BEIS,UKRI - BBSRC,11/01/2019,T&S UK - Public Transport,CE - CPS,Corporate Travel Management (North) Ltd,98379774, 1.00 ,T&S UK - Public Transport
BEIS,UKRI - BBSRC,11/01/2019,T&S UK - Public Transport,CE - CPS,Corporate Travel Management (North) Ltd,98379774, 140.30 ,T&S UK - Public Transport
BEIS,UKRI - BBSRC,11/01/2019,T&S UK - Public Transport,CE - CPS,Corporate Travel Management (North) Ltd,98379774, 1.00 ,T&S UK - Public Transport
BEIS,UKRI - BBSRC,11/01/2019,T&S UK - Public Transport,CE - CPS,Corporate Travel Management (North) Ltd,98379774, 55.00 ,T&S UK - Public Transport
BEIS,UKRI - BBSRC,11/01/2019,T&S UK - Public Transport,CE - CPS,Corporate Travel Management (North) Ltd,98379774, 67.90 ,T&S UK - Public Transport
BEIS,UKRI - BBSRC,11/01/2019,T&S UK - Public Transport,CE - CPS,Corporate Travel Management (North) Ltd,98379774, 140.30 ,T&S UK - Public Transport
BEIS,UKRI - BBSRC,11/01/2019,T&S UK - Public Transport,CE - CPS,Corporate Travel Management (North) Ltd,98379774,-45.00 ,T&S UK - Public Transport
BEIS,UKRI - BBSRC,11/01/2019,T&S UK - Public Transport,CE - CPS,Corporate Travel Management (North) Ltd,98379774,-122.60 ,T&S UK - Public Transport
BEIS,UKRI - BBSRC,11/01/2019,T&S UK - Public Transport,CE - CPS,Corporate Travel Management (North) Ltd,98379774, 67.90 ,T&S UK - Public Transport
BEIS,UKRI - BBSRC,11/01/2019,T&S UK - Public Transport,CE - CPS,Corporate Travel Management (North) Ltd,98379774,-96.40 ,T&S UK - Public Transport
BEIS,UKRI - BBSRC,11/01/2019,T&S UK - Public Transport,CE - CPS,Corporate Travel Management (North) Ltd,98379774,-6.60 ,T&S UK - Public Transport
BEIS,UKRI - BBSRC,11/01/2019,T&S UK - Public Transport,CE - CPS,Corporate Travel Management (North) Ltd,98379774,-134.60 ,T&S UK - Public Transport
BEIS,UKRI - BBSRC,11/01/2019,T&S UK - Public Transport,CE - CPS,Corporate Travel Management (North) Ltd,98379774, 69.90 ,T&S UK - Public Transport
BEIS,UKRI - BBSRC,11/01/2019,T&S UK - Public Transport,CE - CPS,Corporate Travel Management (North) Ltd,98379774, 69.90 ,T&S UK - Public Transport
BEIS,UKRI - BBSRC,11/01/2019,T&S UK - Public Transport,CE - CPS,Corporate Travel Management (North) Ltd,98379774,-25.90 ,T&S UK - Public Transport
BEIS,UKRI - BBSRC,11/01/2019,T&S UK - Public Transport,CE - CPS,Corporate Travel Management (North) Ltd,98379774, 5.00 ,T&S UK - Public Transport
BEIS,UKRI - BBSRC,11/01/2019,T&S UK - Public Transport,CE - CPS,Corporate Travel Management (North) Ltd,98379774,-64.80 ,T&S UK - Public Transport
BEIS,UKRI - BBSRC,11/01/2019,T&S UK - Public Transport,CE - CPS,Corporate Travel Management (North) Ltd,98379774,-25.90 ,T&S UK - Public Transport
BEIS,UKRI - BBSRC,11/01/2019,T&S UK - Public Transport,CE - CPS,Corporate Travel Management (North) Ltd,98379774,-36.20 ,T&S UK - Public Transport
BEIS,UKRI - BBSRC,11/01/2019,T&S UK - Public Transport,CE - CPS,Corporate Travel Management (North) Ltd,98379774,-96.40 ,T&S UK - Public Transport
BEIS,UKRI - BBSRC,11/01/2019,T&S UK - Public Transport,CE - CPS,Corporate Travel Management (North) Ltd,98379774, 5.00 ,T&S UK - Public Transport
BEIS,UKRI - BBSRC,11/01/2019,T&S UK - Public Transport,CE - CPS,Corporate Travel Management (North) Ltd,98379774,-64.80 ,T&S UK - Public Transport
BEIS,UKRI - BBSRC,11/01/2019,T&S UK - Public Transport,CE - CPS,Corporate Travel Management (North) Ltd,98379774,-41.80 ,T&S UK - Public Transport
BEIS,UKRI - BBSRC,11/01/2019,T&S UK - Public Transport,CE - CPS,Corporate Travel Management (North) Ltd,98379774,-65.60 ,T&S UK - Public Transport
BEIS,UKRI - BBSRC,11/01/2019,T&S UK - Public Transport,CE - Chief Executive,Corporate Travel Management (North) Ltd,98379774,-273.60 ,T&S UK - Public Transport
BEIS,UKRI - BBSRC,11/01/2019,T&S UK - Public Transport,CE - Chief Executive,Corporate Travel Management (North) Ltd,98379774, 1.00 ,T&S UK - Public Transport
BEIS,UKRI - BBSRC,11/01/2019,T&S UK - Public Transport,CE - Chief Executive,Corporate Travel Management (North) Ltd,98379774, 172.00 ,T&S UK - Public Transport
BEIS,UKRI - BBSRC,11/01/2019,T&S UK - Public Transport,CE - Chief Executive,Corporate Travel Management (North) Ltd,98379774, 1.00 ,T&S UK - Public Transport
BEIS,UKRI - BBSRC,11/01/2019,T&S UK - Public Transport,CE - Chief Executive,Corporate Travel Management (North) Ltd,98379774, 172.00 ,T&S UK - Public Transport
BEIS,UKRI - BBSRC,11/01/2019,T&S UK - Public Transport,CE - Chief Executive,Corporate Travel Management (North) Ltd,98379774, 1.00 ,T&S UK - Public Transport
BEIS,UKRI - BBSRC,11/01/2019,T&S UK - Public Transport,CE - Chief Executive,Corporate Travel Management (North) Ltd,98379774, 172.00 ,T&S UK - Public Transport
BEIS,UKRI - BBSRC,11/01/2019,T&S UK - Public Transport,CE - Chief Executive,Corporate Travel Management (North) Ltd,98379774, 12.70 ,T&S UK - Public Transport
BEIS,UKRI - BBSRC,11/01/2019,T&S UK - Public Transport,CE - Chief Executive,Corporate Travel Management (North) Ltd,98379774, 105.00 ,T&S UK - Public Transport
BEIS,UKRI - BBSRC,11/01/2019,T&S UK - Public Transport,CE - Chief Executive,Corporate Travel Management (North) Ltd,98379774, 105.00 ,T&S UK - Public Transport
BEIS,UKRI - BBSRC,11/01/2019,T&S UK - Public Transport,CE - Chief Executive,Corporate Travel Management (North) Ltd,98379774, 128.80 ,T&S UK - Public Transport
BEIS,UKRI - BBSRC,11/01/2019,T&S UK - Public Transport,CE - Chief Executive,Corporate Travel Management (North) Ltd,98379774, 54.30 ,T&S UK - Public Transport
BEIS,UKRI - BBSRC,11/01/2019,T&S UK - Public Transport,CE - Chief Executive,Corporate Travel Management (North) Ltd,98379774, 178.00 ,T&S UK - Public Transport
BEIS,UKRI - BBSRC,11/01/2019,T&S UK - Public Transport,CE - Chief Executive,Corporate Travel Management (North) Ltd,98379774, 71.30 ,T&S UK - Public Transport
BEIS,UKRI - BBSRC,11/01/2019,T&S UK - Public Transport,CE - Chief Executive,Corporate Travel Management (North) Ltd,98379774, 121.60 ,T&S UK - Public Transport
BEIS,UKRI - BBSRC,11/01/2019,T&S UK - Public Transport,CE - Chief Executive,Corporate Travel Management (North) Ltd,98379774,-173.00 ,T&S UK - Public Transport
BEIS,UKRI - BBSRC,11/01/2019,T&S UK - Public Transport,CE - IRU,Corporate Travel Management (North) Ltd,98379774, 1.00 ,T&S UK - Public Transport
BEIS,UKRI - BBSRC,11/01/2019,T&S UK - Public Transport,CE - IRU,Corporate Travel Management (North) Ltd,98379774, 111.00 ,T&S UK - Public Transport
BEIS,UKRI - BBSRC,11/01/2019,T&S UK - Public Transport,CE - IRU,Corporate Travel Management (North) Ltd,98379774, 1.00 ,T&S UK - Public Transport
BEIS,UKRI - BBSRC,11/01/2019,T&S UK - Public Transport,CE - IRU,Corporate Travel Management (North) Ltd,98379774, 100.70 ,T&S UK - Public Transport
BEIS,UKRI - BBSRC,11/01/2019,T&S UK - Public Transport,CE - IRU,Corporate Travel Management (North) Ltd,98379774,-36.20 ,T&S UK - Public Transport
BEIS,UKRI - BBSRC,11/01/2019,T&S UK - Public Transport,CE - IRU,Corporate Travel Management (North) Ltd,98379774, 5.00 ,T&S UK - Public Transport
BEIS,UKRI - BBSRC,11/01/2019,T&S UK - Public Transport,CE - IRU,Corporate Travel Management (North) Ltd,98379774,-64.80 ,T&S UK - Public Transport
BEIS,UKRI - BBSRC,11/01/2019,T&S UK - Public Transport,CE - IRU,Corporate Travel Management (North) Ltd,98379774, 140.30 ,T&S UK - Public Transport
BEIS,UKRI - BBSRC,11/01/2019,T&S UK - Public Transport,CE - IRU,Corporate Travel Management (North) Ltd,98379774,-94.40 ,T&S UK - Public Transport
BEIS,UKRI - BBSRC,11/01/2019,T&S UK - Public Transport,CE - IRU,Corporate Travel Management (North) Ltd,98379774, 5.00 ,T&S UK - Public Transport
BEIS,UKRI - BBSRC,11/01/2019,T&S UK - Public Transport,CE - IRU,Corporate Travel Management (North) Ltd,98379774,-94.40 ,T&S UK - Public Transport
BEIS,UKRI - BBSRC,11/01/2019,T&S UK - Public Transport,CE - IRU,Corporate Travel Management (North) Ltd,98379774,-48.90 ,T&S UK - Public Transport
BEIS,UKRI - BBSRC,11/01/2019,T&S UK - Public Transport,CIMG - Director,Corporate Travel Management (North) Ltd,98379774, 140.30 ,T&S UK - Public Transport
BEIS,UKRI - BBSRC,11/01/2019,T&S UK - Public Transport,CIMG - Director,Corporate Travel Management (North) Ltd,98379774,-41.80 ,T&S UK - Public Transport
BEIS,UKRI - BBSRC,11/01/2019,T&S UK - Public Transport,CIMG - Director,Corporate Travel Management (North) Ltd,98379774,-65.60 ,T&S UK - Public Transport
BEIS,UKRI - BBSRC,11/01/2019,T&S UK - Public Transport,CIMG - External Relations,Corporate Travel Management (North) Ltd,98379774,-7.70 ,T&S UK - Public Transport
BEIS,UKRI - BBSRC,11/01/2019,T&S UK - Public Transport,CIMG - External Relations,Corporate Travel Management (North) Ltd,98379774,-33.20 ,T&S UK - Public Transport
BEIS,UKRI - BBSRC,11/01/2019,T&S UK - Public Transport,CIMG - External Relations,Corporate Travel Management (North) Ltd,98379774,-7.70 ,T&S UK - Public Transport
BEIS,UKRI - BBSRC,11/01/2019,T&S UK - Public Transport,CIMG - External Relations,Corporate Travel Management (North) Ltd,98379774, 171.60 ,T&S UK - Public Transport
BEIS,UKRI - BBSRC,11/01/2019,T&S UK - Public Transport,CIMG - External Relations,Corporate Travel Management (North) Ltd,98379774,-62.90 ,T&S UK - Public Transport
BEIS,UKRI - BBSRC,11/01/2019,T&S UK - Public Transport,CIMG - External Relations,Corporate Travel Management (North) Ltd,98379774, 67.90 ,T&S UK - Public Transport
BEIS,UKRI - BBSRC,11/01/2019,T&S UK - Public Transport,CIMG - External Relations,Corporate Travel Management (North) Ltd,98379774, 67.90 ,T&S UK - Public Transport
BEIS,UKRI - BBSRC,11/01/2019,T&S UK - Public Transport,CIMG - External Relations,Corporate Travel Management (North) Ltd,98379774, 11.90 ,T&S UK - Public Transport
BEIS,UKRI - BBSRC,11/01/2019,T&S UK - Public Transport,CIMG - External Relations,Corporate Travel Management (North) Ltd,98379774, 11.90 ,T&S UK - Public Transport
BEIS,UKRI - BBSRC,11/01/2019,T&S UK - Public Transport,CIMG - Programme Office,Corporate Travel Management (North) Ltd,98379774, 140.30 ,T&S UK - Public Transport
BEIS,UKRI - BBSRC,11/01/2019,T&S UK - Public Transport,European Initiatives,Corporate Travel Management (North) Ltd,98379774, 1.00 ,T&S UK - Public Transport
BEIS,UKRI - BBSRC,11/01/2019,T&S UK - Public Transport,European Initiatives,Corporate Travel Management (North) Ltd,98379774, 111.00 ,T&S UK - Public Transport
BEIS,UKRI - BBSRC,11/01/2019,T&S UK - Public Transport,European Initiatives,Corporate Travel Management (North) Ltd,98379774, 39.80 ,T&S UK - Public Transport
BEIS,UKRI - BBSRC,11/01/2019,T&S UK - Public Transport,FG - Accounts & Business Planning,Corporate Travel Management (North) Ltd,98379774, 139.60 ,T&S UK - Public Transport
BEIS,UKRI - BBSRC,11/01/2019,T&S UK - Public Transport,FG - Accounts & Business Planning,Corporate Travel Management (North) Ltd,98379774, 139.60 ,T&S UK - Public Transport
BEIS,UKRI - BBSRC,11/01/2019,T&S UK - Public Transport,FG - Accounts & Business Planning,Corporate Travel Management (North) Ltd,98379774, 139.60 ,T&S UK - Public Transport
BEIS,UKRI - BBSRC,11/01/2019,T&S UK - Public Transport,FG - Director,Corporate Travel Management (North) Ltd,98379774,-103.80 ,T&S UK - Public Transport
BEIS,UKRI - BBSRC,11/01/2019,T&S UK - Public Transport,FG - Director,Corporate Travel Management (North) Ltd,98379774, 90.60 ,T&S UK - Public Transport
BEIS,UKRI - BBSRC,11/01/2019,T&S UK - Public Transport,FG - Director,Corporate Travel Management (North) Ltd,98379774, 139.60 ,T&S UK - Public Transport
BEIS,UKRI - BBSRC,11/01/2019,T&S UK - Public Transport,FG - Estates,Corporate Travel Management (North) Ltd,98379774, 84.80 ,T&S UK - Public Transport
BEIS,UKRI - BBSRC,11/01/2019,T&S UK - Public Transport,FG - Estates,Corporate Travel Management (North) Ltd,98379774, 217.40 ,T&S UK - Public Transport
BEIS,UKRI - BBSRC,11/01/2019,T&S UK - Public Transport,FG - RCUK Assurance,Corporate Travel Management (North) Ltd,98379774, 23.50 ,T&S UK - Public Transport
BEIS,UKRI - BBSRC,11/01/2019,T&S UK - Public Transport,FG - RCUK Assurance,Corporate Travel Management (North) Ltd,98379774, 29.50 ,T&S UK - Public Transport
BEIS,UKRI - BBSRC,11/01/2019,T&S UK - Public Transport,Innovation and Skills Group,Corporate Travel Management (North) Ltd,98379774,-25.90 ,T&S UK - Public Transport
BEIS,UKRI - BBSRC,11/01/2019,T&S UK - Public Transport,Innovation and Skills Group,Corporate Travel Management (North) Ltd,98379774, 1.00 ,T&S UK - Public Transport
BEIS,UKRI - BBSRC,11/01/2019,T&S UK - Public Transport,Innovation and Skills Group,Corporate Travel Management (North) Ltd,98379774, 23.00 ,T&S UK - Public Transport
BEIS,UKRI - BBSRC,11/01/2019,T&S UK - Public Transport,Innovation and Skills Group,Corporate Travel Management (North) Ltd,98379774, 53.50 ,T&S UK - Public Transport
BEIS,UKRI - BBSRC,11/01/2019,T&S UK - Public Transport,Innovation and Skills Group,Corporate Travel Management (North) Ltd,98379774, 78.10 ,T&S UK - Public Transport
BEIS,UKRI - BBSRC,11/01/2019,T&S UK - Public Transport,Innovation and Skills Group,Corporate Travel Management (North) Ltd,98379774, 87.00 ,T&S UK - Public Transport
BEIS,UKRI - BBSRC,11/01/2019,T&S UK - Public Transport,Innovation and Skills Group,Corporate Travel Management (North) Ltd,98379774, 139.60 ,T&S UK - Public Transport
BEIS,UKRI - BBSRC,11/01/2019,T&S UK - Public Transport,Innovation and Skills Group,Corporate Travel Management (North) Ltd,98379774, 34.70 ,T&S UK - Public Transport
BEIS,UKRI - BBSRC,11/01/2019,T&S UK - Public Transport,Innovation and Skills Group,Corporate Travel Management (North) Ltd,98379774,-64.80 ,T&S UK - Public Transport
BEIS,UKRI - BBSRC,11/01/2019,T&S UK - Public Transport,Innovation and Skills Group,Corporate Travel Management (North) Ltd,98379774, 5.00 ,T&S UK - Public Transport
BEIS,UKRI - BBSRC,11/01/2019,T&S UK - Public Transport,Innovation and Skills Group,Corporate Travel Management (North) Ltd,98379774,-25.90 ,T&S UK - Public Transport
BEIS,UKRI - BBSRC,11/01/2019,T&S UK - Public Transport,Innovation and Skills Group,Corporate Travel Management (North) Ltd,98379774,-65.60 ,T&S UK - Public Transport
BEIS,UKRI - BBSRC,11/01/2019,T&S UK - Public Transport,Innovation and Skills Group,Corporate Travel Management (North) Ltd,98379774,-62.90 ,T&S UK - Public Transport
BEIS,UKRI - BBSRC,11/01/2019,T&S UK - Public Transport,Innovation and Skills Group,Corporate Travel Management (North) Ltd,98379774, 17.30 ,T&S UK - Public Transport
BEIS,UKRI - BBSRC,11/01/2019,T&S UK - Public Transport,Innovation and Skills Group,Corporate Travel Management (North) Ltd,98379774,-64.80 ,T&S UK - Public Transport
BEIS,UKRI - BBSRC,11/01/2019,T&S UK - Public Transport,Innovation and Skills Group,Corporate Travel Management (North) Ltd,98379774, 5.00 ,T&S UK - Public Transport
BEIS,UKRI - BBSRC,11/01/2019,T&S UK - Public Transport,Innovation and Skills Group,Corporate Travel Management (North) Ltd,98379774,-25.90 ,T&S UK - Public Transport
BEIS,UKRI - BBSRC,11/01/2019,T&S UK - Public Transport,Innovation and Skills Group,Corporate Travel Management (North) Ltd,98379774, 55.20 ,T&S UK - Public Transport
BEIS,UKRI - BBSRC,11/01/2019,T&S UK - Public Transport,Innovation and Skills Group,Corporate Travel Management (North) Ltd,98379774, 47.60 ,T&S UK - Public Transport
BEIS,UKRI - BBSRC,11/01/2019,T&S UK - Public Transport,Innovation and Skills Group,Corporate Travel Management (North) Ltd,98379774,-134.60 ,T&S UK - Public Transport
BEIS,UKRI - BBSRC,11/01/2019,T&S UK - Public Transport,Innovation and Skills Group CDSU,Corporate Travel Management (North) Ltd,98379774,-64.20 ,T&S UK - Public Transport
BEIS,UKRI - BBSRC,11/01/2019,T&S UK - Public Transport,PDG - Director,Corporate Travel Management (North) Ltd,98379774, 114.40 ,T&S UK - Public Transport
BEIS,UKRI - BBSRC,11/01/2019,T&S UK - Public Transport,RISD - UKRO,Corporate Travel Management (North) Ltd,98379774, 1.00 ,T&S UK - Public Transport
BEIS,UKRI - BBSRC,11/01/2019,T&S UK - Public Transport,RISD - UKRO,Corporate Travel Management (North) Ltd,98379774, 185.00 ,T&S UK - Public Transport
BEIS,UKRI - BBSRC,11/01/2019,T&S UK - Public Transport,RISD - UKRO,Corporate Travel Management (North) Ltd,98379774, 1.00 ,T&S UK - Public Transport
BEIS,UKRI - BBSRC,11/01/2019,T&S UK - Public Transport,RISD - UKRO,Corporate Travel Management (North) Ltd,98379774, 16.80 ,T&S UK - Public Transport
BEIS,UKRI - BBSRC,11/01/2019,T&S UK - Public Transport,RISD - UKRO,Corporate Travel Management (North) Ltd,98379774, 1.00 ,T&S UK - Public Transport
BEIS,UKRI - BBSRC,11/01/2019,T&S UK - Public Transport,RISD - UKRO,Corporate Travel Management (North) Ltd,98379774, 3.60 ,T&S UK - Public Transport
BEIS,UKRI - BBSRC,11/01/2019,T&S UK - Public Transport,RISD - UKRO,Corporate Travel Management (North) Ltd,98379774, 1.00 ,T&S UK - Public Transport
BEIS,UKRI - BBSRC,11/01/2019,T&S UK - Public Transport,RISD - UKRO,Corporate Travel Management (North) Ltd,98379774, 12.60 ,T&S UK - Public Transport
BEIS,UKRI - BBSRC,11/01/2019,T&S UK - Public Transport,RISD - UKRO,Corporate Travel Management (North) Ltd,98379774, 1.00 ,T&S UK - Public Transport
BEIS,UKRI - BBSRC,11/01/2019,T&S UK - Public Transport,RISD - UKRO,Corporate Travel Management (North) Ltd,98379774, 18.10 ,T&S UK - Public Transport
BEIS,UKRI - BBSRC,11/01/2019,T&S UK - Public Transport,RISD - UKRO,Corporate Travel Management (North) Ltd,98379774, 1.00 ,T&S UK - Public Transport
BEIS,UKRI - BBSRC,11/01/2019,T&S UK - Public Transport,RISD - UKRO,Corporate Travel Management (North) Ltd,98379774, 18.10 ,T&S UK - Public Transport
BEIS,UKRI - BBSRC,11/01/2019,T&S UK - Public Transport,RISD - UKRO,Corporate Travel Management (North) Ltd,98379774, 5.00 ,T&S UK - Public Transport
BEIS,UKRI - BBSRC,11/01/2019,T&S UK - Public Transport,RISD - UKRO,Corporate Travel Management (North) Ltd,98379774,-74.00 ,T&S UK - Public Transport
BEIS,UKRI - BBSRC,11/01/2019,T&S UK - Public Transport,Science Group,Corporate Travel Management (North) Ltd,98379774, 1.00 ,T&S UK - Public Transport
BEIS,UKRI - BBSRC,11/01/2019,T&S UK - Public Transport,Science Group,Corporate Travel Management (North) Ltd,98379774, 138.70 ,T&S UK - Public Transport
BEIS,UKRI - BBSRC,11/01/2019,T&S UK - Public Transport,Science Group,Corporate Travel Management (North) Ltd,98379774, 1.00 ,T&S UK - Public Transport
BEIS,UKRI - BBSRC,11/01/2019,T&S UK - Public Transport,Science Group,Corporate Travel Management (North) Ltd,98379774, 170.60 ,T&S UK - Public Transport
BEIS,UKRI - BBSRC,11/01/2019,T&S UK - Public Transport,Science Group,Corporate Travel Management (North) Ltd,98379774, 1.00 ,T&S UK - Public Transport
BEIS,UKRI - BBSRC,11/01/2019,T&S UK - Public Transport,Science Group,Corporate Travel Management (North) Ltd,98379774, 52.60 ,T&S UK - Public Transport
BEIS,UKRI - BBSRC,11/01/2019,T&S UK - Public Transport,Science Group,Corporate Travel Management (North) Ltd,98379774, 1.00 ,T&S UK - Public Transport
BEIS,UKRI - BBSRC,11/01/2019,T&S UK - Public Transport,Science Group,Corporate Travel Management (North) Ltd,98379774, 144.70 ,T&S UK - Public Transport
BEIS,UKRI - BBSRC,11/01/2019,T&S UK - Public Transport,Science Group,Corporate Travel Management (North) Ltd,98379774, 101.40 ,T&S UK - Public Transport
BEIS,UKRI - BBSRC,11/01/2019,T&S UK - Public Transport,Science Group,Corporate Travel Management (North) Ltd,98379774, 28.00 ,T&S UK - Public Transport
BEIS,UKRI - BBSRC,11/01/2019,T&S UK - Public Transport,Science Group,Corporate Travel Management (North) Ltd,98379774, 1.00 ,T&S UK - Public Transport
BEIS,UKRI - BBSRC,11/01/2019,T&S UK - Public Transport,Science Group,Corporate Travel Management (North) Ltd,98379774, 71.30 ,T&S UK - Public Transport
BEIS,UKRI - BBSRC,11/01/2019,T&S UK - Public Transport,Science Group,Corporate Travel Management (North) Ltd,98379774, 160.00 ,T&S UK - Public Transport
BEIS,UKRI - BBSRC,11/01/2019,T&S UK - Public Transport,Science Group,Corporate Travel Management (North) Ltd,98379774, 140.30 ,T&S UK - Public Transport
BEIS,UKRI - BBSRC,11/01/2019,T&S UK - Public Transport,Science Group,Corporate Travel Management (North) Ltd,98379774,-79.90 ,T&S UK - Public Transport
BEIS,UKRI - BBSRC,11/01/2019,T&S UK - Public Transport,Science Group,Corporate Travel Management (North) Ltd,98379774,-134.60 ,T&S UK - Public Transport
BEIS,UKRI - BBSRC,11/01/2019,T&S UK - Public Transport,Science Group,Corporate Travel Management (North) Ltd,98379774, 85.80 ,T&S UK - Public Transport
BEIS,UKRI - BBSRC,11/01/2019,T&S UK - Public Transport,Science Group,Corporate Travel Management (North) Ltd,98379774,-25.90 ,T&S UK - Public Transport
BEIS,UKRI - BBSRC,11/01/2019,T&S UK - Public Transport,Science Group,Corporate Travel Management (North) Ltd,98379774,-96.40 ,T&S UK - Public Transport
BEIS,UKRI - BBSRC,11/01/2019,T&S UK - Public Transport,Science Group,Corporate Travel Management (North) Ltd,98379774, 184.00 ,T&S UK - Public Transport
BEIS,UKRI - BBSRC,11/01/2019,T&S UK - Public Transport,Science Group,Corporate Travel Management (North) Ltd,98379774, 71.30 ,T&S UK - Public Transport
BEIS,UKRI - BBSRC,11/01/2019,T&S UK - Public Transport,Science Group,Corporate Travel Management (North) Ltd,98379774, 100.70 ,T&S UK - Public Transport
BEIS,UKRI - BBSRC,11/01/2019,T&S UK - Public Transport,Science Group,Corporate Travel Management (North) Ltd,98379774, 78.00 ,T&S UK - Public Transport
BEIS,UKRI - BBSRC,11/01/2019,T&S UK - Public Transport,Science Group,Corporate Travel Management (North) Ltd,98379774, 91.20 ,T&S UK - Public Transport
BEIS,UKRI - BBSRC,11/01/2019,T&S UK - Public Transport,Science Group,Corporate Travel Management (North) Ltd,98379774, 78.00 ,T&S UK - Public Transport
BEIS,UKRI - BBSRC,11/01/2019,T&S UK - Public Transport,Science Group,Corporate Travel Management (North) Ltd,98379774, 35.10 ,T&S UK - Public Transport
BEIS,UKRI - BBSRC,11/01/2019,T&S UK - Public Transport,Science Group,Corporate Travel Management (North) Ltd,98379774, 55.90 ,T&S UK - Public Transport
BEIS,UKRI - BBSRC,11/01/2019,T&S UK - Public Transport,Science Group,Corporate Travel Management (North) Ltd,98379774, 1.00 ,T&S UK - Public Transport
BEIS,UKRI - BBSRC,11/01/2019,T&S UK - Public Transport,Science Group,Corporate Travel Management (North) Ltd,98379774, 138.70 ,T&S UK - Public Transport
BEIS,UKRI - BBSRC,11/01/2019,T&S UK - Public Transport,Science Group,Corporate Travel Management (North) Ltd,98379774, 162.20 ,T&S UK - Public Transport
BEIS,UKRI - BBSRC,11/01/2019,T&S UK - Public Transport,Science Group,Corporate Travel Management (North) Ltd,98379774, 123.80 ,T&S UK - Public Transport
BEIS,UKRI - BBSRC,11/01/2019,T&S UK - Public Transport,Science Group,Corporate Travel Management (North) Ltd,98379774, 192.55 ,T&S UK - Public Transport
BEIS,UKRI - BBSRC,11/01/2019,T&S UK - Public Transport,Science Group,Corporate Travel Management (North) Ltd,98379774, 192.55 ,T&S UK - Public Transport
BEIS,UKRI - BBSRC,11/01/2019,T&S UK - Public Transport,Science Group,Corporate Travel Management (North) Ltd,98379774,-197.80 ,T&S UK - Public Transport
BEIS,UKRI - BBSRC,11/01/2019,T&S UK - Public Transport,Science Group,Corporate Travel Management (North) Ltd,98379774,-36.20 ,T&S UK - Public Transport
BEIS,UKRI - BBSRC,11/01/2019,T&S UK - Public Transport,Science Group,Corporate Travel Management (North) Ltd,98379774, 5.00 ,T&S UK - Public Transport
BEIS,UKRI - BBSRC,11/01/2019,T&S UK - Public Transport,Science Group,Corporate Travel Management (North) Ltd,98379774,-64.80 ,T&S UK - Public Transport
BEIS,UKRI - BBSRC,11/01/2019,T&S UK - Public Transport,Science Group,Corporate Travel Management (North) Ltd,98379774,-197.80 ,T&S UK - Public Transport
BEIS,UKRI - BBSRC,11/01/2019,T&S UK - Public Transport,Science Group,Corporate Travel Management (North) Ltd,98379774, 160.00 ,T&S UK - Public Transport
BEIS,UKRI - BBSRC,11/01/2019,T&S UK - Public Transport,Science Group,Corporate Travel Management (North) Ltd,98379774, 160.00 ,T&S UK - Public Transport
BEIS,UKRI - BBSRC,11/01/2019,T&S UK - Public Transport,Science Group,Corporate Travel Management (North) Ltd,98379774, 332.30 ,T&S UK - Public Transport
BEIS,UKRI - BBSRC,11/01/2019,T&S UK - Public Transport,Science Group,Corporate Travel Management (North) Ltd,98379774, 166.20 ,T&S UK - Public Transport
BEIS,UKRI - BBSRC,11/01/2019,T&S UK - Public Transport,Science Group,Corporate Travel Management (North) Ltd,98379774, 166.20 ,T&S UK - Public Transport
BEIS,UKRI - BBSRC,11/01/2019,T&S UK - Public Transport,Science Group,Corporate Travel Management (North) Ltd,98379774, 93.30 ,T&S UK - Public Transport
BEIS,UKRI - BBSRC,11/01/2019,T&S UK - Public Transport,Science Group,Corporate Travel Management (North) Ltd,98379774, 86.20 ,T&S UK - Public Transport
BEIS,UKRI - BBSRC,11/01/2019,T&S UK - Public Transport,Science Group,Corporate Travel Management (North) Ltd,98379774, 98.80 ,T&S UK - Public Transport
BEIS,UKRI - BBSRC,11/01/2019,T&S UK - Public Transport,Science Group,Corporate Travel Management (North) Ltd,98379774, 29.95 ,T&S UK - Public Transport
BEIS,UKRI - BBSRC,11/01/2019,T&S UK - Public Transport,Science Group,Corporate Travel Management (North) Ltd,98379774,-197.80 ,T&S UK - Public Transport
BEIS,UKRI - BBSRC,11/01/2019,T&S UK - Public Transport,Science Group,Corporate Travel Management (North) Ltd,98379774,-62.70 ,T&S UK - Public Transport
BEIS,UKRI - BBSRC,11/01/2019,T&S UK - Public Transport,Science Group,Corporate Travel Management (North) Ltd,98379774,-114.90 ,T&S UK - Public Transport
BEIS,UKRI - BBSRC,11/01/2019,T&S UK - Public Transport,Science Group,Corporate Travel Management (North) Ltd,98379774,-25.90 ,T&S UK - Public Transport
BEIS,UKRI - BBSRC,11/01/2019,T&S UK - Public Transport,Science Group,Corporate Travel Management (North) Ltd,98379774, 5.00 ,T&S UK - Public Transport
BEIS,UKRI - BBSRC,11/01/2019,T&S UK - Public Transport,Science Group,Corporate Travel Management (North) Ltd,98379774,-64.80 ,T&S UK - Public Transport
BEIS,UKRI - BBSRC,11/01/2019,T&S UK - Public Transport,Science Group - Delivery Function,Corporate Travel Management (North) Ltd,98379774, 0.50 ,T&S UK - Public Transport
BEIS,UKRI - BBSRC,11/01/2019,T&S UK - Public Transport,Science Group - Delivery Function,Corporate Travel Management (North) Ltd,98379774, 90.00 ,T&S UK - Public Transport
BEIS,UKRI - BBSRC,11/01/2019,T&S UK - Public Transport,Science Group - Delivery Function,Corporate Travel Management (North) Ltd,98379774, 0.50 ,T&S UK - Public Transport
BEIS,UKRI - BBSRC,11/01/2019,T&S UK - Public Transport,Science Group - Delivery Function,Corporate Travel Management (North) Ltd,98379774, 90.00 ,T&S UK - Public Transport
BEIS,UKRI - BBSRC,11/01/2019,T&S UK - Public Transport,Science Group - Delivery Function,Corporate Travel Management (North) Ltd,98379774, 1.00 ,T&S UK - Public Transport
BEIS,UKRI - BBSRC,11/01/2019,T&S UK - Public Transport,Science Group - Delivery Function,Corporate Travel Management (North) Ltd,98379774, 90.00 ,T&S UK - Public Transport
BEIS,UKRI - BBSRC,11/01/2019,T&S UK - Public Transport,Science Group - Delivery Function,Corporate Travel Management (North) Ltd,98379774, 1.00 ,T&S UK - Public Transport
BEIS,UKRI - BBSRC,11/01/2019,T&S UK - Public Transport,Science Group - Delivery Function,Corporate Travel Management (North) Ltd,98379774, 178.70 ,T&S UK - Public Transport
BEIS,UKRI - BBSRC,11/01/2019,T&S UK - Public Transport,Science Group - Delivery Function,Corporate Travel Management (North) Ltd,98379774, 1.00 ,T&S UK - Public Transport
BEIS,UKRI - BBSRC,11/01/2019,T&S UK - Public Transport,Science Group - Delivery Function,Corporate Travel Management (North) Ltd,98379774, 140.30 ,T&S UK - Public Transport
BEIS,UKRI - BBSRC,11/01/2019,T&S UK - Vehicle Hire,FG - RCUK Assurance,Corporate Travel Management (North) Ltd,98379774, 0.50 ,T&S UK - Vehicle Hire
BEIS,UKRI - BBSRC,11/01/2019,T&S UK - Vehicle Hire,FG - RCUK Assurance,Corporate Travel Management (North) Ltd,98379774, 1.44 ,T&S UK - Vehicle Hire
BEIS,UKRI - BBSRC,11/01/2019,T&S UK - Vehicle Hire,FG - RCUK Assurance,Corporate Travel Management (North) Ltd,98379774, 269.25 ,T&S UK - Vehicle Hire
BEIS,UKRI - BBSRC,11/01/2019,T&S UK - Vehicle Hire,FG - RCUK Assurance,Corporate Travel Management (North) Ltd,98379774, 0.50 ,T&S UK - Vehicle Hire
BEIS,UKRI - BBSRC,11/01/2019,T&S UK - Vehicle Hire,FG - RCUK Assurance,Corporate Travel Management (North) Ltd,98379774, 1.44 ,T&S UK - Vehicle Hire
BEIS,UKRI - BBSRC,11/01/2019,T&S UK - Vehicle Hire,FG - RCUK Assurance,Corporate Travel Management (North) Ltd,98379774, 310.50 ,T&S UK - Vehicle Hire
BEIS,UKRI - BBSRC,11/01/2019,T&S UK - Vehicle Hire,FG - RCUK Assurance,Corporate Travel Management (North) Ltd,98379774, 0.50 ,T&S UK - Vehicle Hire
BEIS,UKRI - BBSRC,11/01/2019,T&S UK - Vehicle Hire,FG - RCUK Assurance,Corporate Travel Management (North) Ltd,98379774, 1.44 ,T&S UK - Vehicle Hire
BEIS,UKRI - BBSRC,11/01/2019,T&S UK - Vehicle Hire,FG - RCUK Assurance,Corporate Travel Management (North) Ltd,98379774, 269.25 ,T&S UK - Vehicle Hire
BEIS,UKRI - BBSRC,11/01/2019,T&S UK - Vehicle Hire,FG - RCUK Assurance,Corporate Travel Management (North) Ltd,98379774,-269.24 ,T&S UK - Vehicle Hire
BEIS,UKRI - BBSRC,11/01/2019,T&S UK - Vehicle Hire,FG - RCUK Assurance,Corporate Travel Management (North) Ltd,98379774, 1.17 ,T&S UK - Vehicle Hire
BEIS,UKRI - BBSRC,24/01/2019,Subsidiaries Expenditure,Innovation and Skills Group,Cranfield University,98383097," 25,412.07 ",Subsidiaries Expenditure
BEIS,UKRI - BBSRC,15/01/2019,T&S UK - Vehicle Hire,JBOS Health and Safety,Cross Street Cars,98383668, 10.00 ,T&S UK - Vehicle Hire
BEIS,UKRI - BBSRC,04/01/2019,Secondments,Science Group - Delivery Function,Department for Business Energy & Industrial Strategy,98375969," 26,921.95 ",Secondments
BEIS,UKRI - BBSRC,28/01/2019,Postage & Courier Services,JBOS - Post Room,unspecified,98391538, 410.15 ,Postage & Courier Services
BEIS,UKRI - BBSRC,28/01/2019,Postage & Courier Services,JBOS - Post Room,unspecified,98391539, 190.88 ,Postage & Courier Services
BEIS,UKRI - BBSRC,28/01/2019,Postage & Courier Services,JBOS - Post Room,unspecified,98391540, 69.70 ,Postage & Courier Services
BEIS,UKRI - BBSRC,28/01/2019,Postage & Courier Services,JBOS - Post Room,unspecified,98391543, 36.28 ,Postage & Courier Services
BEIS,UKRI - BBSRC,28/01/2019,Postage & Courier Services,JBOS - Post Room,unspecified,98391545, 355.59 ,Postage & Courier Services
BEIS,UKRI - BBSRC,28/01/2019,Postage & Courier Services,JBOS - Staff,unspecified,98391572,-444.16 ,Postage & Courier Services
BEIS,UKRI - BBSRC,30/01/2019,Postage & Courier Services,JBOS - Post Room,unspecified,98392973, 11.30 ,Postage & Courier Services
BEIS,UKRI - BBSRC,30/01/2019,Postage & Courier Services,JBOS - Post Room,unspecified,98392988, 122.34 ,Postage & Courier Services
BEIS,UKRI - BBSRC,30/01/2019,Postage & Courier Services,JBOS - Post Room,unspecified,98392990, 632.40 ,Postage & Courier Services
BEIS,UKRI - BBSRC,30/01/2019,Postage & Courier Services,JBOS - Post Room,unspecified,98392992, 340.59 ,Postage & Courier Services
BEIS,UKRI - BBSRC,30/01/2019,Postage & Courier Services,JBOS - Post Room,unspecified,98392996, 650.68 ,Postage & Courier Services
BEIS,UKRI - BBSRC,30/01/2019,Postage & Courier Services,JBOS - Post Room,unspecified,98392997, 113.79 ,Postage & Courier Services
BEIS,UKRI - BBSRC,23/01/2019,Legal & Professional Services,FG - Estates,unspecified,98388668," 5,841.06 ",Legal & Professional Services
BEIS,UKRI - BBSRC,10/01/2019,Training Awards - Postgraduates,FG - Accounts & Business Planning,Earlham Institute,98352197," 5,091.40 ",Training Awards - Postgraduates
BEIS,UKRI - BBSRC,10/01/2019,Training Awards - Postgraduates,FG - Accounts & Business Planning,Earlham Institute,98352197," 5,091.40 ",Training Awards - Postgraduates
BEIS,UKRI - BBSRC,10/01/2019,Training Awards - Postgraduates,FG - Accounts & Business Planning,Earlham Institute,98352549," 6,189.63 ",Training Awards - Postgraduates
BEIS,UKRI - BBSRC,10/01/2019,Training Awards - Postgraduates,FG - Accounts & Business Planning,Earlham Institute,98352549," 6,189.63 ",Training Awards - Postgraduates
BEIS,UKRI - BBSRC,10/01/2019,Training Awards - Postgraduates,FG - Accounts & Business Planning,Earlham Institute,98352551," 6,189.63 ",Training Awards - Postgraduates
BEIS,UKRI - BBSRC,10/01/2019,Training Awards - Postgraduates,FG - Accounts & Business Planning,Earlham Institute,98352551," 6,189.63 ",Training Awards - Postgraduates
BEIS,UKRI - BBSRC,17/01/2019,Research Institutes - Competitive Strategic Grant,TGAC,Earlham Institute,98377581," 175,152.14 ",Research Institutes - Competitive Strategic Grant
BEIS,UKRI - BBSRC,17/01/2019,Research Institutes - Competitive Strategic Grant,TGAC,Earlham Institute,98377581," 72,565.05 ",Research Institutes - Competitive Strategic Grant
BEIS,UKRI - BBSRC,17/01/2019,Research Institutes - Competitive Strategic Grant,TGAC,Earlham Institute,98377581," 46,166.70 ",Research Institutes - Competitive Strategic Grant
BEIS,UKRI - BBSRC,17/01/2019,Research Institutes - Competitive Strategic Grant,TGAC,Earlham Institute,98377581," 33,333.36 ",Research Institutes - Competitive Strategic Grant
BEIS,UKRI - BBSRC,17/01/2019,Research Institutes - Competitive Strategic Grant,TGAC,Earlham Institute,98377581," 111,533.08 ",Research Institutes - Competitive Strategic Grant
BEIS,UKRI - BBSRC,17/01/2019,Research Institutes - Competitive Strategic Grant,TGAC,Earlham Institute,98377581," 2,916.67 ",Research Institutes - Competitive Strategic Grant
BEIS,UKRI - BBSRC,17/01/2019,Other Programme Costs,Science Group,Earlham Institute,98384279," 1,200.00 ",Other Programme Costs
BEIS,UKRI - BBSRC,15/01/2019,Training Awards - Postgraduates,Innovation and Skills Group,Economic & Social Research Council,98378040," 41,579.00 ",Training Awards - Postgraduates
BEIS,UKRI - BBSRC,17/01/2019,Other Staff Benefits,PDG - Director,EDENRED (UK GROUP) LTD,98385377, 10.22 ,Other Staff Benefits
BEIS,UKRI - BBSRC,17/01/2019,Nursery Deductions,Balance Sheet,EDENRED (UK GROUP) LTD,98385378," 4,736.00 ",Nursery Deductions
BEIS,UKRI - BBSRC,28/01/2019,Other Staff Benefits,PDG - Director,EDENRED (UK GROUP) LTD,98389194, 0.53 ,Other Staff Benefits
BEIS,UKRI - BBSRC,18/01/2019,Electricity,JBOS - Maintenance,EDF Energy,98386227," 33,527.83 ",Electricity
BEIS,UKRI - BBSRC,02/01/2019,Safety Materials & Equipment,JBOS - Maintenance,Edmundson Electrical Ltd,98374891, 959.76 ,Safety Materials & Equipment
BEIS,UKRI - BBSRC,09/01/2019,Mechanical & Electrical Maintenance,JBOS - Maintenance,Edmundson Electrical Ltd,98379298, 87.12 ,Mechanical & Electrical Maintenance
BEIS,UKRI - BBSRC,15/01/2019,Mechanical & Electrical Maintenance,JBOS - Maintenance,Edmundson Electrical Ltd,98382988, 65.29 ,Mechanical & Electrical Maintenance
BEIS,UKRI - BBSRC,15/01/2019,Mechanical & Electrical Maintenance,JBOS - Maintenance,Edmundson Electrical Ltd,98383302," 1,567.08 ",Mechanical & Electrical Maintenance
BEIS,UKRI - BBSRC,16/01/2019,Mechanical & Electrical Maintenance,JBOS - Maintenance,Edmundson Electrical Ltd,98383913, 130.60 ,Mechanical & Electrical Maintenance
BEIS,UKRI - BBSRC,21/01/2019,Mechanical & Electrical Maintenance,JBOS - Maintenance,Edmundson Electrical Ltd,98387208," 1,841.58 ",Mechanical & Electrical Maintenance
BEIS,UKRI - BBSRC,15/01/2019,Research Institutes - Capital Grants: Major Works,Estates - Projects,EMBL (European Molecular Biology Laboratory),98380414," 12,832.75 ",Research Institutes - Capital Grants: Major Works
BEIS,UKRI - BBSRC,18/01/2019,Research Institutes - Capital Grants: Major Works,Estates - Projects,EMBL (European Molecular Biology Laboratory),98380417," 76,843.37 ",Research Institutes - Capital Grants: Major Works
BEIS,UKRI - BBSRC,23/01/2019,Research Institutes - Capital Grants: Major Works,Estates - Projects,EMBL (European Molecular Biology Laboratory),98374939," 183,000.00 ",Research Institutes - Capital Grants: Major Works
BEIS,UKRI - BBSRC,15/01/2019,Doctoral Training Accounts,FG - Accounts & Business Planning,Engineering & Physical Sciences Research Council,98380701," 99,145.76 ",Doctoral Training Accounts
BEIS,UKRI - BBSRC,15/01/2019,Research Grant Expenditure,Science Group,Engineering & Physical Sciences Research Council,98381388," 18,633.70 ",Research Grant Expenditure
BEIS,UKRI - BBSRC,15/01/2019,Research Grant Expenditure,Science Group,Engineering & Physical Sciences Research Council,98381395," 7,720.56 ",Research Grant Expenditure
BEIS,UKRI - BBSRC,22/01/2019,Payroll Clearing,Balance Sheet,Engineering & Physical Sciences Research Council,98387005," 1,193.52 ",Payroll Clearing
BEIS,UKRI - BBSRC,29/01/2019,Photocopy Costs,FG - Accounts & Business Planning,Engineering & Physical Sciences Research Council,98389749," 5,407.51 ",Photocopy Costs
BEIS,UKRI - BBSRC,02/01/2019,T&S UK - Vehicle Hire,CIMG - Programme Office,Enterprise Rent-A-Car UK Ltd,98374787, 93.68 ,T&S UK - Vehicle Hire
BEIS,UKRI - BBSRC,02/01/2019,T&S UK - Vehicle Hire,Science Group,Enterprise Rent-A-Car UK Ltd,98374787, 98.59 ,T&S UK - Vehicle Hire
BEIS,UKRI - BBSRC,03/01/2019,T&S UK - Vehicle Hire,FG - Procurement,Enterprise Rent-A-Car UK Ltd,98375185, 60.13 ,T&S UK - Vehicle Hire
BEIS,UKRI - BBSRC,18/01/2019,T&S UK - Vehicle Hire,CIMG - External Relations,Enterprise Rent-A-Car UK Ltd,98383458, 117.76 ,T&S UK - Vehicle Hire
BEIS,UKRI - BBSRC,18/01/2019,T&S UK - Vehicle Hire,FG - Estates,Enterprise Rent-A-Car UK Ltd,98383458, 131.67 ,T&S UK - Vehicle Hire
BEIS,UKRI - BBSRC,18/01/2019,T&S UK - Vehicle Hire,FG - Estates,Enterprise Rent-A-Car UK Ltd,98383458, 54.82 ,T&S UK - Vehicle Hire
BEIS,UKRI - BBSRC,18/01/2019,T&S UK - Vehicle Hire,FG - Estates,Enterprise Rent-A-Car UK Ltd,98383458, 37.29 ,T&S UK - Vehicle Hire
BEIS,UKRI - BBSRC,18/01/2019,T&S UK - Vehicle Hire,Innovation and Skills Group,Enterprise Rent-A-Car UK Ltd,98383458, 82.32 ,T&S UK - Vehicle Hire
BEIS,UKRI - BBSRC,18/01/2019,T&S UK - Vehicle Hire,Innovation and Skills Group,Enterprise Rent-A-Car UK Ltd,98383458, 103.07 ,T&S UK - Vehicle Hire
BEIS,UKRI - BBSRC,18/01/2019,T&S UK - Vehicle Hire,Innovation and Skills Group,Enterprise Rent-A-Car UK Ltd,98383458, 37.07 ,T&S UK - Vehicle Hire
BEIS,UKRI - BBSRC,25/01/2019,Printing & Stationery,European Initiatives,Enterprise Rent-A-Car UK Ltd,98390983, 14.55 ,Printing & Stationery
BEIS,UKRI - BBSRC,25/01/2019,Printing & Stationery,European Initiatives,Enterprise Rent-A-Car UK Ltd,98390983, 72.73 ,Printing & Stationery
BEIS,UKRI - BBSRC,25/01/2019,T&S UK - Vehicle Hire,CIMG - External Relations,Enterprise Rent-A-Car UK Ltd,98390983, 19.38 ,T&S UK - Vehicle Hire
BEIS,UKRI - BBSRC,25/01/2019,T&S UK - Vehicle Hire,CIMG - External Relations,Enterprise Rent-A-Car UK Ltd,98390983, 96.92 ,T&S UK - Vehicle Hire
BEIS,UKRI - BBSRC,25/01/2019,T&S UK - Vehicle Hire,CIMG - Programme Office,Enterprise Rent-A-Car UK Ltd,98390983, 15.61 ,T&S UK - Vehicle Hire
BEIS,UKRI - BBSRC,25/01/2019,T&S UK - Vehicle Hire,CIMG - Programme Office,Enterprise Rent-A-Car UK Ltd,98390983, 78.07 ,T&S UK - Vehicle Hire
BEIS,UKRI - BBSRC,25/01/2019,T&S UK - Vehicle Hire,FG - Director,Enterprise Rent-A-Car UK Ltd,98390983, 30.13 ,T&S UK - Vehicle Hire
BEIS,UKRI - BBSRC,25/01/2019,T&S UK - Vehicle Hire,FG - Director,Enterprise Rent-A-Car UK Ltd,98390983, 68.13 ,T&S UK - Vehicle Hire
BEIS,UKRI - BBSRC,25/01/2019,T&S UK - Vehicle Hire,FG - Director,Enterprise Rent-A-Car UK Ltd,98390983, 82.51 ,T&S UK - Vehicle Hire
BEIS,UKRI - BBSRC,25/01/2019,T&S UK - Vehicle Hire,Innovation and Skills Group,Enterprise Rent-A-Car UK Ltd,98390983, 15.59 ,T&S UK - Vehicle Hire
BEIS,UKRI - BBSRC,25/01/2019,T&S UK - Vehicle Hire,Innovation and Skills Group,Enterprise Rent-A-Car UK Ltd,98390983, 77.96 ,T&S UK - Vehicle Hire
BEIS,UKRI - BBSRC,30/01/2019,T&S UK - Accommodation,Science Group,Enterprise Rent-A-Car UK Ltd,98392974, 75.43 ,T&S UK - Accommodation
BEIS,UKRI - BBSRC,30/01/2019,T&S UK - Vehicle Hire,FG - Director,Enterprise Rent-A-Car UK Ltd,98392974, 111.97 ,T&S UK - Vehicle Hire
BEIS,UKRI - BBSRC,30/01/2019,T&S UK - Vehicle Hire,FG - Estates,Enterprise Rent-A-Car UK Ltd,98392974, 74.92 ,T&S UK - Vehicle Hire
BEIS,UKRI - BBSRC,30/01/2019,T&S UK - Vehicle Hire,FG - Estates,Enterprise Rent-A-Car UK Ltd,98392974, 201.60 ,T&S UK - Vehicle Hire
BEIS,UKRI - BBSRC,30/01/2019,T&S UK - Vehicle Hire,Innovation and Skills Group,Enterprise Rent-A-Car UK Ltd,98392974, 136.27 ,T&S UK - Vehicle Hire
BEIS,UKRI - BBSRC,30/01/2019,T&S UK - Vehicle Hire,Science Group,Enterprise Rent-A-Car UK Ltd,98392974, 69.55 ,T&S UK - Vehicle Hire
BEIS,UKRI - BBSRC,18/01/2019,Staff Training,FG - Accounts & Business Planning,GP Strategies Ltd,98342280," 19,200.00 ",Staff Training
BEIS,UKRI - BBSRC,03/01/2019,Meetings & Catering,CE - CPS,Harbour & Jones Ltd T/A Dartmouth House,98374721, 21.00 ,Meetings & Catering
BEIS,UKRI - BBSRC,10/01/2019,Training Awards - Postgraduates,FG - Accounts & Business Planning,Harper Adams University College,98352157," 5,940.12 ",Training Awards - Postgraduates
BEIS,UKRI - BBSRC,10/01/2019,Training Awards - Postgraduates,FG - Accounts & Business Planning,Harper Adams University College,98352207," 5,940.12 ",Training Awards - Postgraduates
BEIS,UKRI - BBSRC,10/01/2019,Training Awards - Postgraduates,FG - Accounts & Business Planning,Harper Adams University College,98352328," 2,577.50 ",Training Awards - Postgraduates
BEIS,UKRI - BBSRC,04/01/2019,Agency Staff,PDG - Director,Hays Specialist Recruitment Ltd,98375914, 801.79 ,Agency Staff
BEIS,UKRI - BBSRC,08/01/2019,Agency Staff,PDG - Director,Hays Specialist Recruitment Ltd,98375911, 834.02 ,Agency Staff
BEIS,UKRI - BBSRC,14/01/2019,Agency Staff,PDG - Director,Hays Specialist Recruitment Ltd,98382530, 855.07 ,Agency Staff
